Workbook

Sheet Disclosure
B3: EwePLAN - Version 1.0B (April 2022)
B4: A five year projection for a sheep operation.
B5: Copyright: Government of Saskatchewan, 2008
B6: Developed In Conjunction With The Saskatchewan Sheep Development Board
B8: NOTICE:
B9: All rights reserved. Copyright and all other intellectual property rights in EwePLAN, and all manuals,
B10: documentation and other material pertaining to this software, belong exclusively to the
B11: Government of Saskatchewan. This software is provided solely for the personal use of the
B12: user under a non-exclusive license, and may not be copied, modified, published, sold or
B13: distributed to any third party, or transmitted in any form or by any mean whether electronic,
B14: mechanical, photocopying, recording or otherwise, in whole or in part, without the express
B15: written permission of the Saskatchewan Ministry of Agriculture.
B17: DISCLAIMER:
B18: This software is provided without warranty on an "as is" basis. The Government of
B19: Saskatchewan and its agents assume no liability or responsibility whatsoever with respect to
B20: loss or damage caused by or alleged to be caused by the use or operation of this software.

Sheet Intro
B4: EwePLAN - Version 1.0B (April 2022)
B5: Introduction
B7: Planner
B8: The EwePLAN Version1.0B is an excel based tool used to make five-year projections for a new or existing accelerated ewe-lamb operation that breeds and lambs monthly.
B10: COP Calculation (Cost Of Production Calculation)
B11: The "COP Calculation" worksheet is a cost of production worksheet that is used to calculate a producers historical cost of production using previous years revenues, expenses, and marketing numbers. Numbers are calculated on an accrual basis.
B13: Input
B14: The "Input" worksheet is the main area in the model where all the production and financial numbers are inputted into the model to complete the financial projections.
B16: Feed
B17: The "Feed" worksheet is the summary sheet showing the annual feed barley and hay requirements for both individual feed rations and totals for the ewes, rams, and lambs.
B19: Monthly
B20: The "Monthly" worksheet contains the projected monthly revenues and expenses including cash flow requirements for the first year. Producers can go into the monthly sheet and change the timing of revenues and expenses to more acurately reflect the projected monthly cash flows for their operation.
B22: Income Expense
B23: The "Income Expense" worksheet is the summary sheet with the projected revenues, expenses, and cash flow for the five years projected in the model.
B25: Balance Sheet
B26: The "Balance Sheet" worksheet is the summary of the estimated assets and liabilities of the operation at the end of each year.
B28: Financing Sheet
B29: The "Financing" worksheet is the summary of the payment schedule broken down into interest and principal payments for each loan, per year, set out in the input sheet.
B31: Depreciation
B32: The "Depreciation" worksheet is the schedule for the depreciation of assets that are inputted in the input worksheet, in the balance sheet section. The depreciation rate can be changed for different categories in the depreciation work sheet, in the yellow boxes. The depreciation schedule is initially setup with estimated rates on a declining balance. Maximum Capital Cost Allowance (CCA) rates are not used.

Sheet COP Calculation
C6: Producer Name / Number:
D8: Enterprise Type:
E9: Grazing/Pasture Lambing
E10: Semi Confined/Jug Lambing/Partial Grazing
E11: Confined/Drylot
B14: 1) When do you typically lamb? (month)
B15: 2) Do you lamb on pasture or in a confined area?
B16: 3) When do you sell your lambs? (month)
B18: INVENTORY AND PRODUCTIVITY
E19: 2021 | H19: 2020
B20: BREEDING STOCK | D20: # Head | E20: Value/Head | F20: Total Value | G20: # Head | H20: Value/Head | I20: Total Value
C21: Ewe Flock at Start of Year
C22: Ewe Flock at End of Year
C23: Ram Flock at Start of Year
C24: Ram Flock at End of Year
C25: Lambs in Inventory at Start of Year
C26: Lambs in Inventory at End of Year
B28: PRODUCTIVITY | D28: # Head | E28: =E19 -> 2021 | G28: # Head | H28: =H19 -> 2020
C29: Number of Ewes Lambing During The Year | G29: 0
C30: Lambs Born During the year | G30: 0
C31: Lamb Death Losses (birth to wean) | E31: =IF(D30>0,D31/D30,0) -> 0 | G31: 0 | H31: =IF(G30>0,G31/G30,0) -> 0
C32: Lambs Weaned During the year | E32: =IF(D32>0,D32/D29,0) -> 0 | G32: 0 | H32: =IF(G32>0,G32/G29,0) -> 0
C33: Lamb Death Losses (wean to market) | E33: =IF(D32>0,D33/D32,0) -> 0 | G33: 0 | H33: =IF(G32>0,G33/G32,0) -> 0
C34: Total Lambs Sold During TheYear (All Sizes) | E34: =IF(D34>0,D34/D29,0) -> 0 | G34: 0 | H34: =IF(G34>0,G34/G29,0) -> 0
C35: Ewe Lambs Kept for Breeding | G35: 0
B39: REVENUES | E39: 2021 | H39: 2020
B40: LAMB SALES | D40: # Head | E40: Total Weight | F40: Total Value | G40: # Head | H40: Total Weight | I40: Total Value
C41: Market Lambs Sold (90lbs+)
C42: Feeder Lambs Sold (under 90lbs)
C43: Ewe Lambs Kept For Breeding
C44: Bottle Babies Sold
B46: CULL SALES | D46: # Head | E46: $/ Head | F46: Total Value | G46: # Head | H46: $/ Head | I46: Total Value
C47: Cull Ewe Sales During the year
C48: Cull Ram Sales During the year
B50: BREEDING STOCK SALES | D50: # Head | E50: Total Weight | F50: Total Value | G50: # Head | H50: Total Weight | I50: Total Value
C51: Breeding Ewe Sales During the year
C52: Breeding Ram Sales During the year
B54: WOOL SALES | D54: # Head | E54: Wool Weight | F54: Total Value | G54: # Head | H54: Wool Weight | I54: Total Value
C55: Wool Sales
B57: MEAT SALES | D57: # Head | E57: Meat Weight | F57: Total Value | G57: # Head | H57: Meat Weight | I57: Total Value
C58: Market Lambs Slaughtered
C59: Mutton Sales
B61: OTHER SALES | F61: Total Value | I61: Total Value
C62: Grazing Revenue
C63: Grain Sales
C64: Other Revenue
B68: EXPENSES - OPERATING - ACTUAL YEAR USED | E68: =E19 -> 2021 | H68: =H19 -> 2020
B69: FEED, PASTURE & HAY COSTS | D69: Units | E69: $/Unit | F69: Total Cost | G69: Units | H69: $/Unit | I69: Total Cost
C70: Grains Produced -
C71: Other Produced -
C72: Other Produced -
C73: Grains Purchased -
C74: Other Purchased -
C75: Other Purchased -
C76: Pasture - Production Costs
C77: Pasture - Rental/Lease Costs
C78: Hay - Production Costs
C79: Hay - Purchase Costs
B81: BREEDING STOCK PURCHASES AND SUPPLIES | D81: # Head | E81: $/Head | F81: Total Cost | G81: # Head | H81: $/Head | I81: Total Cost
C82: Ewe/Ewe Lamb Purchases
C83: Ram Purchases
C84: Breeding Supplies (sponges or MGA, and ultrasound costs)
C85: Lambing Supplies
B87: VETERINARY SERVICES AND MEDICATION | F87: Total Cost | I87: Total Cost
C88: Veterinary Services
C89: Medication
B91: GUARDIAN AND HERD DOG COSTS | F91: Total Cost | I91: Total Cost
C92: Guardian dog purchase costs
C93: Guardian dog operating costs (vet., feed, etc.)
C94: Herd dog purchase costs
C95: Herd dog operating costs (vet., feed, etc.)
F96: =E19 -> 2021 | I96: =H19 -> 2020
B97: LABOUR COSTS | E97: # Workers | F97: Total Hours | H97: # Workers | I97: Total Hours
C98: Annual Labour Hours Required
C99: Total Operation Salaries and Benefits ($ Value)
B101: CUSTOM WORK/MANURE REMOVAL COSTS | F101: Total Cost | I101: Total Cost
C102: Annual Manure Removal Cost
C103: Other Annual Custom Work
C104: Other Annual Custom Work
B107: EXPENSES - OPERATING - ACTUAL YEAR USED | F107: =E19 -> 2021 | I107: =H19 -> 2020
B108: FUEL AND UTILITY COSTS | F108: Total Cost | I108: Total Cost
C109: Annual Fuel Costs
C110: Annual Utility Costs (hydro, natural gas, phone)
B112: BUILDING AND EQUIPMENT REPAIRS | F112: Total Cost | I112: Total Cost
C113: Annual Building Repairs
C114: Annual Equipment Repairs
B116: MARKETING AND TRANSPORTATION COSTS | F116: Total Cost | I116: Total Cost
C117: Marketing Commissions - Lamb/Ewe/Ram
C118: Check-Off Fees - Lamb/Ewe/Ram
C119: Transportation Costs - Lamb/Ewe/Ram
C120: Feeder Lamb and Bottle Baby Selling Expenses
B122: SHEARING AND WOOL PRODUCTION COSTS | F122: Total Cost | I122: Total Cost
C123: Shearing Costs
C124: Packing/Bagging/transportation Costs
B126: SLAUGHTERING AND MEAT PRODUCTION COSTS | F126: Total Cost | I126: Total Cost
C127: Slaughter, Packing, and Trasportation Costs
B129: ACCOUNTING, PROPERTY TAXES, AND LISCENSES | F129: Total Cost | I129: Total Cost
C130: Accounting Fees
C131: Property Taxes
C132: Vehicle Plates/Liscenses
B134: INSURANCE COSTS | F134: Total Cost | I134: Total Cost
C135: Building and Equipment Costs
C136: Sheep Insurance Costs
B138: OPERATING INTEREST COSTS | F138: Total Cost | I138: Total Cost
C139: Annual Operating Interest Costs
B140: EXPENSES - FIXED | F140: =E19 -> 2021 | I140: =H19 -> 2020
B141: DEPRECIATION COSTS | F141: Total Cost | I141: Total Cost
C142: Buildings
C143: Equipment
B145: LONG TERM INTEREST COSTS | F145: Total Cost | I145: Total Cost
C146: Long Term Interest Costs
D155: (Note: For Analysis purpose only, does not link to the Input Sheet)
C156: HISTORICAL COST OF PRODUCTION ANALYSIS
D157: Year | E157: =E19 -> 2021 | G157: Year | H157: =H19 -> 2020
B158: REVENUE | D158: Total $ | E158: $/Ewe | F158: $/Lamb | G158: Total $ | H158: $/Ewe | I158: $/Lamb
C159: Market Lamb Sales (90lbs+) | D159: =IF(F41>0,F41,0) -> 0 | E159: =IF($E$190>0,D159/$E$190,0) -> 0 | F159: =IF(F191>0,D159/F191,0) -> 0 | G159: =IF(I41>0,I41,0) -> 0 | H159: =IF($H$190>0,G159/$H$190,0) -> 0 | I159: =IF(I191>0,G159/I191,0) -> 0
C160: Feeder Lamb Sales (under 90lbs) | D160: =IF(F42>0,F42,0) -> 0 | E160: 0 | F160: 0 | G160: =IF(I42>0,I42,0) -> 0 | H160: 0 | I160: 0
C161: Ewe Lambs Kept For Breeding | D161: =IF(F43>0,F43,0) -> 0 | E161: 0 | F161: 0 | G161: =IF(I43>0,I43,0) -> 0 | H161: 0 | I161: 0
C162: Cull Ewe and Ram Sales | D162: =IF((F47+F48)>0,(F47+F48),0) -> 0 | E162: 0 | F162: 0 | G162: =IF((I47+I48)>0,(I47+I48),0) -> 0 | H162: 0 | I162: 0
C163: Breeding Stock Sales | D163: =IF((F51+F52)>0,(F51+F52),0) -> 0 | E163: 0 | F163: 0 | G163: =IF((I51+I52)>0,(I51+I52),0) -> 0 | H163: 0 | I163: 0
C164: Wool Sales | D164: =IF(F55>0,F55,0) -> 0 | E164: 0 | F164: 0 | G164: =IF(I55>0,I55,0) -> 0 | H164: 0 | I164: 0
C165: Meat and Mutton Sales | D165: =IF((F58+F59)>0,(F58+F59),0) -> 0 | E165: 0 | F165: 0 | G165: =IF((I58+I59)>0,(I58+I59),0) -> 0 | H165: 0 | I165: 0
C166: Other Sales | D166: =IF(F64>0,F64,0) -> 0 | E166: 0 | F166: =IF($F$199>0,D166/$F$199,0) -> 0 | G166: =IF(I64>0,I64,0) -> 0 | H166: 0 | I166: =IF($F$199>0,G166/$F$199,0) -> 0
C167: TOTAL REVENUE | D167: =SUM(D159:D166) -> 0 | E167: =IF(D167>0,D167/E190,0) -> 0 | F167: =IF(D167>0,D167/F199,0) -> 0 | G167: =SUM(G159:G166) -> 0 | H167: =IF(G167>0,G167/H190,0) -> 0 | I167: =IF(G167>0,G167/I199,0) -> 0
B168: EXPENSES - VARIABLE COSTS
C169: Feed, Pasture, & Hay Costs | D169: =IF(SUM(F70:F79)>0,SUM(F70:F79),0) -> 0 | E169: =IF($E$190>0,D169/$E$190,0) -> 0 | F169: =IF($F$199>0,D169/$F$199,0) -> 0 | G169: =IF(SUM(I70:I79)>0,SUM(I70:I79),0) -> 0 | H169: =IF($H$190>0,G169/$H$190,0) -> 0 | I169: =IF($I$199>0,G169/$I$199,0) -> 0
C170: Breeding Stock Purchases & Supplies | D170: =IF(SUM(F82:F85)>0,SUM(F82:F85),0) -> 0 | E170: 0 | F170: 0 | G170: =IF(SUM(I82:I85)>0,SUM(I82:I85),0) -> 0 | H170: 0 | I170: 0
C171: Veterinary Services and Medication | D171: =IF((F88+F89)>0,(F88+F89),0) -> 0 | E171: 0 | F171: 0 | G171: =IF((I88+I89)>0,(I88+I89),0) -> 0 | H171: 0 | I171: 0
C172: Guardian and Herd Dog Costs | D172: =IF(SUM(F92:F95)>0,SUM(F92:F95),0) -> 0 | E172: 0 | F172: 0 | G172: =IF(SUM(I92:I95)>0,SUM(I92:I95),0) -> 0 | H172: 0 | I172: 0
C173: Labour Costs | D173: =IF(F99>0,F99,0) -> 0 | E173: 0 | F173: 0 | G173: =IF(I99>0,I99,0) -> 0 | H173: 0 | I173: 0
C174: Custom Work/Manure Removal Costs | D174: =IF((F102+F103+F104)>0,(F102+F103+F104),0) -> 0 | E174: 0 | F174: 0 | G174: =IF((I102+I103+I104)>0,(I102+I103+I104),0) -> 0 | H174: 0 | I174: 0
C175: Fuel and Utility Costs | D175: =IF((F109+F110)>0,(F109+F110),0) -> 0 | E175: 0 | F175: 0 | G175: =IF((I109+I110)>0,(I109+I110),0) -> 0 | H175: 0 | I175: 0
C176: Building and Equipment Repairs | D176: =IF((F113+F114)>0,(F113+F114),0) -> 0 | E176: 0 | F176: 0 | G176: =IF((I113+I114)>0,(I113+I114),0) -> 0 | H176: 0 | I176: 0
C177: Marketing, Check-Off, & Transportation Costs | D177: =IF((SUM(F117:F120))>0,(SUM(F117:F120)),0) -> 0 | E177: 0 | F177: 0 | G177: =IF((SUM(I117:I120))>0,(SUM(I117:I120)),0) -> 0 | H177: 0 | I177: 0
C178: Shearing and Wool Production Costs | D178: =IF((F123+F124)>0,(F123+F124),0) -> 0 | E178: 0 | F178: 0 | G178: =IF((I123+I124)>0,(I123+I124),0) -> 0 | H178: 0 | I178: 0
C179: Slaughtering and Meat Production Costs | D179: =IF(F127>0,F127,0) -> 0 | E179: 0 | F179: 0 | G179: =IF(I127>0,I127,0) -> 0 | H179: 0 | I179: 0
C180: Accounting, Property Taxes, and Liscenses | D180: =IF((F130+F131+F132)>0,(F130+F131+F132),0) -> 0 | E180: 0 | F180: 0 | G180: =IF((I130+I131+I132)>0,(I130+I131+I132),0) -> 0 | H180: 0 | I180: 0
C181: Insurance Costs | D181: =IF((F135+F136)>0,(F135+F136),0) -> 0 | E181: 0 | F181: 0 | G181: =IF((I135+I136)>0,(I135+I136),0) -> 0 | H181: 0 | I181: 0
C182: Operating Interest Costs | D182: =IF(F139>0,F139,0) -> 0 | E182: 0 | F182: 0 | G182: =IF(I139>0,I139,0) -> 0 | H182: 0 | I182: 0
C183: TOTAL VARIABLE COSTS | D183: =SUM(D169:D182) -> 0 | E183: 0 | F183: 0 | G183: 0 | H183: 0 | I183: 0
C184: Depreciation | D184: =IF((F142+F143)>0,(F142+F143),0) -> 0 | E184: =IF($E$190>0,D184/$E$190,0) -> 0 | F184: =IF($F$199>0,D184/$F$199,0) -> 0 | G184: =IF((I142+I143)>0,(I142+I143),0) -> 0 | H184: =IF($H$190>0,G184/$H$190,0) -> 0 | I184: =IF($I$199>0,G184/$I$199,0) -> 0
C185: Long Term Interest | D185: =IF(F146>0,F146,0) -> 0 | E185: =IF($E$190>0,D185/$E$190,0) -> 0 | F185: =IF($F$199>0,D185/$F$199,0) -> 0 | G185: =IF(I146>0,I146,0) -> 0 | H185: =IF($H$190>0,G185/$H$190,0) -> 0 | I185: =IF($I$199>0,G185/$I$199,0) -> 0
C186: TOTAL FIXED COSTS | D186: =D184+D185 -> 0 | E186: 0 | F186: 0 | G186: 0 | H186: 0 | I186: 0
C187: TOTAL COSTS | D187: =D183+D186 -> 0 | E187: 0 | F187: 0 | G187: 0 | H187: 0 | I187: 0
C188: NET INCOME, Before Taxes | D188: =D167-D187 -> 0 | E188: 0 | F188: 0 | G188: 0 | H188: 0 | I188: 0
C190: Number of Ewes Lambinig During The Year | E190: =D29 -> 0 | H190: =G29 -> 0
C191: =C159 -> Market Lamb Sales (90lbs+) | F191: =IF(D41>0,D41,0) -> 0 | I191: =IF(G41>0,G41,0) -> 0
C192: Feeder Lamb Sales (under 90lbs) | F192: =IF(D42>0,D42,0) -> 0 | I192: =IF(G42>0,G42,0) -> 0
C193: Ewe Lambs Kept For Breeding | F193: =IF(D43>0,D43,0) -> 0 | I193: =IF(G43>0,G43,0) -> 0
C194: Cull Ewe and Ram Sales | F194: =IF((D47+D48)>0,(D47+D48),0) -> 0 | I194: =IF((G47+G48)>0,(G47+G48),0) -> 0
C195: Breeding Stock Sales | F195: =IF((D51+D52)>0,(D51+D52),0) -> 0 | I195: =IF((G51+G52)>0,(G51+G52),0) -> 0
C196: Wool Sales | F196: =IF((D55)>0,(D55),0) -> 0 | I196: =IF((G55)>0,(G55),0) -> 0
C197: Meat and Mutton Sales | F197: =IF((D58+D59)>0,(D58+D59),0) -> 0 | I197: =IF((G58+G59)>0,(G58+G59),0) -> 0
D199: TOTAL HEAD SOLD & KEPT FOR BREEDING | F199: =SUM(F191:F197)-F196 -> 0 | I199: =SUM(I191:I197)-I196 -> 0

Sheet Input
D5: EwePLAN, Version 1.0B Accelerated Monthly- April 2022
C6: SHEEP PRODUCTION COST AND PROFORMA FINANCIAL MODEL
C7: INPUT PAGE FOR 5 YEAR OPERATING ACCELERATED SHEEP OPERATION
C8: EwePLAN: Developed By Brad Marceniuk, Saskatchewan Ministry of Agriculture.
C9: Developed In Conjunction With The Saskatchewan Sheep Development Board.
C10: Name: Draft Copy 400 Head Ewe Accelerated Operation (45 per month) | G10: Date:
C11: Address: NOTE - Feed and Market Animal Prices Will Vary by Location/Time and Should Be Reviewed!
C12: Telephone#: | D12: MONTHLY ACCELERATED | G12: Fax#:
B13: NOTE: ACCELERATED MODEL WILL USE MORE PROLIFIC SHEEP BREEDS, cycle will vary between 8 - 9 months
B15: BREEDING STOCK | E15: Year #1 | F15: Year #2 | G15: Year #3 | H15: Year #4 | I15: Year #5
C16: Ewe Flock - Start of the cycle (Number Head) | D16: Input 1 | E16: 400 | F16: =E27 -> 400 | G16: =F27 -> 400 | H16: =G27 -> 400 | I16: =H27 -> 400
C17: Ram Flock - Start of the cycle (Number Head) | D17: Input 2 | E17: 10 | F17: =E17-E29-E31+E32 -> 10 | G17: =F17-F29-F31+F32 -> 10 | H17: =G17-G29-G31+G32 -> 10 | I17: =H17-H29-H31+H32 -> 10
C18: Open Ewes (Number Head) | D18: Input 3 | E18: 0 | F18: =E18 -> 0 | G18: 0 | H18: 0 | I18: 0
C19: Ewe Mortality Rate (Percentage) - per year | D19: Input 4 | E19: 0.03 | F19: 0.03 | G19: 0.03 | H19: 0.03 | I19: 0.03
C20: Estimated Ewe Mortality (Number) - per year | D20: calculated | E20: =ROUND(E16*E19,0) -> 12 | F20: =ROUND(F16*F19,0) -> 12 | G20: =ROUND(G16*G19,0) -> 12 | H20: =ROUND(H16*H19,0) -> 12 | I20: =ROUND(I16*I19,0) -> 12
C21: Percent Ewes Culled over year | D21: Input 5 | E21: 0.15 | F21: =E21 -> 0.15 | G21: =F21 -> 0.15 | H21: =G21 -> 0.15 | I21: =H21 -> 0.15
C22: Cull Ewe Sales During the year (Number Head) | D22: calculated | E22: =ROUND(E16*E21,0) -> 60 | F22: =ROUND(F16*F21,0) -> 60 | G22: =ROUND(G16*G21,0) -> 60 | H22: =ROUND(H16*H21,0) -> 60 | I22: =ROUND(I16*I21,0) -> 60
C23: Replacement Ewes Needed | D23: calculated | E23: =E16*(E19+E21) -> 72 | F23: =F16*(F19+F21) -> 72 | G23: =G16*(G19+G21) -> 72 | H23: =H16*(H19+H21) -> 72 | I23: =I16*(I19+I21) -> 72
C24: Ewe Lambs - kept for breeding (Number Head) | D24: Input 6 | E24: =E23 -> 72 | F24: =F23 -> 72 | G24: =G23 -> 72 | H24: =H23 -> 72 | I24: =I23 -> 72
C25: Bred Ewe Lambs Purchased | D25: Input 7 | E25: =IF((E23-E24)>0,E23-E24,0) -> 0 | F25: =IF((F23-F24)>0,F23-F24,0) -> 0 | G25: =IF((G23-G24)>0,G23-G24,0) -> 0 | H25: =IF((H23-H24)>0,H23-H24,0) -> 0 | I25: =IF((I23-I24)>0,I23-I24,0) -> 0
C26: Bred Ewe Lambs Purchase Price - $/Bred Ewe | D26: Input 8 | E26: 450 | F26: =E26 -> 450 | G26: =F26 -> 450 | H26: =G26 -> 450 | I26: =H26 -> 450
C27: Ewe Flock (ewes & bred ewe lambs) Year End | D27: calculated | E27: =E16-E20-E22+E24+E25 -> 400 | F27: =F16-F20-F22+F24+F25 -> 400 | G27: =G16-G20-G22+G24+G25 -> 400 | H27: =H16-H20-H22+H24+H25 -> 400 | I27: =I16-I20-I22+I24+I25 -> 400
C28: Ram Mortality Rate (Percentage) - per year | D28: Input 9 | E28: 0.03 | F28: =E28 -> 0.03 | G28: =F28 -> 0.03 | H28: =G28 -> 0.03 | I28: =H28 -> 0.03
C29: Estimated Ram Mortality (Number) - per year | D29: calculated | E29: =ROUND(E17*E28,0) -> 0 | F29: =ROUND(F17*F28,0) -> 0 | G29: =ROUND(G17*G28,0) -> 0 | H29: =ROUND(H17*H28,0) -> 0 | I29: =ROUND(I17*I28,0) -> 0
C30: Percent Rams Culled over year | D30: Input 10 | E30: 0.15 | F30: =E30 -> 0.15 | G30: =F30 -> 0.15 | H30: =G30 -> 0.15 | I30: =H30 -> 0.15
C31: Cull Ram Sales During the year (Number Head) | D31: calculated | E31: =ROUND(E17*E30,0) -> 2 | F31: =ROUND(F17*F30,0) -> 2 | G31: =ROUND(G17*G30,0) -> 2 | H31: =ROUND(H17*H30,0) -> 2 | I31: =ROUND(I17*I30,0) -> 2
C32: Rams Purchased - During the year | D32: Input 11 | E32: =E29+E31 -> 2 | F32: =F29+F31 -> 2 | G32: =G29+G31 -> 2 | H32: =H29+H31 -> 2 | I32: =I29+I31 -> 2
C33: Rams Purchase Price - $/Ram | D33: Input 12 | E33: 800 | F33: =E33 -> 800 | G33: =F33 -> 800 | H33: =G33 -> 800 | I33: =H33 -> 800
B35: PRODUCTIVITY | E35: =E15 -> Year #1 | F35: =F15 -> Year #2 | G35: =G15 -> Year #3 | H35: =H15 -> Year #4 | I35: =I15 -> Year #5
C36: Monthly Head of Ewes Lambing (AVG.) | D36: Input 13 | E36: 45 | F36: =E36 -> 45 | G36: =F36 -> 45 | H36: =G36 -> 45 | I36: =H36 -> 45
C37: Lambing Rate (Percentage) | D37: Input 14 | E37: 2.3 | F37: =E37 -> 2.3 | G37: 2.3 | H37: 2.3 | I37: 2.3
C38: Lambs Born Per Month | D38: calculated | E38: =ROUND(E36*E37,0) -> 104 | F38: =ROUND(F36*F37,0) -> 104 | G38: =ROUND(G36*G37,0) -> 104 | H38: =ROUND(H36*H37,0) -> 104 | I38: =ROUND(I36*I37,0) -> 104
C39: Lambs Born During the year (Number) | D39: calculated | E39: =E38*12 -> 1248 | F39: =F38*12 -> 1248 | G39: =G38*12 -> 1248 | H39: =H38*12 -> 1248 | I39: =I38*12 -> 1248
C40: Lamb Death Loss (birth to wean) - Percentage | D40: Input 15 | E40: 0.1 | F40: 0.1 | G40: 0.1 | H40: 0.1 | I40: 0.1
C41: Lamb Death Loss (birth to wean) - Number | D41: calculated | E41: =ROUND(E39*E40,0) -> 125 | F41: =ROUND(F39*F40,0) -> 125 | G41: =ROUND(G39*G40,0) -> 125 | H41: =ROUND(H39*H40,0) -> 125 | I41: =ROUND(I39*I40,0) -> 125
C42: Lambs Weaned During the year | D42: calculated | E42: =ROUND(E39-E41,0) -> 1123 | F42: =ROUND(F39-F41,0) -> 1123 | G42: =ROUND(G39-G41,0) -> 1123 | H42: =ROUND(H39-H41,0) -> 1123 | I42: =ROUND(I39-I41,0) -> 1123
C43: Lamb Weaning Percentage | D43: calculated | E43: =E42/E39 -> 0.8998397436 | F43: =F42/F39 -> 0.8998397436 | G43: =G42/G39 -> 0.8998397436 | H43: =H42/H39 -> 0.8998397436 | I43: =I42/I39 -> 0.8998397436
C44: Lamb Death Loss (wean to market) - Percentage | D44: Input 16 | E44: 0.05 | F44: =E44 -> 0.05 | G44: =F44 -> 0.05 | H44: =G44 -> 0.05 | I44: =H44 -> 0.05
C45: Lamb Death Loss (wean to market) - Number | D45: calculated | E45: =ROUND(E42*E44,0) -> 56 | F45: =ROUND(F42*F44,0) -> 56 | G45: =ROUND(G42*G44,0) -> 56 | H45: =ROUND(H42*H44,0) -> 56 | I45: =ROUND(I42*I44,0) -> 56
C46: Lambs Available For Sale (Number Head) | D46: calculated | E46: =E42-E45 -> 1067 | F46: =F42-F45 -> 1067 | G46: =G42-G45 -> 1067 | H46: =H42-H45 -> 1067 | I46: =I42-I45 -> 1067
C47: Lambs Per Ewe (Year) to Market (Available) | D47: calculated | E47: =E46/E16 -> 2.6675 | F47: =F46/F16 -> 2.6675 | G47: =G46/G16 -> 2.6675 | H47: =H46/H16 -> 2.6675 | I47: =I46/I16 -> 2.6675
C48: Lambs Available (excludes lambs kept for breeding) | D48: calculated | E48: =E46-E24 -> 995 | F48: =F46-F24 -> 995 | G48: =G46-G24 -> 995 | H48: =H46-H24 -> 995 | I48: =I46-I24 -> 995
B50: LAMBS SALES | E50: =$E$15 -> Year #1 | F50: =$F$15 -> Year #2 | G50: =$G$15 -> Year #3 | H50: =$H$15 -> Year #4 | I50: =$I$15 -> Year #5
C51: Feeder Lambs sold (Number) | D51: Input 17 | E51: =IF(E52>0,E48,0) -> 0 | F51: =IF(F52>0,F48,0) -> 0 | G51: =IF(G52>0,G48,0) -> 0 | H51: =IF(H52>0,H48,0) -> 0 | I51: =IF(I52>0,I48,0) -> 0
C52: Feeder Lambs selling weight (LBS) | D52: Input 18 | E52: 0 | F52: =E52 -> 0 | G52: 0 | H52: 0 | I52: 0
C53: Feeder Lambs selling price ($/LB) | D53: Input 19 | E53: 2.6 | F53: 2.6 | G53: 2.6 | H53: 2.6 | I53: 2.6
C54: Feeder Lambs selling value ($/Head) | D54: calculated | E54: =E52*E53 -> 0 | F54: =F52*F53 -> 0 | G54: =G52*G53 -> 0 | H54: =H52*H53 -> 0 | I54: =I52*I53 -> 0
C56: Slaughter Weight Lambs sold (Number) | D56: Input 20 | E56: =E46-E24-E51-E62-E64-E66-E90 -> 995 | F56: =F46-F24-F51-F62-F64-F66-F90 -> 995 | G56: =G46-G24-G51-G62-G64-G66-G90 -> 995 | H56: =H46-H24-H51-H62-H64-H66-H90 -> 995 | I56: =I46-I24-I51-I62-I64-I66-I90 -> 995
C57: Slaughter Weight Lambs selling weight (LBS) | D57: Input 21 | E57: 110 | F57: =E57 -> 110 | G57: 110 | H57: 110 | I57: 110
C58: Slaughter Weight Lambs selling price ($/LB) | D58: Input 22 | E58: 2.3 | F58: =E58 -> 2.3 | G58: 2.3 | H58: 2.3 | I58: 2.3
C59: Slaughter Weight Lambs selling value ($/Head) | D59: calculated | E59: =E57*E58 -> 253 | F59: =F57*F58 -> 253 | G59: =G57*G58 -> 253 | H59: =H57*H58 -> 253 | I59: =I57*I58 -> 253
B61: BREEDING STOCK SALES
C62: Breeding Ewe Sales (Number) | D62: Input 23 | E62: 0 | F62: =E62 -> 0 | G62: 0 | H62: 0 | I62: 0
C63: Breeding Ewe Selling Price ($/Head) | D63: Input 24 | E63: 0 | F63: 0 | G63: 0 | H63: 0 | I63: 0
C64: Breeding Ram Sales (Number) | D64: Input 25 | E64: 0 | F64: 0 | G64: 0 | H64: 0 | I64: 0
C65: Breeding Ram Selling Price ($/Head) | D65: Input 26 | E65: 0 | F65: 0 | G65: 0 | H65: 0 | I65: 0
C66: Breeding Ewe Lambs Sales (Number) | D66: Input 27 | E66: 0 | F66: =E66 -> 0 | G66: 0 | H66: 0 | I66: 0
C67: Breeding Ewe Lambs Selling Price ($/Head) | D67: Input 28 | E67: 0 | F67: 0 | G67: 0 | H67: 0 | I67: 0
B69: CULL SALES | E69: =$E$15 -> Year #1 | F69: =$F$15 -> Year #2 | G69: =$G$15 -> Year #3 | H69: =$H$15 -> Year #4 | I69: =$I$15 -> Year #5
C70: Cull Ewe Sales During the year (Head) | D70: calculated | E70: =E22 -> 60 | F70: =F22 -> 60 | G70: =G22 -> 60 | H70: =H22 -> 60 | I70: =I22 -> 60
C71: Cull Ewe Average Culling Weight (LBS) | D71: Input 29 | E71: 160 | F71: =E71 -> 160 | G71: 160 | H71: 160 | I71: 160
C72: Cull Ewe Price ($/LB) | D72: Input 30 | E72: 1.25 | F72: 1.25 | G72: 1.25 | H72: 1.25 | I72: 1.25
C73: Cull Ewe Average Price Per Ewee ($/Ewe) | D73: calculated | E73: =E71*E72 -> 200 | F73: =F71*F72 -> 200 | G73: =G71*G72 -> 200 | H73: =H71*H72 -> 200 | I73: =I71*I72 -> 200
C74: Cull Ram Sales During the year (Head) | D74: calculated | E74: =E31 -> 2 | F74: =F31 -> 2 | G74: =G31 -> 2 | H74: =H31 -> 2 | I74: =I31 -> 2
C75: Cull Ram Average Culling Weight (LBS) | D75: Input 31 | E75: 250 | F75: =E75 -> 250 | G75: 250 | H75: 250 | I75: 250
C76: Cull Ram Average Price ($/LB) | D76: Input 32 | E76: 1.25 | F76: 1.25 | G76: 1.25 | H76: 1.25 | I76: 1.25
C77: Cull Ram Price - $/Ram | D77: calculated | E77: =E75*E76 -> 312.5 | F77: =F75*F76 -> 312.5 | G77: =G75*G76 -> 312.5 | H77: =H75*H76 -> 312.5 | I77: =I75*I76 -> 312.5
B79: WOOL SALES
C80: Number of Animals Sheared | D80: Input 33 | E80: =E16+E17 -> 410 | F80: =F16+F17 -> 410 | G80: =G16+G17 -> 410 | H80: =H16+H17 -> 410 | I80: =I16+I17 -> 410
C81: Average Pounds of Wool Per Animal | D81: Input 34 | E81: 8 | F81: =E81 -> 8 | G81: =F81 -> 8 | H81: =G81 -> 8 | I81: =H81 -> 8
C82: Total Pounds of Wool Sheared | D82: calculated | E82: =E80*E81 -> 3280 | F82: =F80*F81 -> 3280 | G82: =G80*G81 -> 3280 | H82: =H80*H81 -> 3280 | I82: =I80*I81 -> 3280
C83: Value of Wool Per Pound | D83: Input 35 | E83: 0.5 | F83: =E83 -> 0.5 | G83: =F83 -> 0.5 | H83: =G83 -> 0.5 | I83: =H83 -> 0.5
C84: Total Value of Wool | D84: calculated | E84: =E82*E83 -> 1640 | F84: =F82*F83 -> 1640 | G84: =G82*G83 -> 1640 | H84: =H82*H83 -> 1640 | I84: =I82*I83 -> 1640
C85: Shearing Cost Per Head | D85: Input 36 | E85: 6 | F85: =E85 -> 6 | G85: 6 | H85: 6 | I85: 6
C86: Packing/Bagging/Transportation Cost per LB | D86: Input 37 | E86: 0 | F86: 0 | G86: 0 | H86: 0 | I86: 0
C87: Total Wool Production Costs | D87: calculated | E87: =(E80*E85)+(E82*E86) -> 2460 | F87: =(F80*F85)+(F82*F86) -> 2460 | G87: =(G80*G85)+(G82*G86) -> 2460 | H87: =(H80*H85)+(H82*H86) -> 2460 | I87: =(I80*I85)+(I82*I86) -> 2460
B89: MEAT SALES
C90: Number of Butcher Lambs Slaughtered | D90: Input 38 | E90: 0 | F90: =E90 -> 0 | G90: 0 | H90: 0 | I90: 0
C91: Average Pounds of Meat Per Animal | D91: Input 39 | E91: 0 | F91: 0 | G91: 0 | H91: 0 | I91: 0
C92: Total Pounds of Meat Produced | D92: calculated | E92: =IF(E90>0.5,E90*E91,0) -> 0 | F92: =IF(F90>0.5,F90*F91,0) -> 0 | G92: =IF(G90>0.5,G90*G91,0) -> 0 | H92: =IF(H90>0.5,H90*H91,0) -> 0 | I92: =IF(I90>0.5,I90*I91,0) -> 0
C93: Sale Value of Meat Per Pound | D93: Input 40 | E93: 0 | F93: =E93 -> 0 | G93: =F93 -> 0 | H93: =G93 -> 0 | I93: =H93 -> 0
C94: Total Sales Value of Meat | D94: calculated | E94: =IF(E92>0.5,E92*E93,0) -> 0 | F94: =IF(F92>0.5,F92*F93,0) -> 0 | G94: =IF(G92>0.5,G92*G93,0) -> 0 | H94: =IF(H92>0.5,H92*H93,0) -> 0 | I94: =IF(I92>0.5,I92*I93,0) -> 0
C95: Slaughter and Packaging Cost Per Lb. | D95: Input 41 | E95: 0 | F95: =E95 -> 0 | G95: =F95 -> 0 | H95: =G95 -> 0 | I95: =H95 -> 0
C96: Total Meat Production Costs | D96: calculated | E96: =IF(E90>0.5,(E90*E91*E95),0) -> 0 | F96: =IF(F90>0.5,(F90*F91*F95),0) -> 0 | G96: =IF(G90>0.5,(G90*G91*G95),0) -> 0 | H96: =IF(H90>0.5,(H90*H91*H95),0) -> 0 | I96: =IF(I90>0.5,(I90*I91*I95),0) -> 0
B98: FEED COSTS
C99: FEED INGREDIENTS | E99: =$E$15 -> Year #1 | F99: =$F$15 -> Year #2 | G99: =$G$15 -> Year #3 | H99: =$H$15 -> Year #4 | I99: =$I$15 -> Year #5 | K99: Year #1
C100: Barley ($/tonne) | D100: Input 42 | E100: 275 | F100: =E100 -> 275 | G100: 275 | H100: 275 | I100: 275 | K100: =E100/45.92 -> 5.988675958 | L100: $ per bushel
C101: Hay ($/tonne) | D101: Input 43 | E101: 175 | F101: 175 | G101: 175 | H101: 175 | I101: 175 | K101: =E101/2204 -> 0.07940108893 | L101: $ per lb.
C102: Silage ($/tonne) | D102: Input 44 | E102: 0 | F102: 0 | G102: 0 | H102: 0 | I102: 0
C103: Pellets ($/tonne) | D103: Input 45 | E103: 0 | F103: =E103 -> 0 | G103: =F103 -> 0 | H103: =G103 -> 0 | I103: =H103 -> 0
C104: Straw ($/tonne) | D104: Input 46 | E104: 75 | F104: =E104 -> 75 | G104: 75 | H104: 75 | I104: 75 | K104: =E104/2204 -> 0.03402903811 | L104: $ per lb.
C105: Supplements ($/tonne) | D105: Input 47 | E105: 0 | F105: 0 | G105: 0 | H105: 0 | I105: 0
C106: Salt/Mineral Mix ($/tonne) | D106: Input 48 | E106: 1000 | F106: =E106 -> 1000 | G106: 1000 | H106: 1000 | I106: 1000
C107: Vitamins ($/tonne) | D107: Input 49 | E107: 0 | F107: 0 | G107: 0 | H107: 0 | I107: 0
C108: Milk Replacer ($/tonne) | D108: Input 50 | E108: 4250 | F108: 4250 | G108: 4250 | H108: 4250 | I108: 4250
C109: Other - 1 | D109: Input 51 | E109: 0 | F109: =E109 -> 0 | G109: 0 | H109: 0 | I109: 0
C110: Other - 2 (other 1-4 can be changed where) | D110: Input 52 | E110: 0 | F110: 0 | G110: 0 | H110: 0 | I110: 0
C111: Other - 3 (feed ingredients first listed/priced) | D111: Input 53 | E111: 0 | F111: =E111 -> 0 | G111: 0 | H111: 0 | I111: 0
C112: Other - 4 | D112: Input 54 | E112: 0 | F112: =E112 -> 0 | G112: 0 | H112: 0 | I112: 0
B114: FARM PRODUCED FEED PRODUCTION COSTS | E114: =E$15 -> Year #1 | F114: =F$15 -> Year #2 | G114: =G$15 -> Year #3 | H114: =H$15 -> Year #4 | I114: =I$15 -> Year #5
C115: Grain - seed, fert., chem., field work, etc. | D115: Input 55 | E115: 0 | F115: =E115 -> 0 | G115: 0 | H115: 0 | I115: 0
C116: Hay - seed, fert., cutting, baling, hauling, etc. | D116: Input 56 | E116: 0 | F116: 0 | G116: 0 | H116: 0 | I116: 0
C117: Pasture - seed, fert., water, fencing, etc. | D117: Input 57 | E117: 0 | F117: 0 | G117: 0 | H117: 0 | I117: 0
C118: TOTAL FARM FEED PRODUCTION COSTS | D118: calculated | E118: =SUM(E115:E117) -> 0 | F118: =SUM(F115:F117) -> 0 | G118: =SUM(G115:G117) -> 0 | H118: =SUM(H115:H117) -> 0 | I118: =SUM(I115:I117) -> 0
B120: FEED RATIONS
C121: Ewes - Feeding Days and Ration | E121: =E$15 -> Year #1 | F121: =F$15 -> Year #2 | G121: =G$15 -> Year #3 | H121: =H$15 -> Year #4 | I121: =I$15 -> Year #5
C122: Feeding Days (per cycle) | D122: Input 58 | E122: 42 | F122: =E122 -> 42 | G122: 42 | H122: 42 | I122: 42
C123: Ewes - Flushing/Breeding (#1) | E123: lbs/hd/day | F123: lbs/hd/day | G123: lbs/hd/day | H123: lbs/hd/day | I123: lbs/hd/day
C124: Barley | D124: Input 59 | E124: 1 | F124: 1 | G124: 1 | H124: 1 | I124: 1
C125: Hay | D125: Input 60 | E125: 4.5 | F125: 4.5 | G125: 4.5 | H125: 4.5 | I125: 4.5
C126: Silage | D126: Input 61 | E126: 0 | F126: 0 | G126: 0 | H126: 0 | I126: 0
C127: Pellets | D127: Input 62 | E127: 0 | F127: =E127 -> 0 | G127: =F127 -> 0 | H127: =G127 -> 0 | I127: =H127 -> 0
C128: Straw | D128: Input 63 | E128: 0 | F128: =E128 -> 0 | G128: 0 | H128: 0 | I128: 0
C129: Supplements | D129: Input 64 | E129: 0 | F129: 0 | G129: 0 | H129: 0 | I129: 0
C130: Salt/Mineral Mix | D130: Input 65 | E130: 0.06 | F130: 0.06 | G130: 0.06 | H130: 0.06 | I130: 0.06
C131: Vitamins | D131: Input 66 | E131: 0 | F131: 0 | G131: 0 | H131: 0 | I131: 0
C132: =C109 -> Other - 1 | D132: Input 67 | E132: 0 | F132: 0 | G132: 0 | H132: 0 | I132: 0
C133: =C110 -> Other - 2 (other 1-4 can be changed where) | D133: Input 68 | E133: 0 | F133: 0 | G133: =F133 -> 0 | H133: 0 | I133: 0
C134: =C111 -> Other - 3 (feed ingredients first listed/priced) | D134: Input 69 | E134: 0 | F134: =E134 -> 0 | G134: 0 | H134: 0 | I134: 0
C135: =C112 -> Other - 4 | D135: Input 70 | E135: 0 | F135: =E135 -> 0 | G135: 0 | H135: 0 | I135: 0
C136: Cost Per Day/Head | D136: calculated | E136: =(E124/(2204.62))*E$100+(E125/2204.62)*E$101+(E126/2204.62)*E$102+(E127/2204.62)*E$103+(E128/2204.62)*E$104+(E129/2204.62)*E$105+(E130/2204.62)*E$106+(E131/2204.62)*E$107+(E132/2204.62)*E$109+(E133/2204.62)*E$110+(E134/2204.62)*$E111+(E135/2204.62)*E$112 -> 0.5091580408 | F136: =(F124/(2204.62))*F$100+(F125/2204.62)*F$101+(F126/2204.62)*F$102+(F127/2204.62)*F$103+(F128/2204.62)*F$104+(F129/2204.62)*F$105+(F130/2204.62)*F$106+(F131/2204.62)*F$107+(F132/2204.62)*F$109+(F133/2204.62)*F$110+(F134/2204.62)*$E111+(F135/2204.62)*F$112 -> 0.5091580408 | G136: =(G124/(2204.62))*G$100+(G125/2204.62)*G$101+(G126/2204.62)*G$102+(G127/2204.62)*G$103+(G128/2204.62)*G$104+(G129/2204.62)*G$105+(G130/2204.62)*G$106+(G131/2204.62)*G$107+(G132/2204.62)*G$109+(G133/2204.62)*G$110+(G134/2204.62)*$E111+(G135/2204.62)*G$112 -> 0.5091580408 | H136: =(H124/(2204.62))*H$100+(H125/2204.62)*H$101+(H126/2204.62)*H$102+(H127/2204.62)*H$103+(H128/2204.62)*H$104+(H129/2204.62)*H$105+(H130/2204.62)*H$106+(H131/2204.62)*H$107+(H132/2204.62)*H$109+(H133/2204.62)*H$110+(H134/2204.62)*$E111+(H135/2204.62)*H$112 -> 0.5091580408 | I136: =(I124/(2204.62))*I$100+(I125/2204.62)*I$101+(I126/2204.62)*I$102+(I127/2204.62)*I$103+(I128/2204.62)*I$104+(I129/2204.62)*I$105+(I130/2204.62)*I$106+(I131/2204.62)*I$107+(I132/2204.62)*I$109+(I133/2204.62)*I$110+(I134/2204.62)*$E111+(I135/2204.62)*I$112 -> 0.5091580408
C137: Cost Per Head/Flushing and Pre-lambing | D137: calculated | E137: =E122*E136 -> 21.38463772 | F137: =F122*F136 -> 21.38463772 | G137: =G122*G136 -> 21.38463772 | H137: =H122*H136 -> 21.38463772 | I137: =I122*I136 -> 21.38463772
C139: Ewes - Feeding Days and Ration | E139: =E$15 -> Year #1 | F139: =F$15 -> Year #2 | G139: =G$15 -> Year #3 | H139: =H$15 -> Year #4 | I139: =I$15 -> Year #5
C140: Feeding Days (per cycle) | D140: Input 71 | E140: 147 | F140: =E140 -> 147 | G140: =F140 -> 147 | H140: =G140 -> 147 | I140: =H140 -> 147
C141: Ewes - Gestation Ration (#2) | E141: lbs/hd/day | F141: lbs/hd/day | G141: lbs/hd/day | H141: lbs/hd/day | I141: lbs/hd/day
C142: =C124 -> Barley | D142: Input 72 | E142: 0.5 | F142: =E142 -> 0.5 | G142: 0.5 | H142: 0.5 | I142: 0.5
C143: =C125 -> Hay | D143: Input 73 | E143: 4.5 | F143: 4.5 | G143: 4.5 | H143: 4.5 | I143: 4.5
C144: =C126 -> Silage | D144: Input 74 | E144: 0 | F144: 0 | G144: 0 | H144: 0 | I144: 0
C145: Pellets | D145: Input 75 | E145: 0 | F145: 0 | G145: 0 | H145: 0 | I145: 0
C146: =C128 -> Straw | D146: Input 76 | E146: 0.4 | F146: 0.4 | G146: 0.4 | H146: 0.4 | I146: 0.4
C147: Supplements | D147: Input 77 | E147: 0 | F147: 0 | G147: 0 | H147: 0 | I147: 0
C148: Salt/Mineral Mix | D148: Input 78 | E148: 0.06 | F148: 0.06 | G148: 0.06 | H148: 0.06 | I148: 0.06
C149: Vitamins | D149: Input 79 | E149: 0 | F149: 0 | G149: 0 | H149: 0 | I149: 0
C150: Other - 1 | D150: Input 80 | E150: 0 | F150: 0 | G150: 0 | H150: 0 | I150: 0
C151: Other - 2 (other 1-4 can be changed where) | D151: Input 81 | E151: 0 | F151: 0 | G151: 0 | H151: 0 | I151: 0
C152: Other - 3 (feed ingredients first listed/priced) | D152: Input 82 | E152: 0 | F152: 0 | G152: 0 | H152: 0 | I152: 0
C153: Other - 4 | D153: Input 83 | E153: 0 | F153: 0 | G153: 0 | H153: 0 | I153: 0
C154: Cost Per Day/Head | D154: calculated | E154: =(E142/(2204.62))*E$100+(E143/2204.62)*E$101+(E144/2204.62)*E$102+(E145/2204.62)*E$103+(E146/2204.62)*E$104+(E147/2204.62)*E$105+(E148/2204.62)*E$106+(E149/2204.62)*E$107+(E150/2204.62)*E$109+(E151/2204.62)*E$110+(E152/2204.62)*E$111+(E153/2204.62)*E$112 -> 0.4603968031 | F154: =(F142/(2204.62))*F$100+(F143/2204.62)*F$101+(F144/2204.62)*F$102+(F145/2204.62)*F$103+(F146/2204.62)*F$104+(F147/2204.62)*F$105+(F148/2204.62)*F$106+(F149/2204.62)*F$107+(F150/2204.62)*F$109+(F151/2204.62)*F$110+(F152/2204.62)*F$111+(F153/2204.62)*F$112 -> 0.4603968031 | G154: =(G142/(2204.62))*G$100+(G143/2204.62)*G$101+(G144/2204.62)*G$102+(G145/2204.62)*G$103+(G146/2204.62)*G$104+(G147/2204.62)*G$105+(G148/2204.62)*G$106+(G149/2204.62)*G$107+(G150/2204.62)*G$109+(G151/2204.62)*G$110+(G152/2204.62)*G$111+(G153/2204.62)*G$112 -> 0.4603968031 | H154: =(H142/(2204.62))*H$100+(H143/2204.62)*H$101+(H144/2204.62)*H$102+(H145/2204.62)*H$103+(H146/2204.62)*H$104+(H147/2204.62)*H$105+(H148/2204.62)*H$106+(H149/2204.62)*H$107+(H150/2204.62)*H$109+(H151/2204.62)*H$110+(H152/2204.62)*H$111+(H153/2204.62)*H$112 -> 0.4603968031 | I154: =(I142/(2204.62))*I$100+(I143/2204.62)*I$101+(I144/2204.62)*I$102+(I145/2204.62)*I$103+(I146/2204.62)*I$104+(I147/2204.62)*I$105+(I148/2204.62)*I$106+(I149/2204.62)*I$107+(I150/2204.62)*I$109+(I151/2204.62)*I$110+(I152/2204.62)*I$111+(I153/2204.62)*I$112 -> 0.4603968031
C155: Cost Per Head | D155: calculated | E155: =E140*E154 -> 67.67833005 | F155: =F140*F154 -> 67.67833005 | G155: =G140*G154 -> 67.67833005 | H155: =H140*H154 -> 67.67833005 | I155: =I140*I154 -> 67.67833005
C157: Ewes - Feeding Days and Ration | E157: =E$15 -> Year #1 | F157: =F$15 -> Year #2 | G157: =G$15 -> Year #3 | H157: =H$15 -> Year #4 | I157: =I$15 -> Year #5
C158: Feeding Days (per cycle) | D158: Input 84 | E158: 42 | F158: =E158 -> 42 | G158: =F158 -> 42 | H158: =G158 -> 42 | I158: =H158 -> 42
C159: Ewes - Lacation Ration (#3) | E159: lbs/hd/day | F159: lbs/hd/day | G159: lbs/hd/day | H159: lbs/hd/day | I159: lbs/hd/day
C160: =C124 -> Barley | D160: Input 85 | E160: 2 | F160: =E160 -> 2 | G160: =F160 -> 2 | H160: =G160 -> 2 | I160: =H160 -> 2
C161: =C125 -> Hay | D161: Input 86 | E161: 4.5 | F161: 4.5 | G161: 4.5 | H161: 4.5 | I161: 4.5
C162: Silage | D162: Input 87 | E162: 0 | F162: 0 | G162: 0 | H162: 0 | I162: 0
C163: Pellets | D163: Input 88 | E163: 0 | F163: 0 | G163: 0 | H163: 0 | I163: 0
C164: Straw | D164: Input 89 | E164: 0 | F164: 0 | G164: 0 | H164: 0 | I164: 0
C165: Supplements | D165: Input 90 | E165: 0 | F165: 0 | G165: 0 | H165: 0 | I165: 0
C166: Salt/Mineral Mix | D166: Input 91 | E166: 0.06 | F166: 0.06 | G166: 0.06 | H166: 0.06 | I166: 0.06
C167: Vitamins | D167: Input 92 | E167: 0 | F167: 0 | G167: 0 | H167: 0 | I167: 0
C168: Other - 1 | D168: Input 93 | E168: 0 | F168: 0 | G168: 0 | H168: 0 | I168: 0
C169: Other - 2 (other 1-4 can be changed where) | D169: Input 94 | E169: 0 | F169: 0 | G169: 0 | H169: 0 | I169: 0
C170: Other - 3 (feed ingredients first listed/priced) | D170: Input 95 | E170: 0 | F170: 0 | G170: 0 | H170: 0 | I170: 0
C171: Other - 4 | D171: Input 96 | E171: 0 | F171: 0 | G171: 0 | H171: 0 | I171: 0
C172: Cost Per Day/Head | D172: calculated | E172: =(E160/(2204.62))*E$100+(E161/2204.62)*E$101+(E162/2204.62)*E$102+(E163/2204.62)*E$103+(E164/2204.62)*E$104+(E165/2204.62)*E$105+(E166/2204.62)*E$106+(E167/2204.62)*E$107+(E168/2204.62)*E$109+(E169/2204.62)*E$110+(E170/2204.62)*E$111+(E171/2204.62)*E$112 -> 0.6338960909 | F172: =(F160/(2204.62))*F$100+(F161/2204.62)*F$101+(F162/2204.62)*F$102+(F163/2204.62)*F$103+(F164/2204.62)*F$104+(F165/2204.62)*F$105+(F166/2204.62)*F$106+(F167/2204.62)*F$107+(F168/2204.62)*F$109+(F169/2204.62)*F$110+(F170/2204.62)*F$111+(F171/2204.62)*F$112 -> 0.6338960909 | G172: =(G160/(2204.62))*G$100+(G161/2204.62)*G$101+(G162/2204.62)*G$102+(G163/2204.62)*G$103+(G164/2204.62)*G$104+(G165/2204.62)*G$105+(G166/2204.62)*G$106+(G167/2204.62)*G$107+(G168/2204.62)*G$109+(G169/2204.62)*G$110+(G170/2204.62)*G$111+(G171/2204.62)*G$112 -> 0.6338960909 | H172: =(H160/(2204.62))*H$100+(H161/2204.62)*H$101+(H162/2204.62)*H$102+(H163/2204.62)*H$103+(H164/2204.62)*H$104+(H165/2204.62)*H$105+(H166/2204.62)*H$106+(H167/2204.62)*H$107+(H168/2204.62)*H$109+(H169/2204.62)*H$110+(H170/2204.62)*H$111+(H171/2204.62)*H$112 -> 0.6338960909 | I172: =(I160/(2204.62))*I$100+(I161/2204.62)*I$101+(I162/2204.62)*I$102+(I163/2204.62)*I$103+(I164/2204.62)*I$104+(I165/2204.62)*I$105+(I166/2204.62)*I$106+(I167/2204.62)*I$107+(I168/2204.62)*I$109+(I169/2204.62)*I$110+(I170/2204.62)*I$111+(I171/2204.62)*I$112 -> 0.6338960909
C173: Cost Per Head | D173: calculated | E173: =E158*E172 -> 26.62363582 | F173: =F158*F172 -> 26.62363582 | G173: =G158*G172 -> 26.62363582 | H173: =H158*H172 -> 26.62363582 | I173: =I158*I172 -> 26.62363582
C175: Ewes - Feeding Days and Ration | E175: =E$15 -> Year #1 | F175: =F$15 -> Year #2 | G175: =G$15 -> Year #3 | H175: =H$15 -> Year #4 | I175: =I$15 -> Year #5
C176: Feeding Days (per cycle) | D176: Input 97 | E176: 28 | F176: =E176 -> 28 | G176: =F176 -> 28 | H176: =G176 -> 28 | I176: =H176 -> 28
C177: Ewes - Low Maintenance Ration (#4) | E177: lbs/hd/day | F177: lbs/hd/day | G177: lbs/hd/day | H177: lbs/hd/day | I177: lbs/hd/day
C178: =C124 -> Barley | D178: Input 98 | E178: 0 | F178: =E178 -> 0 | G178: 0 | H178: 0 | I178: 0
C179: =C125 -> Hay | D179: Input 99 | E179: 4 | F179: =E179 -> 4 | G179: =F179 -> 4 | H179: =G179 -> 4 | I179: =H179 -> 4
C180: =C126 -> Silage | D180: Input 100 | E180: 0 | F180: 0 | G180: 0 | H180: 0 | I180: 0
C181: Pellets | D181: Input 101 | E181: 0 | F181: 0 | G181: 0 | H181: 0 | I181: 0
C182: =C128 -> Straw | D182: Input 102 | E182: 1 | F182: 1 | G182: 1 | H182: 1 | I182: 1
C183: Supplements | D183: Input 103 | E183: 0 | F183: 0 | G183: 0 | H183: 0 | I183: 0
C184: Salt/Mineral Mix | D184: Input 104 | E184: 0.06 | F184: 0.06 | G184: 0.06 | H184: 0.06 | I184: 0.06
C185: Vitamins | D185: Input 105 | E185: 0 | F185: 0 | G185: 0 | H185: 0 | I185: 0
C186: Other - 1 | D186: Input 106 | E186: 0 | F186: 0 | G186: 0 | H186: 0 | I186: 0
C187: Other - 2 (other 1-4 can be changed where) | D187: Input 107 | E187: 0 | F187: 0 | G187: 0 | H187: 0 | I187: 0
C188: Other - 3 (feed ingredients first listed/priced) | D188: Input 108 | E188: 0 | F188: =E188 -> 0 | G188: 0 | H188: 0 | I188: 0
C189: Other - 4 | D189: Input 109 | E189: 0 | F189: 0 | G189: 0 | H189: 0 | I189: 0
C190: Cost Per Day/Head | D190: calculated | E190: =(E178/(2204.62))*E$100+(E179/2204.62)*E$101+(E180/2204.62)*E$102+(E181/2204.62)*E$103+(E182/2204.62)*E$104+(E183/2204.62)*E$105+(E184/2204.62)*E$106+(E185/2204.62)*E$107+(E186/2204.62)*E$109+(E187/2204.62)*E$110+(E188/2204.62)*E$111+(E189/2204.62)*E$112 -> 0.3787500794 | F190: =(F178/(2204.62))*F$100+(F179/2204.62)*F$101+(F180/2204.62)*F$102+(F181/2204.62)*F$103+(F182/2204.62)*F$104+(F183/2204.62)*F$105+(F184/2204.62)*F$106+(F185/2204.62)*F$107+(F186/2204.62)*F$109+(F187/2204.62)*F$110+(F188/2204.62)*F$111+(F189/2204.62)*F$112 -> 0.3787500794 | G190: =(G178/(2204.62))*G$100+(G179/2204.62)*G$101+(G180/2204.62)*G$102+(G181/2204.62)*G$103+(G182/2204.62)*G$104+(G183/2204.62)*G$105+(G184/2204.62)*G$106+(G185/2204.62)*G$107+(G186/2204.62)*G$109+(G187/2204.62)*G$110+(G188/2204.62)*G$111+(G189/2204.62)*G$112 -> 0.3787500794 | H190: =(H178/(2204.62))*H$100+(H179/2204.62)*H$101+(H180/2204.62)*H$102+(H181/2204.62)*H$103+(H182/2204.62)*H$104+(H183/2204.62)*H$105+(H184/2204.62)*H$106+(H185/2204.62)*H$107+(H186/2204.62)*H$109+(H187/2204.62)*H$110+(H188/2204.62)*H$111+(H189/2204.62)*H$112 -> 0.3787500794 | I190: =(I178/(2204.62))*I$100+(I179/2204.62)*I$101+(I180/2204.62)*I$102+(I181/2204.62)*I$103+(I182/2204.62)*I$104+(I183/2204.62)*I$105+(I184/2204.62)*I$106+(I185/2204.62)*I$107+(I186/2204.62)*I$109+(I187/2204.62)*I$110+(I188/2204.62)*I$111+(I189/2204.62)*I$112 -> 0.3787500794
C191: Cost Per Head | D191: calculated | E191: =E176*E190 -> 10.60500222 | F191: =F176*F190 -> 10.60500222 | G191: =G176*G190 -> 10.60500222 | H191: =H176*H190 -> 10.60500222 | I191: =I176*I190 -> 10.60500222
C192: Total Ewe Days on Feed PER CYCLE | D192: Days | E192: =E122+E140+E158+E176 -> 259 | F192: =F122+F140+F158+F176 -> 259 | G192: =G122+G140+G158+G176 -> 259 | H192: =H122+H140+H158+H176 -> 259 | I192: =I122+I140+I158+I176 -> 259
C193: Total Feed Cost Grain & Hay Per Ewe/Cycle | D193: calculated | E193: =E137+E155+E173+E191 -> 126.2916058 | F193: =F137+F155+F173+F191 -> 126.2916058 | G193: =G137+G155+G173+G191 -> 126.2916058 | H193: =H137+H155+H173+H191 -> 126.2916058 | I193: =I137+I155+I173+I191 -> 126.2916058
C194: Total Feed Cost Grain & Hay Ewe Flock/Cycle | D194: calculated | E194: =E16*E193 -> 50516.64232 | F194: =F16*F193 -> 50516.64232 | G194: =G16*G193 -> 50516.64232 | H194: =H16*H193 -> 50516.64232 | I194: =I16*I193 -> 50516.64232
C195: Ewe Cycle Based on Feeding Rations | D195: calculated | E195: =365/(E192+E199) -> 1.409266409 | F195: =365/(F192+F199) -> 1.409266409 | G195: =365/(G192+G199) -> 1.409266409 | H195: =365/(H192+H199) -> 1.409266409 | I195: =365/(I192+I199) -> 1.409266409
C196: Maximum Monthly Ewes Lambing | D196: calculated | E196: =E16/(E210/30.4167) -> 46.97559846 | F196: =F16/(F210/30.4167) -> 46.97559846 | G196: =G16/(G210/30.4167) -> 46.97559846 | H196: =H16/(H210/30.4167) -> 46.97559846 | I196: =I16/(I210/30.4167) -> 46.97559846
C198: Ewe Pasture Grazing Costs
C199: Ewe Pasture Grazing Days (Days) | D199: Input 110 | E199: 0 | F199: =E199 -> 0 | G199: 0 | H199: 0 | I199: 0
C200: Ewe Pasture Grazing Costs $/Head/Day | D200: Input 111 | E200: 0.15 | F200: 0.15 | G200: 0.15 | H200: 0.15 | I200: 0.15
C201: Ewe Pasture Grazing Costs per cycle-RENTED | D201: calculated | E201: =IF(E200>0,E200*E199,0) -> 0 | F201: =IF(F200>0,F200*F199,0) -> 0 | G201: =IF(G200>0,G200*G199,0) -> 0 | H201: =IF(H200>0,H200*H199,0) -> 0 | I201: =IF(I200>0,I200*I199,0) -> 0
C202: Total Ewe RENTED Pasture Costs/Cycle | D202: calculated | E202: =IF(E201>0,E201*E16,0) -> 0 | F202: =IF(F201>0,F201*F16,0) -> 0 | G202: =IF(G201>0,G201*G16,0) -> 0 | H202: =IF(H201>0,H201*H16,0) -> 0 | I202: =IF(I201>0,I201*I16,0) -> 0
C203: Ewe standing grass/hay consumption (LB./Day) | D203: Input 112 | E203: 6 | F203: =E203 -> 6 | G203: =F203 -> 6 | H203: =G203 -> 6 | I203: =H203 -> 6
C204: Total grass/hay requirement per Ewe (Lb.) | D204: calculated | E204: =IF(E199>0,E199*E203,0) -> 0 | F204: =IF(F199>0,F199*F203,0) -> 0 | G204: =IF(G199>0,G199*G203,0) -> 0 | H204: =IF(H199>0,H199*H203,0) -> 0 | I204: =IF(I199>0,I199*I203,0) -> 0
C205: Total grass/hay requirement per Ewe Herd (LB.) | D205: calculated | E205: =IF(E204>0,E16*E204,0) -> 0 | F205: =IF(F204>0,F16*F204,0) -> 0 | G205: =IF(G204>0,G16*G204,0) -> 0 | H205: =IF(H204>0,H16*H204,0) -> 0 | I205: =IF(I204>0,I16*I204,0) -> 0
C206: Ewe herd grass/hay in tonnes | D206: calculated | E206: =IF(E205>0,E205/2204.6226,0) -> 0 | F206: =IF(F205>0,F205/2204.6226,0) -> 0 | G206: =IF(G205>0,G205/2204.6226,0) -> 0 | H206: =IF(H205>0,H205/2204.6226,0) -> 0 | I206: =IF(I205>0,I205/2204.6226,0) -> 0
C207: Annual Pasture Feed Cost Ewe Flock | D207: calculated | E207: =IF(E201>0,(E16*E201*(365/E210))+E117,E117) -> 0 | F207: =IF(F201>0,(F16*F201*(365/F210))+F117,F117) -> 0 | G207: =IF(G201>0,(G16*G201*(365/G210))+G117,G117) -> 0 | H207: =IF(H201>0,(H16*H201*(365/H210))+H117,H117) -> 0 | I207: =IF(I201>0,(I16*I201*(365/I210))+I117,I117) -> 0
C208: Estimated Pasture Feed Cost Per Ewe/Cycle | D208: calculated | E208: =IF(E207>0,(E207/(E16*365/E210)),0) -> 0 | F208: =IF(F207>0,(F207/(F16*365/F210)),0) -> 0 | G208: =IF(G207>0,(G207/(G16*365/G210)),0) -> 0 | H208: =IF(H207>0,(H207/(H16*365/H210)),0) -> 0 | I208: =IF(I207>0,(I207/(I16*365/I210)),0) -> 0
C209: Total Pasture Feed Cost Per Ewe/day | D209: calculated | E209: =IF(E199>0,E208/(E199*365/E210),0) -> 0 | F209: =IF(F199>0,F208/(F199*365/F210),0) -> 0 | G209: =IF(G199>0,G208/(G199*365/G210),0) -> 0 | H209: =IF(H199>0,H208/(H199*365/H210),0) -> 0 | I209: =IF(I199>0,I208/(I199*365/I210),0) -> 0
C210: TOTAL DAYS ON FEED EWES PER CYCLE | D210: calculated | E210: =E192+E199 -> 259 | F210: =F192+F199 -> 259 | G210: =G192+G199 -> 259 | H210: =H192+H199 -> 259 | I210: =I192+I199 -> 259
C212: Rams - Feeding Days and Ration | E212: =E$15 -> Year #1 | F212: =F$15 -> Year #2 | G212: =G$15 -> Year #3 | H212: =H$15 -> Year #4 | I212: =I$15 -> Year #5
C213: Feeding Days | D213: Input 113 | E213: 243 | F213: =E213 -> 243 | G213: =F213 -> 243 | H213: =G213 -> 243 | I213: =H213 -> 243
C214: Ram - General Feed Ration (#5) | E214: lbs/hd/day | F214: lbs/hd/day | G214: lbs/hd/day | H214: lbs/hd/day | I214: lbs/hd/day
C215: =C124 -> Barley | D215: Input 114 | E215: 0.75 | F215: =E215 -> 0.75 | G215: 0.75 | H215: 0.75 | I215: 0.75
C216: =C125 -> Hay | D216: Input 115 | E216: 6 | F216: =E216 -> 6 | G216: =F216 -> 6 | H216: =G216 -> 6 | I216: =H216 -> 6
C217: =C126 -> Silage | D217: Input 116 | E217: 0 | F217: 0 | G217: 0 | H217: 0 | I217: 0
C218: Pellets | D218: Input 117 | E218: 0 | F218: 0 | G218: 0 | H218: 0 | I218: 0
C219: =C128 -> Straw | D219: Input 118 | E219: 0.4 | F219: 0.4 | G219: 0.4 | H219: 0.4 | I219: 0.4
C220: Supplements | D220: Input 119 | E220: 0 | F220: 0 | G220: 0 | H220: 0 | I220: 0
... 209 more rows

Sheet Feed
C4: ANNUAL BARLEY AND HAY REQUIREMENTS
D5: Year 1 | E5: Year 2 | F5: Year 3 | G5: Year 4 | H5: Year 5
C6: Barley - Bu | D6: =D33+D46+D78 -> 6166.721097 | E6: 6166.721097 | F6: 6166.721097 | G6: 6166.721097 | H6: 6166.721097
C7: Hay - Tonne | D7: 313.4959165 | E7: 313.4959165 | F7: 313.4959165 | G7: 313.4959165 | H7: 313.4959165
B9: EWES
B10: =Input!C123 -> Ewes - Flushing/Breeding (#1)
C11: PER EWE | D11: LB./Year -1 | E11: LB./Year -2 | F11: LB./Year -3 | G11: LB./Year -4 | H11: LB./Year -5
C12: Barley - LB. | D12: =Input!E122*Input!E124 -> 42 | E12: =Input!F122*Input!F124 -> 42 | F12: =Input!G122*Input!G124 -> 42 | G12: =Input!H122*Input!H124 -> 42 | H12: =Input!I122*Input!I124 -> 42
C13: Hay - LB. | D13: =Input!E122*Input!E125 -> 189 | E13: =Input!F122*Input!F125 -> 189 | F13: =Input!G122*Input!G125 -> 189 | G13: =Input!H122*Input!H125 -> 189 | H13: =Input!I122*Input!I125 -> 189
B15: =Input!C141 -> Ewes - Gestation Ration (#2)
C16: PER EWE | D16: LB./Year -1 | E16: LB./Year -2 | F16: LB./Year -3 | G16: LB./Year -4 | H16: LB./Year -5
C17: Barley - LB. | D17: =Input!E140*Input!E142 -> 73.5 | E17: =Input!F140*Input!F142 -> 73.5 | F17: =Input!G140*Input!G142 -> 73.5 | G17: =Input!H140*Input!H142 -> 73.5 | H17: =Input!I140*Input!I142 -> 73.5
C18: Hay - LB. | D18: =Input!E140*Input!E143 -> 661.5 | E18: =Input!F140*Input!F143 -> 661.5 | F18: =Input!G140*Input!G143 -> 661.5 | G18: =Input!H140*Input!H143 -> 661.5 | H18: =Input!I140*Input!I143 -> 661.5
B20: =Input!C177 -> Ewes - Low Maintenance Ration (#4)
C21: PER EWE | D21: LB./Year -1 | E21: LB./Year -2 | F21: LB./Year -3 | G21: LB./Year -4 | H21: LB./Year -5
C22: Barley - LB. | D22: =Input!E176*Input!E178 -> 0 | E22: =Input!F176*Input!F178 -> 0 | F22: =Input!G176*Input!G178 -> 0 | G22: =Input!H176*Input!H178 -> 0 | H22: =Input!I176*Input!I178 -> 0
C23: Hay - LB. | D23: =Input!E176*Input!E179 -> 112 | E23: =Input!F176*Input!F179 -> 112 | F23: =Input!G176*Input!G179 -> 112 | G23: =Input!H176*Input!H179 -> 112 | H23: =Input!I176*Input!I179 -> 112
C25: TOTAL LB. PER EWE | D25: Year 1 | E25: Year 2 | F25: Year 3 | G25: Year 4 | H25: Year 5
C26: Barley - LB. | D26: =D12+D17+D22 -> 115.5 | E26: 115.5 | F26: 115.5 | G26: 115.5 | H26: 115.5
C27: Hay - LB. | D27: 962.5 | E27: 962.5 | F27: 962.5 | G27: 962.5 | H27: 962.5
C29: EWE HERD TOTAL | D29: Year 1 | E29: Year 2 | F29: Year 3 | G29: Year 4 | H29: Year 5
C30: Barley - LB. | D30: =Input!E16*D26 -> 46200 | E30: =Input!F16*E26 -> 46200 | F30: =Input!G16*F26 -> 46200 | G30: =Input!H16*G26 -> 46200 | H30: =Input!I16*H26 -> 46200
C31: Hay - LB. | D31: =Input!E16*D27 -> 385000 | E31: =Input!F16*E27 -> 385000 | F31: =Input!G16*F27 -> 385000 | G31: =Input!H16*G27 -> 385000 | H31: =Input!I16*H27 -> 385000
C32: TOTAL EWE HERD | D32: Year 1 | E32: Year 2 | F32: Year 3 | G32: Year 4 | H32: Year 5
C33: Barley - Bu | D33: =D30/45.93 -> 1005.878511 | E33: =E30/45.93 -> 1005.878511 | F33: =F30/45.93 -> 1005.878511 | G33: =G30/45.93 -> 1005.878511 | H33: =H30/45.93 -> 1005.878511
C34: Hay - Tonne | D34: =D31/2204 -> 174.6823956 | E34: =E31/2204 -> 174.6823956 | F34: =F31/2204 -> 174.6823956 | G34: =G31/2204 -> 174.6823956 | H34: =H31/2204 -> 174.6823956
B36: RAMS
B37: =Input!C214 -> Ram - General Feed Ration (#5)
C38: PER RAM | D38: LB./Year -1 | E38: LB./Year -2 | F38: LB./Year -3 | G38: LB./Year -4 | H38: LB./Year -5
C39: Barley - LB. | D39: =Input!E213*Input!E215 -> 182.25 | E39: =Input!F213*Input!F215 -> 182.25 | F39: =Input!G213*Input!G215 -> 182.25 | G39: =Input!H213*Input!H215 -> 182.25 | H39: =Input!I213*Input!I215 -> 182.25
C40: Hay - LB. | D40: =Input!E213*Input!E216 -> 1458 | E40: =Input!F213*Input!F216 -> 1458 | F40: =Input!G213*Input!G216 -> 1458 | G40: =Input!H213*Input!H216 -> 1458 | H40: =Input!I213*Input!I216 -> 1458
C42: RAM HERD TOTAL | D42: Year 1 | E42: Year 2 | F42: Year 3 | G42: Year 4 | H42: Year 5
C43: Barley - LB. | D43: =Input!E17*D39 -> 1822.5 | E43: =Input!F17*E39 -> 1822.5 | F43: =Input!G17*F39 -> 1822.5 | G43: =Input!H17*G39 -> 1822.5 | H43: =Input!I17*H39 -> 1822.5
C44: Hay - LB. | D44: =Input!E17*D40 -> 14580 | E44: =Input!F17*E40 -> 14580 | F44: =Input!G17*F40 -> 14580 | G44: =Input!H17*G40 -> 14580 | H44: =Input!I17*H40 -> 14580
C45: TOTAL | D45: Year 1 | E45: Year 2 | F45: Year 3 | G45: Year 4 | H45: Year 5
C46: Barley - Bu | D46: =D43/45.93 -> 39.67994775 | E46: =E43/45.93 -> 39.67994775 | F46: =F43/45.93 -> 39.67994775 | G46: =G43/45.93 -> 39.67994775 | H46: =H43/45.93 -> 39.67994775
C47: Hay - Tonne | D47: =D44/2204 -> 6.615245009 | E47: =E44/2204 -> 6.615245009 | F47: =F44/2204 -> 6.615245009 | G47: =G44/2204 -> 6.615245009 | H47: =H44/2204 -> 6.615245009
B49: LAMBS
B50: =Input!C240 -> Lambs - Creep Ration (#6)
C51: Per Lamb | D51: LB./Year -1 | E51: LB./Year -2 | F51: LB./Year -3 | G51: LB./Year -4 | H51: LB./Year -5
C52: Barley - LB. | D52: =Input!E238*Input!E241 -> 25 | E52: =Input!F238*Input!F241 -> 25 | F52: =Input!G238*Input!G241 -> 25 | G52: =Input!H238*Input!H241 -> 25 | H52: =Input!I238*Input!I241 -> 25
C53: Hay - LB. | D53: =Input!E238*Input!E242 -> 25 | E53: =Input!F238*Input!F242 -> 25 | F53: =Input!G238*Input!G242 -> 25 | G53: =Input!H238*Input!H242 -> 25 | H53: =Input!I238*Input!I242 -> 25
C54: Pellets - LB. | D54: =IF(Input!E$244>0,Input!E$238*Input!E$244,0) -> 0 | E54: =IF(Input!F$244>0,Input!F$238*Input!F$244,0) -> 0 | F54: =IF(Input!G$244>0,Input!G$238*Input!G$244,0) -> 0 | G54: =IF(Input!H$244>0,Input!H$238*Input!H$244,0) -> 0 | H54: =IF(Input!I$244>0,Input!I$238*Input!I$244,0) -> 0
B56: =Input!C260 -> Lambs - Weaning Ration (#7)
C57: Per Lamb | D57: LB./Year -1 | E57: LB./Year -2 | F57: LB./Year -3 | G57: LB./Year -4 | H57: LB./Year -5
C58: Barley - LB. | D58: =Input!E258*Input!E261 -> 30 | E58: =Input!F258*Input!F261 -> 30 | F58: =Input!G258*Input!G261 -> 30 | G58: =Input!H258*Input!H261 -> 30 | H58: =Input!I258*Input!I261 -> 30
C59: Hay - LB. | D59: =Input!E258*Input!E262 -> 30 | E59: =Input!F258*Input!F262 -> 30 | F59: =Input!G258*Input!G262 -> 30 | G59: =Input!H258*Input!H262 -> 30 | H59: =Input!I258*Input!I262 -> 30
C60: Pellets - LB. | D60: =IF(Input!$E$264>0,Input!E$264*Input!E$258,0) -> 0 | E60: =IF(Input!$E$264>0,Input!F$264*Input!F$258,0) -> 0 | F60: =IF(Input!$E$264>0,Input!G$264*Input!G$258,0) -> 0 | G60: =IF(Input!$E$264>0,Input!H$264*Input!H$258,0) -> 0 | H60: =IF(Input!$E$264>0,Input!I$264*Input!I$258,0) -> 0
B62: =Input!C280 -> Lambs - Feeder Ration (#8)
C63: Per Lamb | D63: LB./Year -1 | E63: LB./Year -2 | F63: LB./Year -3 | G63: LB./Year -4 | H63: LB./Year -5
C64: Barley - LB. | D64: =Input!E278*Input!E281 -> 150 | E64: =Input!F278*Input!F281 -> 150 | F64: =Input!G278*Input!G281 -> 150 | G64: =Input!H278*Input!H281 -> 150 | H64: =Input!I278*Input!I281 -> 150
C65: Hay - LB. | D65: =Input!E278*Input!E282 -> 200 | E65: =Input!F278*Input!F282 -> 200 | F65: =Input!G278*Input!G282 -> 200 | G65: =Input!H278*Input!H282 -> 200 | H65: =Input!I278*Input!I282 -> 200
C66: Pellets - LB. | D66: =IF(Input!$E$284>0,Input!E$284*Input!E$278,0) -> 0 | E66: =IF(Input!$E$284>0,Input!F$284*Input!F$278,0) -> 0 | F66: =IF(Input!$E$284>0,Input!G$284*Input!G$278,0) -> 0 | G66: =IF(Input!$E$284>0,Input!H$284*Input!H$278,0) -> 0 | H66: =IF(Input!$E$284>0,Input!I$284*Input!I$278,0) -> 0
C68: TOTAL PER LAMB | D68: Year 1 | E68: Year 2 | F68: Year 3 | G68: Year 4 | H68: Year 5
C69: Barley - LB. | D69: =D52+D58+D64 -> 205 | E69: 205 | F69: 205 | G69: 205 | H69: 205
C70: Hay - LB. | D70: 255 | E70: 255 | F70: 255 | G70: 255 | H70: 255
C71: Pellets - LB. | D71: =D54+D60+D66 -> 0 | E71: =E54+E60+E66 -> 0 | F71: =F54+F60+F66 -> 0 | G71: =G54+G60+G66 -> 0 | H71: =H54+H60+H66 -> 0
C73: LAMB HERD TOTAL | D73: Year 1 | E73: Year 2 | F73: Year 3 | G73: Year 4 | H73: Year 5
C74: Barley - LB. | D74: =(Input!E239*D52)+(Input!E259*D58)+(Input!E279*D64) -> 235215 | E74: =(Input!F239*E52)+(Input!F259*E58)+(Input!F279*E64) -> 235215 | F74: =(Input!G239*F52)+(Input!G259*F58)+(Input!G279*F64) -> 235215 | G74: =(Input!H239*G52)+(Input!H259*G58)+(Input!H279*G64) -> 235215 | H74: =(Input!I239*H52)+(Input!I259*H58)+(Input!I279*H64) -> 235215
C75: Hay - LB. | D75: =(Input!E239*D53)+(Input!E259*D59)+(Input!E279*D65) -> 291365 | E75: =(Input!F239*E53)+(Input!F259*E59)+(Input!F279*E65) -> 291365 | F75: =(Input!G239*F53)+(Input!G259*F59)+(Input!G279*F65) -> 291365 | G75: =(Input!H239*G53)+(Input!H259*G59)+(Input!H279*G65) -> 291365 | H75: =(Input!I239*H53)+(Input!I259*H59)+(Input!I279*H65) -> 291365
C76: Pellets - LB. | D76: =(D54*Input!E$239)+(D60*Input!E$259)+(D66*Input!E$279) -> 0 | E76: =(E54*Input!F$239)+(E60*Input!F$259)+(E66*Input!F$279) -> 0 | F76: =(F54*Input!G$239)+(F60*Input!G$259)+(F66*Input!G$279) -> 0 | G76: =(G54*Input!H$239)+(G60*Input!H$259)+(G66*Input!H$279) -> 0 | H76: =(H54*Input!I$239)+(H60*Input!I$259)+(H66*Input!I$279) -> 0
C77: LAMB HERD TOTAL | D77: Year 1 | E77: Year 2 | F77: Year 3 | G77: Year 4 | H77: Year 5
C78: Barley - Bu | D78: =D74/45.93 -> 5121.162639 | E78: =E74/45.93 -> 5121.162639 | F78: =F74/45.93 -> 5121.162639 | G78: =G74/45.93 -> 5121.162639 | H78: =H74/45.93 -> 5121.162639
C79: Hay - Tonne | D79: =D75/2204 -> 132.1982759 | E79: 132.1982759 | F79: 132.1982759 | G79: 132.1982759 | H79: 132.1982759
C80: Pellets -Tonne | D80: 0 | E80: 0 | F80: 0 | G80: 0 | H80: 0
C83: ANNUAL PASTURE REQUIREMENTS
C84: LBS. | D84: Year 1 | E84: Year 2 | F84: Year 3 | G84: Year 4 | H84: Year 5
C85: Ewes - LBS. | D85: =Input!E205 -> 0 | E85: =Input!F205 -> 0 | F85: =Input!G205 -> 0 | G85: =Input!H205 -> 0 | H85: =Input!I205 -> 0
C86: Rams - LBS. | D86: =Input!#REF! ->  | E86: =Input!#REF! ->  | F86: =Input!#REF! ->  | G86: =Input!#REF! ->  | H86: =Input!#REF! -> 
C87: Lambs - LBS. | D87: =Input!#REF! ->  | E87: =Input!#REF! ->  | F87: =Input!#REF! ->  | G87: =Input!#REF! ->  | H87: =Input!#REF! -> 
C88: TOTAL - LBS. | D88: =D85+D86+D87 ->  | E88: =E85+E86+E87 ->  | F88: =F85+F86+F87 ->  | G88: =G85+G86+G87 ->  | H88: =H85+H86+H87 -> 
C89: Tonnes | D89: Year 1 | E89: Year 2 | F89: Year 3 | G89: Year 4 | H89: Year 5
C90: Ewes | D90: =IF(D85>0,D85/2204.6226,0) -> 0 | E90: 0 | F90: 0 | G90: 0 | H90: 0
C91: Rams
C92: Lambs
C93: TOTAL | D93: =D90+D91+D92 ->  | E93: =E90+E91+E92 ->  | F93: =F90+F91+F92 ->  | G93: =G90+G91+G92 ->  | H93: =H90+H91+H92 -> 

Sheet Monthly
E2: Average Monthly Inventory | F2: 2022-01-01 | G2: 2022-02-01 | H2: 2022-03-01 | I2: 2022-04-01 | J2: 2022-05-01 | K2: 2022-06-01 | L2: 2022-07-01 | M2: 2022-08-01 | N2: 2022-09-01 | O2: 2022-10-01 | P2: 2022-11-01 | Q2: 2022-12-01 | R2: 2023-01-01 | S2: 2023-02-01 | T2: 2023-03-01 | U2: 2023-04-01 | V2: 2023-05-01 | W2: 2023-06-01 | X2: 2023-07-01 | Y2: 2023-08-01 | Z2: 2023-09-01 | AA2: 2023-10-01 | AB2: 2023-11-01 | AC2: 2023-12-01 | AD2: SUMMARY
D3: Inventory Flow #Head | F3: Month 1 | G3: Month 2 | H3: Month 3 | I3: Month 4 | J3: Month 5 | K3: Month 6 | L3: Month 7 | M3: Month 8 | N3: Month 9 | O3: Month 10 | P3: Month 11 | Q3: Month 12 | R3: Month 13 | S3: Month 14 | T3: Month 15 | U3: Month 16 | V3: Month 17 | W3: Month 18 | X3: Month 19 | Y3: Month 20 | Z3: Month 21 | AA3: Month 22 | AB3: Month 23 | AC3: Month 24 | AD3: Year #1 | AE3: Year #2
B4: Cycle | C4: Days Per | D4: Breeding Ewe Purchases | F4: =IF(Input!$E$25>0,Input!$E$25/12,0) -> 0 | G4: =IF(Input!$E$25>0,Input!$E$25/12,0) -> 0 | H4: =IF(Input!$E$25>0,Input!$E$25/12,0) -> 0 | I4: =IF(Input!$E$25>0,Input!$E$25/12,0) -> 0 | J4: =IF(Input!$E$25>0,Input!$E$25/12,0) -> 0 | K4: =IF(Input!$E$25>0,Input!$E$25/12,0) -> 0 | L4: =IF(Input!$E$25>0,Input!$E$25/12,0) -> 0 | M4: =IF(Input!$E$25>0,Input!$E$25/12,0) -> 0 | N4: =IF(Input!$E$25>0,Input!$E$25/12,0) -> 0 | O4: =IF(Input!$E$25>0,Input!$E$25/12,0) -> 0 | P4: =IF(Input!$E$25>0,Input!$E$25/12,0) -> 0 | Q4: =IF(Input!$E$25>0,Input!$E$25/12,0) -> 0 | R4: =IF(Input!$F$25>0,Input!$E$25/12,0) -> 0 | S4: =IF(Input!$F$25>0,Input!$E$25/12,0) -> 0 | T4: =IF(Input!$F$25>0,Input!$E$25/12,0) -> 0 | U4: =IF(Input!$F$25>0,Input!$E$25/12,0) -> 0 | V4: =IF(Input!$F$25>0,Input!$E$25/12,0) -> 0 | W4: =IF(Input!$F$25>0,Input!$E$25/12,0) -> 0 | X4: =IF(Input!$F$25>0,Input!$E$25/12,0) -> 0 | Y4: =IF(Input!$F$25>0,Input!$E$25/12,0) -> 0 | Z4: =IF(Input!$F$25>0,Input!$E$25/12,0) -> 0 | AA4: =IF(Input!$F$25>0,Input!$E$25/12,0) -> 0 | AB4: =IF(Input!$F$25>0,Input!$E$25/12,0) -> 0 | AC4: =IF(Input!$F$25>0,Input!$E$25/12,0) -> 0 | AD4: =SUM(F4:Q4) -> 0 | AE4: =SUM(R4:AC4) -> 0 | AF4: Breeding Ewe Purchases
A5: Ewes | B5: Time | C5: Cycle | D5: Breeding Ewe Inventory | F5: =Input!$E$16 -> 400 | G5: =F5+G4-G16-G17+G30 -> 400 | H5: 400 | I5: 400 | J5: 400 | K5: 400 | L5: 400 | M5: 400 | N5: 400 | O5: 400 | P5: 400 | Q5: 400 | R5: 400 | S5: 400 | T5: 400 | U5: 400 | V5: 400 | W5: 400 | X5: 400 | Y5: 400 | Z5: 400 | AA5: 400 | AB5: 400 | AC5: 400 | AF5: Breeding Ewe Inventory
A7: =$F$5*B7 -> 64.86486486 | B7: =(C7/$C$13) -> 0.1621621622 | C7: =Input!$E$122 -> 42 | D7: Flushing/Breeding | F7: =F5*(Input!$E$122/Input!$E$210) -> 64.86486486 | G7: =G5*(Input!$E$122/Input!$E$210) -> 64.86486486 | H7: =H5*(Input!$E$122/Input!$E$210) -> 64.86486486 | I7: =I5*(Input!$E$122/Input!$E$210) -> 64.86486486 | J7: =J5*(Input!$E$122/Input!$E$210) -> 64.86486486 | K7: =K5*(Input!$E$122/Input!$E$210) -> 64.86486486 | L7: =L5*(Input!$E$122/Input!$E$210) -> 64.86486486 | M7: =M5*(Input!$E$122/Input!$E$210) -> 64.86486486 | N7: =N5*(Input!$E$122/Input!$E$210) -> 64.86486486 | O7: =O5*(Input!$E$122/Input!$E$210) -> 64.86486486 | P7: =P5*(Input!$E$122/Input!$E$210) -> 64.86486486 | Q7: =Q5*(Input!$E$122/Input!$E$210) -> 64.86486486 | R7: =R5*(Input!$F$122/Input!$F$210) -> 64.86486486 | S7: =S5*(Input!$F$122/Input!$F$210) -> 64.86486486 | T7: =T5*(Input!$F$122/Input!$F$210) -> 64.86486486 | U7: =U5*(Input!$F$122/Input!$F$210) -> 64.86486486 | V7: =V5*(Input!$F$122/Input!$F$210) -> 64.86486486 | W7: =W5*(Input!$F$122/Input!$F$210) -> 64.86486486 | X7: =X5*(Input!$F$122/Input!$F$210) -> 64.86486486 | Y7: =Y5*(Input!$F$122/Input!$F$210) -> 64.86486486 | Z7: =Z5*(Input!$F$122/Input!$F$210) -> 64.86486486 | AA7: =AA5*(Input!$F$122/Input!$F$210) -> 64.86486486 | AB7: =AB5*(Input!$F$122/Input!$F$210) -> 64.86486486 | AC7: =AC5*(Input!$F$122/Input!$F$210) -> 64.86486486
A8: =$F$5*B8 -> 227.027027 | B8: =(C8/$C$13) -> 0.5675675676 | C8: =Input!$E$140 -> 147 | D8: Gestation | F8: =F5*(Input!$E$140/Input!$E$210) -> 227.027027 | G8: =G5*(Input!$E$140/Input!$E$210) -> 227.027027 | H8: =H5*(Input!$E$140/Input!$E$210) -> 227.027027 | I8: =I5*(Input!$E$140/Input!$E$210) -> 227.027027 | J8: =J5*(Input!$E$140/Input!$E$210) -> 227.027027 | K8: =K5*(Input!$E$140/Input!$E$210) -> 227.027027 | L8: =L5*(Input!$E$140/Input!$E$210) -> 227.027027 | M8: =M5*(Input!$E$140/Input!$E$210) -> 227.027027 | N8: =N5*(Input!$E$140/Input!$E$210) -> 227.027027 | O8: =O5*(Input!$E$140/Input!$E$210) -> 227.027027 | P8: =P5*(Input!$E$140/Input!$E$210) -> 227.027027 | Q8: =Q5*(Input!$E$140/Input!$E$210) -> 227.027027 | R8: =R5*(Input!$F$140/Input!$F$210) -> 227.027027 | S8: =S5*(Input!$F$140/Input!$F$210) -> 227.027027 | T8: =T5*(Input!$F$140/Input!$F$210) -> 227.027027 | U8: =U5*(Input!$F$140/Input!$F$210) -> 227.027027 | V8: =V5*(Input!$F$140/Input!$F$210) -> 227.027027 | W8: =W5*(Input!$F$140/Input!$F$210) -> 227.027027 | X8: =X5*(Input!$F$140/Input!$F$210) -> 227.027027 | Y8: =Y5*(Input!$F$140/Input!$F$210) -> 227.027027 | Z8: =Z5*(Input!$F$140/Input!$F$210) -> 227.027027 | AA8: =AA5*(Input!$F$140/Input!$F$210) -> 227.027027 | AB8: =AB5*(Input!$F$140/Input!$F$210) -> 227.027027 | AC8: =AC5*(Input!$F$140/Input!$F$210) -> 227.027027
A9: =$F$5*B9 -> 64.86486486 | B9: =(C9/$C$13) -> 0.1621621622 | C9: =Input!$E$158 -> 42 | D9: Lactation | F9: =F5*(Input!$E$158/Input!$E$210) -> 64.86486486 | G9: =G5*(Input!$E$158/Input!$E$210) -> 64.86486486 | H9: =H5*(Input!$E$158/Input!$E$210) -> 64.86486486 | I9: =I5*(Input!$E$158/Input!$E$210) -> 64.86486486 | J9: =J5*(Input!$E$158/Input!$E$210) -> 64.86486486 | K9: =K5*(Input!$E$158/Input!$E$210) -> 64.86486486 | L9: =L5*(Input!$E$158/Input!$E$210) -> 64.86486486 | M9: =M5*(Input!$E$158/Input!$E$210) -> 64.86486486 | N9: =N5*(Input!$E$158/Input!$E$210) -> 64.86486486 | O9: =O5*(Input!$E$158/Input!$E$210) -> 64.86486486 | P9: =P5*(Input!$E$158/Input!$E$210) -> 64.86486486 | Q9: =Q5*(Input!$E$158/Input!$E$210) -> 64.86486486 | R9: =R5*(Input!$F$158/Input!$F$210) -> 64.86486486 | S9: =S5*(Input!$F$158/Input!$F$210) -> 64.86486486 | T9: =T5*(Input!$F$158/Input!$F$210) -> 64.86486486 | U9: =U5*(Input!$F$158/Input!$F$210) -> 64.86486486 | V9: =V5*(Input!$F$158/Input!$F$210) -> 64.86486486 | W9: =W5*(Input!$F$158/Input!$F$210) -> 64.86486486 | X9: =X5*(Input!$F$158/Input!$F$210) -> 64.86486486 | Y9: =Y5*(Input!$F$158/Input!$F$210) -> 64.86486486 | Z9: =Z5*(Input!$F$158/Input!$F$210) -> 64.86486486 | AA9: =AA5*(Input!$F$158/Input!$F$210) -> 64.86486486 | AB9: =AB5*(Input!$F$158/Input!$F$210) -> 64.86486486 | AC9: =AC5*(Input!$F$158/Input!$F$210) -> 64.86486486
A10: =$F$5*B10 -> 43.24324324 | B10: =(C10/$C$13) -> 0.1081081081 | C10: =Input!$E$176 -> 28 | D10: Low Maintenance | F10: =F5*(Input!$E$176/Input!$E$210) -> 43.24324324 | G10: =G5*(Input!$E$176/Input!$E$210) -> 43.24324324 | H10: =H5*(Input!$E$176/Input!$E$210) -> 43.24324324 | I10: =I5*(Input!$E$176/Input!$E$210) -> 43.24324324 | J10: =J5*(Input!$E$176/Input!$E$210) -> 43.24324324 | K10: =K5*(Input!$E$176/Input!$E$210) -> 43.24324324 | L10: =L5*(Input!$E$176/Input!$E$210) -> 43.24324324 | M10: =M5*(Input!$E$176/Input!$E$210) -> 43.24324324 | N10: =N5*(Input!$E$176/Input!$E$210) -> 43.24324324 | O10: =O5*(Input!$E$176/Input!$E$210) -> 43.24324324 | P10: =P5*(Input!$E$176/Input!$E$210) -> 43.24324324 | Q10: =Q5*(Input!$E$176/Input!$E$210) -> 43.24324324 | R10: =R5*(Input!$F$176/Input!$F$210) -> 43.24324324 | S10: =S5*(Input!$F$176/Input!$F$210) -> 43.24324324 | T10: =T5*(Input!$F$176/Input!$F$210) -> 43.24324324 | U10: =U5*(Input!$F$176/Input!$F$210) -> 43.24324324 | V10: =V5*(Input!$F$176/Input!$F$210) -> 43.24324324 | W10: =W5*(Input!$F$176/Input!$F$210) -> 43.24324324 | X10: =X5*(Input!$F$176/Input!$F$210) -> 43.24324324 | Y10: =Y5*(Input!$F$176/Input!$F$210) -> 43.24324324 | Z10: =Z5*(Input!$F$176/Input!$F$210) -> 43.24324324 | AA10: =AA5*(Input!$F$176/Input!$F$210) -> 43.24324324 | AB10: =AB5*(Input!$F$176/Input!$F$210) -> 43.24324324 | AC10: =AC5*(Input!$F$176/Input!$F$210) -> 43.24324324
A11: =$F$5*B11 -> 0 | B11: =(C11/$C$13) -> 0 | C11: =Input!$E$199 -> 0 | D11: Pasture | F11: =F5*(Input!$E$199/Input!$E$210) -> 0 | G11: =G5*(Input!$E$199/Input!$E$210) -> 0 | H11: =H5*(Input!$E$199/Input!$E$210) -> 0 | I11: =I5*(Input!$E$199/Input!$E$210) -> 0 | J11: =J5*(Input!$E$199/Input!$E$210) -> 0 | K11: =K5*(Input!$E$199/Input!$E$210) -> 0 | L11: =L5*(Input!$E$199/Input!$E$210) -> 0 | M11: =M5*(Input!$E$199/Input!$E$210) -> 0 | N11: =N5*(Input!$E$199/Input!$E$210) -> 0 | O11: =O5*(Input!$E$199/Input!$E$210) -> 0 | P11: =P5*(Input!$E$199/Input!$E$210) -> 0 | Q11: =Q5*(Input!$E$199/Input!$E$210) -> 0 | R11: =R5*(Input!$F$199/Input!$F$210) -> 0 | S11: =S5*(Input!$F$199/Input!$F$210) -> 0 | T11: =T5*(Input!$F$199/Input!$F$210) -> 0 | U11: =U5*(Input!$F$199/Input!$F$210) -> 0 | V11: =V5*(Input!$F$199/Input!$F$210) -> 0 | W11: =W5*(Input!$F$199/Input!$F$210) -> 0 | X11: =X5*(Input!$F$199/Input!$F$210) -> 0 | Y11: =Y5*(Input!$F$199/Input!$F$210) -> 0 | Z11: =Z5*(Input!$F$199/Input!$F$210) -> 0 | AA11: =AA5*(Input!$F$199/Input!$F$210) -> 0 | AB11: =AB5*(Input!$F$199/Input!$F$210) -> 0 | AC11: =AC5*(Input!$F$199/Input!$F$210) -> 0
C13: =SUM(C7:C11) -> 259 | D13: Breeding Ram Purchases | F13: 0 | G13: 0 | H13: 0 | I13: 0 | J13: 0 | K13: =Input!$E$32/2 -> 1 | L13: =L18+L19 -> 0 | M13: 0 | N13: 0 | O13: 0 | P13: 0 | Q13: =Input!$E$32/2 -> 1 | R13: 0 | S13: 0 | T13: 0 | U13: 0 | V13: 0 | W13: =Input!$F$32/2 -> 1 | X13: 0 | Y13: 0 | Z13: 0 | AA13: 0 | AB13: 0 | AC13: =Input!$F$32/2 -> 1 | AD13: =SUM(F13:Q13) -> 2 | AE13: =SUM(R13:AC13) -> 2 | AF13: Breeding Ram Purchases
D14: Breedng Ram Inventory | F14: =Input!$E$17 -> 10 | G14: =F14+G13-G18-G19 -> 10 | H14: =G14+H13-H18-H19 -> 10 | I14: 10 | J14: 10 | K14: 10 | L14: 10 | M14: 10 | N14: 10 | O14: =N14+O13-O18-O19 -> 10 | P14: 10 | Q14: 10 | R14: 10 | S14: 10 | T14: 10 | U14: 10 | V14: 10 | W14: 10 | X14: 10 | Y14: 10 | Z14: 10 | AA14: 10 | AB14: 10 | AC14: 10 | AF14: Breedng Ram Inventory
D16: Cull Ewe Death Loss | F16: =(Input!$E$20)/12 -> 1 | G16: =(Input!$E$20)/12 -> 1 | H16: =(Input!$E$20)/12 -> 1 | I16: =(Input!$E$20)/12 -> 1 | J16: =(Input!$E$20)/12 -> 1 | K16: =(Input!$E$20)/12 -> 1 | L16: =(Input!$E$20)/12 -> 1 | M16: =(Input!$E$20)/12 -> 1 | N16: =(Input!$E$20)/12 -> 1 | O16: =(Input!$E$20)/12 -> 1 | P16: =(Input!$E$20)/12 -> 1 | Q16: =(Input!$E$20)/12 -> 1 | R16: =(Input!$F$20)/12 -> 1 | S16: =(Input!$F$20)/12 -> 1 | T16: =(Input!$F$20)/12 -> 1 | U16: =(Input!$F$20)/12 -> 1 | V16: =(Input!$F$20)/12 -> 1 | W16: =(Input!$F$20)/12 -> 1 | X16: =(Input!$F$20)/12 -> 1 | Y16: =(Input!$F$20)/12 -> 1 | Z16: =(Input!$F$20)/12 -> 1 | AA16: =(Input!$F$20)/12 -> 1 | AB16: =(Input!$F$20)/12 -> 1 | AC16: =(Input!$F$20)/12 -> 1 | AD16: =SUM(F16:Q16) -> 12 | AE16: =SUM(R16:AC16) -> 12 | AF16: Cull Ewe Death Loss
D17: Cull Ewe Sales | F17: =(Input!$E$22)/12 -> 5 | G17: =(Input!$E$22)/12 -> 5 | H17: =(Input!$E$22)/12 -> 5 | I17: =(Input!$E$22)/12 -> 5 | J17: =(Input!$E$22)/12 -> 5 | K17: =(Input!$E$22)/12 -> 5 | L17: =(Input!$E$22)/12 -> 5 | M17: =(Input!$E$22)/12 -> 5 | N17: =(Input!$E$22)/12 -> 5 | O17: =(Input!$E$22)/12 -> 5 | P17: =(Input!$E$22)/12 -> 5 | Q17: =(Input!$E$22)/12 -> 5 | R17: =(Input!$F$22)/12 -> 5 | S17: =(Input!$F$22)/12 -> 5 | T17: =(Input!$F$22)/12 -> 5 | U17: =(Input!$F$22)/12 -> 5 | V17: =(Input!$F$22)/12 -> 5 | W17: =(Input!$F$22)/12 -> 5 | X17: =(Input!$F$22)/12 -> 5 | Y17: =(Input!$F$22)/12 -> 5 | Z17: =(Input!$F$22)/12 -> 5 | AA17: =(Input!$F$22)/12 -> 5 | AB17: =(Input!$F$22)/12 -> 5 | AC17: =(Input!$F$22)/12 -> 5 | AD17: =SUM(F17:Q17) -> 60 | AE17: =SUM(R17:AC17) -> 60 | AF17: Cull Ewe Sales
D18: Cull Ram Death Loss | K18: =(Input!$E$29)/2 -> 0 | Q18: =(Input!$E$29)/2 -> 0 | W18: =(Input!$F$29)/2 -> 0 | AC18: =(Input!$F$29)/2 -> 0 | AD18: =SUM(F18:Q18) -> 0 | AE18: =SUM(R18:AC18) -> 0 | AF18: Cull Ram Death Loss
D19: Cull Ram Sales | K19: =(Input!$E$31)/2 -> 1 | Q19: =(Input!$E$31)/2 -> 1 | W19: =(Input!$F$31)/2 -> 1 | AC19: =(Input!$F$31)/2 -> 1 | AD19: =SUM(F19:Q19) -> 2 | AE19: =SUM(R19:AC19) -> 2 | AF19: Cull Ram Sales
F21: =F2 -> 2022-01-01 | G21: 2022-02-01 | H21: 2022-03-01 | I21: 2022-04-01 | J21: 2022-05-01 | K21: 2022-06-01 | L21: 2022-07-01 | M21: 2022-08-01 | N21: 2022-09-01 | O21: 2022-10-01 | P21: 2022-11-01 | Q21: 2022-12-01 | R21: 2023-01-01 | S21: 2023-02-01 | T21: 2023-03-01 | U21: 2023-04-01 | V21: 2023-05-01 | W21: 2023-06-01 | X21: 2023-07-01 | Y21: 2023-08-01 | Z21: 2023-09-01 | AA21: 2023-10-01 | AB21: 2023-11-01 | AC21: 2023-12-01
D22: Breeding | F22: Month 1 | G22: Month 2 | H22: Month 3 | I22: Month 4 | J22: Month 5 | K22: Month 6 | L22: Month 7 | M22: Month 8 | N22: Month 9 | O22: Month 10 | P22: Month 11 | Q22: Month 12 | R22: Month 13 | S22: Month 14 | T22: Month 15 | U22: Month 16 | V22: Month 17 | W22: Month 18 | X22: Month 19 | Y22: Month 20 | Z22: Month 21 | AA22: Month 22 | AB22: Month 23 | AC22: Month 24 | AD22: Year #1 | AE22: Year #2
D23: Ewes/Ewe Lambs Bred | F23: =Input!$E$36 -> 45 | G23: =Input!$E$36 -> 45 | H23: =Input!$E$36 -> 45 | I23: =Input!$E$36 -> 45 | J23: =Input!$E$36 -> 45 | K23: =Input!$E$36 -> 45 | L23: =Input!$E$36 -> 45 | M23: =Input!$E$36 -> 45 | N23: =Input!$E$36 -> 45 | O23: =Input!$E$36 -> 45 | P23: =Input!$E$36 -> 45 | Q23: =Input!$E$36 -> 45 | R23: =Input!$F$36 -> 45 | S23: =Input!$F$36 -> 45 | T23: =Input!$F$36 -> 45 | U23: =Input!$F$36 -> 45 | V23: =Input!$F$36 -> 45 | W23: =Input!$F$36 -> 45 | X23: =Input!$F$36 -> 45 | Y23: =Input!$F$36 -> 45 | Z23: =Input!$F$36 -> 45 | AA23: =Input!$F$36 -> 45 | AB23: =Input!$F$36 -> 45 | AC23: =Input!$F$36 -> 45 | AD23: =SUM(F23:Q23) -> 540 | AE23: =SUM(R23:AC23) -> 540 | AF23: Ewes Bred
D24: Ewes Lambing | F24: =F23 -> 45 | G24: =G23 -> 45 | H24: =H23 -> 45 | I24: =I23 -> 45 | J24: =J23 -> 45 | K24: =F23 -> 45 | L24: =G23 -> 45 | M24: 45 | N24: 45 | O24: 45 | P24: 45 | Q24: 45 | R24: =M23 -> 45 | S24: 45 | T24: 45 | U24: 45 | V24: 45 | W24: 45 | X24: 45 | Y24: 45 | Z24: 45 | AA24: 45 | AB24: 45 | AC24: 45 | AD24: =SUM(F24:Q24) -> 540 | AE24: =SUM(R24:AC24) -> 540 | AF24: Ewes Lambing
D26: Lambs Born | F26: =ROUND(F24*Input!$E$37,0) -> 104 | G26: =ROUND(G24*Input!$E$37,0) -> 104 | H26: =ROUND(H24*Input!$E$37,0) -> 104 | I26: =ROUND(I24*Input!$E$37,0) -> 104 | J26: =ROUND(J24*Input!$E$37,0) -> 104 | K26: =ROUND(K24*Input!$E$37,0) -> 104 | L26: =ROUND(L24*Input!$E$37,0) -> 104 | M26: =ROUND(M24*Input!$E$37,0) -> 104 | N26: =ROUND(N24*Input!$E$37,0) -> 104 | O26: =ROUND(O24*Input!$E$37,0) -> 104 | P26: =ROUND(P24*Input!$E$37,0) -> 104 | Q26: =ROUND(Q24*Input!$E$37,0) -> 104 | R26: =ROUND(R24*Input!$F$37,0) -> 104 | S26: =ROUND(S24*Input!$F$37,0) -> 104 | T26: =ROUND(T24*Input!$F$37,0) -> 104 | U26: =ROUND(U24*Input!$F$37,0) -> 104 | V26: =ROUND(V24*Input!$F$37,0) -> 104 | W26: =ROUND(W24*Input!$F$37,0) -> 104 | X26: =ROUND(X24*Input!$F$37,0) -> 104 | Y26: =ROUND(Y24*Input!$F$37,0) -> 104 | Z26: =ROUND(Z24*Input!$F$37,0) -> 104 | AA26: =ROUND(AA24*Input!$F$37,0) -> 104 | AB26: =ROUND(AB24*Input!$F$37,0) -> 104 | AC26: =ROUND(AC24*Input!$F$37,0) -> 104 | AD26: =SUM(F26:Q26) -> 1248 | AE26: =SUM(R26:AC26) -> 1248 | AF26: Lambs Born
D27: Lambs Weaned | F27: =(1-Input!$E$40)*F26 -> 93.6 | G27: =(1-Input!$E$40)*G26 -> 93.6 | H27: =(1-Input!$E$40)*F26 -> 93.6 | I27: =(1-Input!$E$40)*G26 -> 93.6 | J27: =(1-Input!$E$40)*H26 -> 93.6 | K27: =(1-Input!$E$40)*I26 -> 93.6 | L27: =(1-Input!$E$40)*J26 -> 93.6 | M27: =(1-Input!$E$40)*K26 -> 93.6 | N27: =(1-Input!$E$40)*L26 -> 93.6 | O27: =(1-Input!$E$40)*M26 -> 93.6 | P27: =(1-Input!$E$40)*N26 -> 93.6 | Q27: =(1-Input!$E$40)*O26 -> 93.6 | R27: =(1-Input!$F$40)*P26 -> 93.6 | S27: =(1-Input!$F$40)*Q26 -> 93.6 | T27: =(1-Input!$F$40)*R26 -> 93.6 | U27: =(1-Input!$F$40)*S26 -> 93.6 | V27: =(1-Input!$F$40)*T26 -> 93.6 | W27: =(1-Input!$F$40)*U26 -> 93.6 | X27: =(1-Input!$F$40)*V26 -> 93.6 | Y27: =(1-Input!$F$40)*W26 -> 93.6 | Z27: =(1-Input!$F$40)*X26 -> 93.6 | AA27: =(1-Input!$F$40)*Y26 -> 93.6 | AB27: =(1-Input!$F$40)*Z26 -> 93.6 | AC27: =(1-Input!$F$40)*AA26 -> 93.6 | AD27: =SUM(F27:Q27) -> 1123.2 | AE27: =SUM(R27:AC27) -> 1123.2 | AF27: Lambs Weaned
D28: Feeder Lamb Sales | F28: =IF(Input!$E$51>0,Input!$E$51/12,0) -> 0 | G28: =IF(Input!$E$51>0,Input!$E$51/12,0) -> 0 | H28: =IF(Input!$E$51>0,Input!$E$51/12,0) -> 0 | I28: =IF(Input!$E$51>0,Input!$E$51/12,0) -> 0 | J28: =IF(Input!$E$51>0,Input!$E$51/12,0) -> 0 | K28: =IF(Input!$E$51>0,Input!$E$51/12,0) -> 0 | L28: =IF(Input!$E$51>0,Input!$E$51/12,0) -> 0 | M28: =IF(Input!$E$51>0,Input!$E$51/12,0) -> 0 | N28: =IF(Input!$E$51>0,Input!$E$51/12,0) -> 0 | O28: =IF(Input!$E$51>0,Input!$E$51/12,0) -> 0 | P28: =IF(Input!$E$51>0,Input!$E$51/12,0) -> 0 | Q28: =IF(Input!$E$51>0,Input!$E$51/12,0) -> 0 | R28: =IF(Input!$F$51>0,Input!$F$51/12,0) -> 0 | S28: =IF(Input!$F$51>0,Input!$F$51/12,0) -> 0 | T28: =IF(Input!$F$51>0,Input!$F$51/12,0) -> 0 | U28: =IF(Input!$F$51>0,Input!$F$51/12,0) -> 0 | V28: =IF(Input!$F$51>0,Input!$F$51/12,0) -> 0 | W28: =IF(Input!$F$51>0,Input!$F$51/12,0) -> 0 | X28: =IF(Input!$F$51>0,Input!$F$51/12,0) -> 0 | Y28: =IF(Input!$F$51>0,Input!$F$51/12,0) -> 0 | Z28: =IF(Input!$F$51>0,Input!$F$51/12,0) -> 0 | AA28: =IF(Input!$F$51>0,Input!$F$51/12,0) -> 0 | AB28: =IF(Input!$F$51>0,Input!$F$51/12,0) -> 0 | AC28: =IF(Input!$F$51>0,Input!$F$51/12,0) -> 0 | AD28: =SUM(F28:Q28) -> 0 | AE28: =SUM(R28:AC28) -> 0 | AF28: Feeder Lambs For Sales
D29: Finished Lambs Sold | F29: =IF(Input!$E$56>0,Input!$E$56/12,0) -> 82.91666667 | G29: =IF(Input!$E$56>0,Input!$E$56/12,0) -> 82.91666667 | H29: =IF(Input!$E$56>0,Input!$E$56/12,0) -> 82.91666667 | I29: =IF(Input!$E$56>0,Input!$E$56/12,0) -> 82.91666667 | J29: =IF(Input!$E$56>0,Input!$E$56/12,0) -> 82.91666667 | K29: =IF(Input!$E$56>0,Input!$E$56/12,0) -> 82.91666667 | L29: =IF(Input!$E$56>0,Input!$E$56/12,0) -> 82.91666667 | M29: =IF(Input!$E$56>0,Input!$E$56/12,0) -> 82.91666667 | N29: =IF(Input!$E$56>0,Input!$E$56/12,0) -> 82.91666667 | O29: =IF(Input!$E$56>0,Input!$E$56/12,0) -> 82.91666667 | P29: =IF(Input!$E$56>0,Input!$E$56/12,0) -> 82.91666667 | Q29: =IF(Input!$E$56>0,Input!$E$56/12,0) -> 82.91666667 | R29: =IF(Input!$F$56>0,Input!$F$56/12,0) -> 82.91666667 | S29: =IF(Input!$F$56>0,Input!$F$56/12,0) -> 82.91666667 | T29: =IF(Input!$F$56>0,Input!$F$56/12,0) -> 82.91666667 | U29: =IF(Input!$F$56>0,Input!$F$56/12,0) -> 82.91666667 | V29: =IF(Input!$F$56>0,Input!$F$56/12,0) -> 82.91666667 | W29: =IF(Input!$F$56>0,Input!$F$56/12,0) -> 82.91666667 | X29: =IF(Input!$F$56>0,Input!$F$56/12,0) -> 82.91666667 | Y29: =IF(Input!$F$56>0,Input!$F$56/12,0) -> 82.91666667 | Z29: =IF(Input!$F$56>0,Input!$F$56/12,0) -> 82.91666667 | AA29: =IF(Input!$F$56>0,Input!$F$56/12,0) -> 82.91666667 | AB29: =IF(Input!$F$56>0,Input!$F$56/12,0) -> 82.91666667 | AC29: =IF(Input!$F$56>0,Input!$F$56/12,0) -> 82.91666667 | AD29: =SUM(F29:Q29) -> 995 | AE29: =SUM(R29:AC29) -> 995 | AF29: Market Lambs Available Sale
D30: Lambs Kept Replacements | F30: =Input!$E$24/12 -> 6 | G30: =Input!$E$24/12 -> 6 | H30: =Input!$E$24/12 -> 6 | I30: =Input!$E$24/12 -> 6 | J30: =Input!$E$24/12 -> 6 | K30: =Input!$E$24/12 -> 6 | L30: =Input!$E$24/12 -> 6 | M30: =Input!$E$24/12 -> 6 | N30: =Input!$E$24/12 -> 6 | O30: =Input!$E$24/12 -> 6 | P30: =Input!$E$24/12 -> 6 | Q30: =Input!$E$24/12 -> 6 | R30: =Input!$F$24/12 -> 6 | S30: =Input!$F$24/12 -> 6 | T30: =Input!$F$24/12 -> 6 | U30: =Input!$F$24/12 -> 6 | V30: =Input!$F$24/12 -> 6 | W30: =Input!$F$24/12 -> 6 | X30: =Input!$F$24/12 -> 6 | Y30: =Input!$F$24/12 -> 6 | Z30: =Input!$F$24/12 -> 6 | AA30: =Input!$F$24/12 -> 6 | AB30: =Input!$F$24/12 -> 6 | AC30: =Input!$F$24/12 -> 6 | AD30: =SUM(F30:Q30) -> 72 | AE30: =SUM(R30:AC30) -> 72 | AF30: Wean to Market Loss
E31: jugging lambs | F31: =IF(F26>(F24*Input!$E$317),F26-(F24*Input!$E$317),0) -> 14 | G31: =IF(G26>(G24*Input!$E$317),G26-(G24*Input!$E$317),0) -> 14 | H31: =IF(H26>(H24*Input!$E$317),H26-(H24*Input!$E$317),0) -> 14 | I31: =IF(I26>(I24*Input!$E$317),I26-(I24*Input!$E$317),0) -> 14 | J31: =IF(J26>(J24*Input!$E$317),J26-(J24*Input!$E$317),0) -> 14 | K31: =IF(K26>(K24*Input!$E$317),K26-(K24*Input!$E$317),0) -> 14 | L31: =IF(L26>(L24*Input!$E$317),L26-(L24*Input!$E$317),0) -> 14 | M31: =IF(M26>(M24*Input!$E$317),M26-(M24*Input!$E$317),0) -> 14 | N31: =IF(N26>(N24*Input!$E$317),N26-(N24*Input!$E$317),0) -> 14 | O31: =IF(O26>(O24*Input!$E$317),O26-(O24*Input!$E$317),0) -> 14 | P31: =IF(P26>(P24*Input!$E$317),P26-(P24*Input!$E$317),0) -> 14 | Q31: =IF(Q26>(Q24*Input!$E$317),Q26-(Q24*Input!$E$317),0) -> 14 | R31: =IF(R26>(R24*Input!$F$317),R26-(R24*Input!$F$317),0) -> 14 | S31: =IF(S26>(S24*Input!$F$317),S26-(S24*Input!$F$317),0) -> 14 | T31: =IF(T26>(T24*Input!$F$317),T26-(T24*Input!$F$317),0) -> 14 | U31: =IF(U26>(U24*Input!$F$317),U26-(U24*Input!$F$317),0) -> 14 | V31: =IF(V26>(V24*Input!$F$317),V26-(V24*Input!$F$317),0) -> 14 | W31: =IF(W26>(W24*Input!$F$317),W26-(W24*Input!$F$317),0) -> 14 | X31: =IF(X26>(X24*Input!$F$317),X26-(X24*Input!$F$317),0) -> 14 | Y31: =IF(Y26>(Y24*Input!$F$317),Y26-(Y24*Input!$F$317),0) -> 14 | Z31: =IF(Z26>(Z24*Input!$F$317),Z26-(Z24*Input!$F$317),0) -> 14 | AA31: =IF(AA26>(AA24*Input!$F$317),AA26-(AA24*Input!$F$317),0) -> 14 | AB31: =IF(AB26>(AB24*Input!$F$317),AB26-(AB24*Input!$F$317),0) -> 14 | AC31: =IF(AC26>(AC24*Input!$F$317),AC26-(AC24*Input!$F$317),0) -> 14 | AD31: =(L26-M27)+(M26-N27)+(N26-O27)+(O26-P27)+(P26-Q27) -> 52 | AE31: =(Q26-R27)+(R26-S27)+(S26-T27)+(T26-U27)+(U26-V27)+(V26-W27)+(W26-X27)+(X26-Y27)+(Y26-Z27)+(Z26-AA27)+(AA26-AB27)+(AB26-AC27) -> 124.8 | AF31: Lamb Weaning Death Loss
F33: =F2 -> 2022-01-01 | G33: 2022-02-01 | H33: 2022-03-01 | I33: 2022-04-01 | J33: 2022-05-01 | K33: 2022-06-01 | L33: 2022-07-01 | M33: 2022-08-01 | N33: 2022-09-01 | O33: 2022-10-01 | P33: 2022-11-01 | Q33: 2022-12-01 | R33: 2023-01-01 | S33: 2023-02-01 | T33: 2023-03-01 | U33: 2023-04-01 | V33: 2023-05-01 | W33: 2023-06-01 | X33: 2023-07-01 | Y33: 2023-08-01 | Z33: 2023-09-01 | AA33: 2023-10-01 | AB33: 2023-11-01 | AC33: 2023-12-01
C34: BREAKDOWN - DAYS & AVG HEAD | F34: 31 | G34: 28 | H34: 31 | I34: 30 | J34: 31 | K34: 30 | L34: 31 | M34: 31 | N34: 30 | O34: 31 | P34: 30 | Q34: 31 | R34: =R70 -> 31 | S34: 28 | T34: 31 | U34: 30 | V34: 31 | W34: 30 | X34: 31 | Y34: 31 | Z34: 30 | AA34: 31 | AB34: 30 | AC34: 31
C35: =Input!$C$123 -> Ewes - Flushing/Breeding (#1) | E35: Days on feed | F35: =Input!$E$122 -> 42 | G35: =Input!$E$122 -> 42 | H35: =Input!$E$122 -> 42 | I35: =Input!$E$122 -> 42 | J35: =Input!$E$122 -> 42 | K35: =Input!$E$122 -> 42 | L35: =Input!$E$122 -> 42 | M35: =Input!$E$122 -> 42 | N35: =Input!$E$122 -> 42 | O35: =Input!$E$122 -> 42 | P35: =Input!$E$122 -> 42 | Q35: =Input!$E$122 -> 42 | R35: =Input!$F$122 -> 42 | S35: =Input!$F$122 -> 42 | T35: =Input!$F$122 -> 42 | U35: =Input!$F$122 -> 42 | V35: =Input!$F$122 -> 42 | W35: =Input!$F$122 -> 42 | X35: =Input!$F$122 -> 42 | Y35: =Input!$F$122 -> 42 | Z35: =Input!$F$122 -> 42 | AA35: =Input!$F$122 -> 42 | AB35: =Input!$F$122 -> 42 | AC35: =Input!$F$122 -> 42
E36: AVG Ewes | F36: =F7 -> 64.86486486 | G36: 64.86486486 | H36: 64.86486486 | I36: 64.86486486 | J36: 64.86486486 | K36: 64.86486486 | L36: 64.86486486 | M36: 64.86486486 | N36: 64.86486486 | O36: 64.86486486 | P36: 64.86486486 | Q36: 64.86486486 | R36: 64.86486486 | S36: 64.86486486 | T36: 64.86486486 | U36: 64.86486486 | V36: 64.86486486 | W36: 64.86486486 | X36: 64.86486486 | Y36: 64.86486486 | Z36: 64.86486486 | AA36: 64.86486486 | AB36: 64.86486486 | AC36: 64.86486486
C37: =Input!$C$141 -> Ewes - Gestation Ration (#2) | E37: Days on feed | F37: =Input!$E$140 -> 147 | G37: =Input!$E$140 -> 147 | H37: =Input!$E$140 -> 147 | I37: =Input!$E$140 -> 147 | J37: =Input!$E$140 -> 147 | K37: =Input!$E$140 -> 147 | L37: =Input!$E$140 -> 147 | M37: =Input!$E$140 -> 147 | N37: =Input!$E$140 -> 147 | O37: =Input!$E$140 -> 147 | P37: =Input!$E$140 -> 147 | Q37: =Input!$E$140 -> 147 | R37: =Input!$F$140 -> 147 | S37: =Input!$F$140 -> 147 | T37: =Input!$F$140 -> 147 | U37: =Input!$F$140 -> 147 | V37: =Input!$F$140 -> 147 | W37: =Input!$F$140 -> 147 | X37: =Input!$F$140 -> 147 | Y37: =Input!$F$140 -> 147 | Z37: =Input!$F$140 -> 147 | AA37: =Input!$F$140 -> 147 | AB37: =Input!$F$140 -> 147 | AC37: =Input!$F$140 -> 147
E38: AVG Ewes | F38: =F8 -> 227.027027 | G38: 227.027027 | H38: 227.027027 | I38: 227.027027 | J38: 227.027027 | K38: 227.027027 | L38: 227.027027 | M38: 227.027027 | N38: 227.027027 | O38: 227.027027 | P38: 227.027027 | Q38: 227.027027 | R38: 227.027027 | S38: 227.027027 | T38: 227.027027 | U38: 227.027027 | V38: 227.027027 | W38: 227.027027 | X38: 227.027027 | Y38: 227.027027 | Z38: 227.027027 | AA38: 227.027027 | AB38: 227.027027 | AC38: 227.027027
C39: =Input!$C$159 -> Ewes - Lacation Ration (#3) | E39: Days on feed | F39: =Input!$E$158 -> 42 | G39: =Input!$E$158 -> 42 | H39: =Input!$E$158 -> 42 | I39: =Input!$E$158 -> 42 | J39: =Input!$E$158 -> 42 | K39: =Input!$E$158 -> 42 | L39: =Input!$E$158 -> 42 | M39: =Input!$E$158 -> 42 | N39: =Input!$E$158 -> 42 | O39: =Input!$E$158 -> 42 | P39: =Input!$E$158 -> 42 | Q39: =Input!$E$158 -> 42 | R39: =Input!$F$158 -> 42 | S39: =Input!$F$158 -> 42 | T39: =Input!$F$158 -> 42 | U39: =Input!$F$158 -> 42 | V39: =Input!$F$158 -> 42 | W39: =Input!$F$158 -> 42 | X39: =Input!$F$158 -> 42 | Y39: =Input!$F$158 -> 42 | Z39: =Input!$F$158 -> 42 | AA39: =Input!$F$158 -> 42 | AB39: =Input!$F$158 -> 42 | AC39: =Input!$F$158 -> 42
E40: AVG Ewes | F40: =F9 -> 64.86486486 | G40: 64.86486486 | H40: 64.86486486 | I40: 64.86486486 | J40: 64.86486486 | K40: 64.86486486 | L40: 64.86486486 | M40: 64.86486486 | N40: 64.86486486 | O40: 64.86486486 | P40: 64.86486486 | Q40: 64.86486486 | R40: 64.86486486 | S40: 64.86486486 | T40: 64.86486486 | U40: 64.86486486 | V40: 64.86486486 | W40: 64.86486486 | X40: 64.86486486 | Y40: 64.86486486 | Z40: 64.86486486 | AA40: 64.86486486 | AB40: 64.86486486 | AC40: 64.86486486
C41: =Input!$C$177 -> Ewes - Low Maintenance Ration (#4) | E41: Days on feed | F41: =Input!$E$176 -> 28 | G41: =Input!$E$176 -> 28 | H41: =Input!$E$176 -> 28 | I41: =Input!$E$176 -> 28 | J41: =Input!$E$176 -> 28 | K41: =Input!$E$176 -> 28 | L41: =Input!$E$176 -> 28 | M41: =Input!$E$176 -> 28 | N41: =Input!$E$176 -> 28 | O41: =Input!$E$176 -> 28 | P41: =Input!$E$176 -> 28 | Q41: =Input!$E$176 -> 28 | R41: =Input!$F$176 -> 28 | S41: =Input!$F$176 -> 28 | T41: =Input!$F$176 -> 28 | U41: =Input!$F$176 -> 28 | V41: =Input!$F$176 -> 28 | W41: =Input!$F$176 -> 28 | X41: =Input!$F$176 -> 28 | Y41: =Input!$F$176 -> 28 | Z41: =Input!$F$176 -> 28 | AA41: =Input!$F$176 -> 28 | AB41: =Input!$F$176 -> 28 | AC41: =Input!$F$176 -> 28
E42: AVG Ewes | F42: =F10 -> 43.24324324 | G42: 43.24324324 | H42: 43.24324324 | I42: 43.24324324 | J42: 43.24324324 | K42: 43.24324324 | L42: 43.24324324 | M42: 43.24324324 | N42: 43.24324324 | O42: 43.24324324 | P42: 43.24324324 | Q42: 43.24324324 | R42: 43.24324324 | S42: 43.24324324 | T42: 43.24324324 | U42: 43.24324324 | V42: 43.24324324 | W42: 43.24324324 | X42: 43.24324324 | Y42: 43.24324324 | Z42: 43.24324324 | AA42: 43.24324324 | AB42: 43.24324324 | AC42: 43.24324324
C43: =Input!$C$198 -> Ewe Pasture Grazing Costs | E43: Days on feed | F43: =Input!$E$199 -> 0 | G43: =Input!$E$199 -> 0 | H43: =Input!$E$199 -> 0 | I43: =Input!$E$199 -> 0 | J43: =Input!$E$199 -> 0 | K43: =Input!$E$199 -> 0 | L43: =Input!$E$199 -> 0 | M43: =Input!$E$199 -> 0 | N43: =Input!$E$199 -> 0 | O43: =Input!$E$199 -> 0 | P43: =Input!$E$199 -> 0 | Q43: =Input!$E$199 -> 0 | R43: =Input!$F$199 -> 0 | S43: =Input!$F$199 -> 0 | T43: =Input!$F$199 -> 0 | U43: =Input!$F$199 -> 0 | V43: =Input!$F$199 -> 0 | W43: =Input!$F$199 -> 0 | X43: =Input!$F$199 -> 0 | Y43: =Input!$F$199 -> 0 | Z43: =Input!$F$199 -> 0 | AA43: =Input!$F$199 -> 0 | AB43: =Input!$F$199 -> 0 | AC43: =Input!$F$199 -> 0
E44: AVG Ewes | F44: =F11 -> 0 | G44: =G11 -> 0 | H44: 0 | I44: 0 | J44: 0 | K44: 0 | L44: 0 | M44: 0 | N44: 0 | O44: 0 | P44: 0 | Q44: 0 | R44: 0 | S44: 0 | T44: 0 | U44: 0 | V44: 0 | W44: 0 | X44: 0 | Y44: 0 | Z44: 0 | AA44: 0 | AB44: 0 | AC44: 0
E45: TOTAL DAYS EWES ON FEED/PASTURE | F45: =F35+F37+F39+F41+F43 -> 259 | G45: =G35+G37+G39+G41+G43 -> 259 | H45: 259 | I45: 259 | J45: 259 | K45: 259 | L45: 259 | M45: 259 | N45: =N35+N37+N39+N41+N43 -> 259 | O45: 259 | P45: 259 | Q45: 259 | R45: 259 | S45: 259 | T45: 259 | U45: =U35+U37+U39+U41+U43 -> 259 | V45: 259 | W45: 259 | X45: 259 | Y45: 259 | Z45: 259 | AA45: 259 | AB45: =AB35+AB37+AB39+AB41+AB43 -> 259 | AC45: =AC35+AC37+AC39+AC41+AC43 -> 259
E46: TOTAL EWES ON FEED | F46: =F36+F38+F40+F42+F44 -> 400 | G46: =G36+G38+G40+G42+G44 -> 400 | H46: 400 | I46: 400 | J46: 400 | K46: 400 | L46: 400 | M46: 400 | N46: 400 | O46: 400 | P46: 400 | Q46: 400 | R46: 400 | S46: 400 | T46: 400 | U46: =U36+U38+U40+U42+U44 -> 400 | V46: 400 | W46: 400 | X46: 400 | Y46: 400 | Z46: 400 | AA46: 400 | AB46: =AB36+AB38+AB40+AB42+AB44 -> 400 | AC46: =AC36+AC38+AC40+AC42+AC44 -> 400
C47: =Input!$C$212 -> Rams - Feeding Days and Ration | E47: Days on feed | F47: =Input!$E$213 -> 243 | R47: =Input!$F$213 -> 243
F48: =F34 -> 31 | G48: =G34 -> 28 | H48: =H34 -> 31 | I48: =I34 -> 30 | J48: =J34 -> 31 | K48: =IF(K34>K51,K34-K51,0) -> 0 | L48: =IF(L34>L51,L34-L51,0) -> 0 | M48: =IF(M34>M51,M34-M51,0) -> 0 | N48: =IF(N34>N51,N34-N51,0) -> 0 | O48: =IF(O34>O51,O34-O51,0) -> 0 | P48: =P34 -> 30 | Q48: 31 | R48: 31 | S48: 28 | T48: 31 | U48: 30 | V48: 31 | W48: =IF(W34>W51,W34-W51,0) -> 0 | X48: =IF(X34>X51,X34-X51,0) -> 0 | Y48: =IF(Y34>Y51,Y34-Y51,0) -> 0 | Z48: =IF(Z34>Z51,Z34-Z51,0) -> 0 | AA48: =IF(AA34>AA51,AA34-AA51,0) -> 0 | AB48: =AB34 -> 30 | AC48: =AC34 -> 31
E49: AVG Rams | F49: =F14 -> 10 | G49: =G14 -> 10 | H49: 10 | I49: 10 | J49: 10 | K49: 10 | L49: 10 | M49: 10 | N49: 10 | O49: 10 | P49: 10 | Q49: 10 | R49: 10 | S49: =S14 -> 10 | T49: 10 | U49: 10 | V49: 10 | W49: 10 | X49: 10 | Y49: 10 | Z49: 10 | AA49: 10 | AB49: 10 | AC49: 10
C50: =Input!$C$231 -> Ram Pasture Grazing Costs | E50: Days on Pasture | F50: =Input!$E$232 -> 122 | R50: =Input!$F$232 -> 122
K51: =IF($F$50>30,K34,$F$50) -> 30 | L51: =IF($F$50>(K34+L34),L34,$F$50-K34) -> 31 | M51: =IF($F$50>(K34+L34+M34),M34,$F$50-L54) -> 31 | N51: =IF($F$50>(L34+M34+N34),N34,$F$50-M54) -> 30 | O51: =IF($F$50>(M34+N34+O34),O34,$F$50-N54) -> 31 | W51: =IF($F$50>30,W34,$F$50) -> 30 | X51: =IF($F$50>(W34+X34),X34,$F$50-W34) -> 31 | Y51: =IF($F$50>(W34+X34+Y34),Y34,$F$50-X54) -> 31 | Z51: =IF($F$50>(X34+Y34+Z34),Z34,$F$50-Y54) -> 30 | AA51: =IF($F$50>(Y34+Z34+AA34),AA34,$F$50-Z54) -> 31
E52: AVG Rams | F52: =F14 -> 10 | G52: =G14 -> 10 | H52: 10 | I52: 10 | J52: 10 | K52: 10 | L52: 10 | M52: 10 | N52: 10 | O52: 10 | P52: 10 | Q52: 10 | R52: 10 | S52: =S14 -> 10 | T52: 10 | U52: 10 | V52: 10 | W52: 10 | X52: 10 | Y52: 10 | Z52: 10 | AA52: 10 | AB52: 10 | AC52: 10
E53: TOTAL DAYS RAMS ON FEED/PASTURE | F53: =F47+F50 -> 365 | G53: 0 | H53: 0 | I53: 0 | J53: 0 | K53: 0 | L53: 0 | M53: 0 | N53: 0 | O53: 0 | P53: 0 | Q53: 0 | R53: 365 | S53: =S47+S50 -> 0 | T53: 0 | U53: 0 | V53: 0 | W53: 0 | X53: 0 | Y53: 0 | Z53: 0 | AA53: 0 | AB53: 0 | AC53: 0
L54: =K51+L51 -> 61 | M54: =L54+M51 -> 92 | N54: =M54+N51 -> 122 | O54: =N54+O51 -> 153
F56: =F2 -> 2022-01-01 | G56: 2022-02-01 | H56: 2022-03-01 | I56: 2022-04-01 | J56: 2022-05-01 | K56: 2022-06-01 | L56: 2022-07-01 | M56: 2022-08-01 | N56: 2022-09-01 | O56: 2022-10-01 | P56: 2022-11-01 | Q56: 2022-12-01 | R56: 2023-01-01 | S56: 2023-02-01 | T56: 2023-03-01 | U56: 2023-04-01 | V56: 2023-05-01 | W56: 2023-06-01 | X56: 2023-07-01 | Y56: 2023-08-01 | Z56: 2023-09-01 | AA56: 2023-10-01 | AB56: 2023-11-01 | AC56: 2023-12-01
D57: FEED COST | F57: =F71 -> Month 1 | G57: Month 2 | H57: Month 3 | I57: Month 4 | J57: Month 5 | K57: Month 6 | L57: Month 7 | M57: Month 8 | N57: Month 9 | O57: Month 10 | P57: Month 11 | Q57: Month 12 | R57: Month 13 | S57: Month 14 | T57: Month 15 | U57: Month 16 | V57: Month 17 | W57: Month 18 | X57: Month 19 | Y57: Month 20 | Z57: Month 21 | AA57: Month 22 | AB57: Month 23 | AC57: Month 24 | AD57: Year #1 | AE57: Year #2
D58: Ewes - Flushing/Breeding | F58: =Input!$E$136*F34*F36 -> 1023.820493 | G58: =Input!$E$136*G34*G36 -> 924.7410904 | H58: =Input!$E$136*H34*H36 -> 1023.820493 | I58: =Input!$E$136*I34*I36 -> 990.7940254 | J58: =Input!$E$136*J34*J36 -> 1023.820493 | K58: =Input!$E$136*K34*K36 -> 990.7940254 | L58: =Input!$E$136*L34*L36 -> 1023.820493 | M58: =Input!$E$136*M34*M36 -> 1023.820493 | N58: =Input!$E$136*N34*N36 -> 990.7940254 | O58: =Input!$E$136*O34*O36 -> 1023.820493 | P58: =Input!$E$136*P34*P36 -> 990.7940254 | Q58: =Input!$E$136*Q34*Q36 -> 1023.820493 | R58: =Input!$F$136*R34*R36 -> 1023.820493 | S58: =Input!$F$136*S34*S36 -> 924.7410904 | T58: =Input!$F$136*T34*T36 -> 1023.820493 | U58: =Input!$F$136*U34*U36 -> 990.7940254 | V58: =Input!$F$136*V34*V36 -> 1023.820493 | W58: =Input!$F$136*W34*W36 -> 990.7940254 | X58: =Input!$F$136*X34*X36 -> 1023.820493 | Y58: =Input!$F$136*Y34*Y36 -> 1023.820493 | Z58: =Input!$F$136*Z34*Z36 -> 990.7940254 | AA58: =Input!$F$136*AA34*AA36 -> 1023.820493 | AB58: =Input!$F$136*AB34*AB36 -> 990.7940254 | AC58: =Input!$F$136*AC34*AC36 -> 1023.820493 | AD58: =SUM(F58:Q58) -> 12054.66064 | AE58: =SUM(R58:AC58) -> 12054.66064
D59: Ewes - Gestation | F59: =Input!$E$154*F34*F38 -> 3240.198041 | G59: =Input!$E$154*G34*G38 -> 2926.630489 | H59: =Input!$E$154*H34*H38 -> 3240.198041 | I59: =Input!$E$154*I34*I38 -> 3135.675524 | J59: =Input!$E$154*J34*J38 -> 3240.198041 | K59: =Input!$E$154*K34*K38 -> 3135.675524 | L59: =Input!$E$154*L34*L38 -> 3240.198041 | M59: =Input!$E$154*M34*M38 -> 3240.198041 | N59: =Input!$E$154*N34*N38 -> 3135.675524 | O59: =Input!$E$154*O34*O38 -> 3240.198041 | P59: =Input!$E$154*P34*P38 -> 3135.675524 | Q59: =Input!$E$154*Q34*Q38 -> 3240.198041 | R59: =Input!$F$154*R34*R38 -> 3240.198041 | S59: =Input!$F$154*S34*S38 -> 2926.630489 | T59: =Input!$F$154*T34*T38 -> 3240.198041 | U59: =Input!$F$154*U34*U38 -> 3135.675524 | V59: =Input!$F$154*V34*V38 -> 3240.198041 | W59: =Input!$F$154*W34*W38 -> 3135.675524 | X59: =Input!$F$154*X34*X38 -> 3240.198041 | Y59: =Input!$F$154*Y34*Y38 -> 3240.198041 | Z59: =Input!$F$154*Z34*Z38 -> 3135.675524 | AA59: =Input!$F$154*AA34*AA38 -> 3240.198041 | AB59: =Input!$F$154*AB34*AB38 -> 3135.675524 | AC59: =Input!$F$154*AC34*AC38 -> 3240.198041 | AD59: 38150.71887 | AE59: 38150.71887
D60: Ewes - Lactation | F60: =Input!$E$172*F34*F40 -> 1274.645113 | G60: =Input!$E$172*G34*G40 -> 1151.29236 | H60: =Input!$E$172*H34*H40 -> 1274.645113 | I60: =Input!$E$172*I34*I40 -> 1233.527528 | J60: =Input!$E$172*J34*J40 -> 1274.645113 | K60: =Input!$E$172*K34*K40 -> 1233.527528 | L60: =Input!$E$172*L34*L40 -> 1274.645113 | M60: =Input!$E$172*M34*M40 -> 1274.645113 | N60: =Input!$E$172*N34*N40 -> 1233.527528 | O60: =Input!$E$172*O34*O40 -> 1274.645113 | P60: =Input!$E$172*P34*P40 -> 1233.527528 | Q60: =Input!$E$172*Q34*Q40 -> 1274.645113 | R60: =Input!$F$172*R34*R40 -> 1274.645113 | S60: =Input!$F$172*S34*S40 -> 1151.29236 | T60: =Input!$F$172*T34*T40 -> 1274.645113 | U60: =Input!$F$172*U34*U40 -> 1233.527528 | V60: =Input!$F$172*V34*V40 -> 1274.645113 | W60: =Input!$F$172*W34*W40 -> 1233.527528 | X60: =Input!$F$172*X34*X40 -> 1274.645113 | Y60: =Input!$F$172*Y34*Y40 -> 1274.645113 | Z60: =Input!$F$172*Z34*Z40 -> 1233.527528 | AA60: =Input!$F$172*AA34*AA40 -> 1274.645113 | AB60: =Input!$F$172*AB34*AB40 -> 1233.527528 | AC60: =Input!$F$172*AC34*AC40 -> 1274.645113 | AD60: 15007.91826 | AE60: 15007.91826
D61: Ewes Low Maintenance | F61: =Input!$E$190*F34*F42 -> 507.7298361 | G61: =Input!$E$190*G34*G42 -> 458.5946907 | H61: =Input!$E$190*H34*H42 -> 507.7298361 | I61: =Input!$E$190*I34*I42 -> 491.3514543 | J61: =Input!$E$190*J34*J42 -> 507.7298361 | K61: =Input!$E$190*K34*K42 -> 491.3514543 | L61: =Input!$E$190*L34*L42 -> 507.7298361 | M61: =Input!$E$190*M34*M42 -> 507.7298361 | N61: =Input!$E$190*N34*N42 -> 491.3514543 | O61: =Input!$E$190*O34*O42 -> 507.7298361 | P61: =Input!$E$190*P34*P42 -> 491.3514543 | Q61: =Input!$E$190*Q34*Q42 -> 507.7298361 | R61: =Input!$F$190*R34*R42 -> 507.7298361 | S61: =Input!$F$190*S34*S42 -> 458.5946907 | T61: =Input!$F$190*T34*T42 -> 507.7298361 | U61: =Input!$F$190*U34*U42 -> 491.3514543 | V61: =Input!$F$190*V34*V42 -> 507.7298361 | W61: =Input!$F$190*W34*W42 -> 491.3514543 | X61: =Input!$F$190*X34*X42 -> 507.7298361 | Y61: =Input!$F$190*Y34*Y42 -> 507.7298361 | Z61: =Input!$F$190*Z34*Z42 -> 491.3514543 | AA61: =Input!$F$190*AA34*AA42 -> 507.7298361 | AB61: =Input!$F$190*AB34*AB42 -> 491.3514543 | AC61: =Input!$F$190*AC34*AC42 -> 507.7298361 | AD61: 5978.109361 | AE61: 5978.109361
D62: Ewes - Pasture Costs | F62: =IF(Input!$E$199>0,Input!$E$200*F43*F44,0) -> 0 | G62: =IF(Input!$E$199>0,Input!$E$200*G43*G44,0) -> 0 | H62: =IF(Input!$E$199>0,Input!$E$200*H43*H44,0) -> 0 | I62: =IF(Input!$E$199>0,Input!$E$200*I43*I44,0) -> 0 | J62: =IF(Input!$E$199>0,Input!$E$200*J43*J44,0) -> 0 | K62: =IF(Input!$E$199>0,Input!$E$200*K43*K44,0) -> 0 | L62: =IF(Input!$E$199>0,Input!$E$200*L43*L44,0) -> 0 | M62: =IF(Input!$E$199>0,Input!$E$200*M43*M44,0) -> 0 | N62: =IF(Input!$E$199>0,Input!$E$200*N43*N44,0) -> 0 | O62: =IF(Input!$E$199>0,Input!$E$200*O43*O44,0) -> 0 | P62: =IF(Input!$E$199>0,Input!$E$200*P43*P44,0) -> 0 | Q62: =IF(Input!$E$199>0,Input!$E$200*Q43*Q44,0) -> 0 | R62: =IF(Input!$F$199>0,Input!$F$200*R43*R44,0) -> 0 | S62: =IF(Input!$F$199>0,Input!$F$200*S43*S44,0) -> 0 | T62: =IF(Input!$F$199>0,Input!$F$200*T43*T44,0) -> 0 | U62: =IF(Input!$F$199>0,Input!$F$200*U43*U44,0) -> 0 | V62: =IF(Input!$F$199>0,Input!$F$200*V43*V44,0) -> 0 | W62: =IF(Input!$F$199>0,Input!$F$200*W43*W44,0) -> 0 | X62: =IF(Input!$F$199>0,Input!$F$200*X43*X44,0) -> 0 | Y62: =IF(Input!$F$199>0,Input!$F$200*Y43*Y44,0) -> 0 | Z62: =IF(Input!$F$199>0,Input!$F$200*Z43*Z44,0) -> 0 | AA62: =IF(Input!$F$199>0,Input!$F$200*AA43*AA44,0) -> 0 | AB62: =IF(Input!$F$199>0,Input!$F$200*AB43*AB44,0) -> 0 | AC62: =IF(Input!$F$199>0,Input!$F$200*AC43*AC44,0) -> 0 | AD62: 0 | AE62: 0
D63: Ram - Feeding ration | F63: =IF(Input!$E$213>300,(Input!$E$213/12)*F49*Input!$E$227,Input!$E$227*F49*F48) -> 189.3013308 | G63: =IF(Input!$E$213>300,(Input!$E$213/12)*G49*Input!$E$227,Input!$E$227*G49*G48) -> 170.9818472 | H63: =IF(Input!$E$213>300,(Input!$E$213/12)*H49*Input!$E$227,Input!$E$227*H49*H48) -> 189.3013308 | I63: =IF(Input!$E$213>300,(Input!$E$213/12)*I49*Input!$E$227,Input!$E$227*I49*I48) -> 183.1948363 | J63: =IF(Input!$E$213>300,(Input!$E$213/12)*J49*Input!$E$227,Input!$E$227*J49*J48) -> 189.3013308 | K63: =IF(Input!$E$213>300,(Input!$E$213/12)*K49*Input!$E$227,Input!$E$227*K49*K48) -> 0 | L63: =IF(Input!$E$213>300,(Input!$E$213/12)*L49*Input!$E$227,Input!$E$227*L49*L48) -> 0 | M63: =IF(Input!$E$213>300,(Input!$E$213/12)*M49*Input!$E$227,Input!$E$227*M49*M48) -> 0 | N63: =IF(Input!$E$213>300,(Input!$E$213/12)*N49*Input!$E$227,Input!$E$227*N49*N48) -> 0 | O63: =IF(Input!$E$213>300,(Input!$E$213/12)*O49*Input!$E$227,Input!$E$227*O49*O48) -> 0 | P63: =IF(Input!$E$213>300,(Input!$E$213/12)*P49*Input!$E$227,Input!$E$227*P49*P48) -> 183.1948363 | Q63: =IF(Input!$E$213>300,(Input!$E$213/12)*Q49*Input!$E$227,Input!$E$227*Q49*Q48) -> 189.3013308 | R63: =IF(Input!$F$213>300,(Input!$F$213/12)*R49*Input!$F$227,Input!$F$227*R49*R48) -> 189.3013308 | S63: =IF(Input!$F$213>300,(Input!$F$213/12)*S49*Input!$F$227,Input!$F$227*S49*S48) -> 170.9818472 | T63: =IF(Input!$F$213>300,(Input!$F$213/12)*T49*Input!$F$227,Input!$F$227*T49*T48) -> 189.3013308 | U63: =IF(Input!$F$213>300,(Input!$F$213/12)*U49*Input!$F$227,Input!$F$227*U49*U48) -> 183.1948363 | V63: =IF(Input!$F$213>300,(Input!$F$213/12)*V49*Input!$F$227,Input!$F$227*V49*V48) -> 189.3013308 | W63: =IF(Input!$F$213>300,(Input!$F$213/12)*W49*Input!$F$227,Input!$F$227*W49*W48) -> 0 | X63: =IF(Input!$F$213>300,(Input!$F$213/12)*X49*Input!$F$227,Input!$F$227*X49*X48) -> 0 | Y63: =IF(Input!$F$213>300,(Input!$F$213/12)*Y49*Input!$F$227,Input!$F$227*Y49*Y48) -> 0 | Z63: =IF(Input!$F$213>300,(Input!$F$213/12)*Z49*Input!$F$227,Input!$F$227*Z49*Z48) -> 0 | AA63: =IF(Input!$F$213>300,(Input!$F$213/12)*AA49*Input!$F$227,Input!$F$227*AA49*AA48) -> 0 | AB63: =IF(Input!$F$213>300,(Input!$F$213/12)*AB49*Input!$F$227,Input!$F$227*AB49*AB48) -> 183.1948363 | AC63: =IF(Input!$F$213>300,(Input!$F$213/12)*AC49*Input!$F$227,Input!$F$227*AC49*AC48) -> 189.3013308 | AD63: 1294.576843 | AE63: 1294.576843
D64: Ram - Pasture costs | F64: =IF(Input!$E$232>60,(Input!$E$233)*F51*F52,0) -> 0 | G64: =IF(Input!$E$232>60,(Input!$E$233)*G51*G52,0) -> 0 | H64: =IF(Input!$E$232>60,(Input!$E$233)*H51*H52,0) -> 0 | I64: =IF(Input!$E$232>60,(Input!$E$233)*I51*I52,0) -> 0 | J64: =IF(Input!$E$232>60,(Input!$E$233)*J51*J52,0) -> 0 | K64: =IF(Input!$E$232>60,(Input!$E$233)*K51*K52,0) -> 45 | L64: =IF(Input!$E$232>60,(Input!$E$233)*L51*L52,0) -> 46.5 | M64: =IF(Input!$E$232>60,(Input!$E$233)*M51*M52,0) -> 46.5 | N64: =IF(Input!$E$232>60,(Input!$E$233)*N51*N52,0) -> 45 | O64: =IF(Input!$E$232>60,(Input!$E$233)*O51*O52,0) -> 46.5 | P64: =IF(Input!$E$232>60,(Input!$E$233)*P51*P52,0) -> 0 | Q64: =IF(Input!$E$232>60,(Input!$E$233)*Q51*Q52,0) -> 0 | R64: =IF(Input!$F$232>60,(Input!$F$233)*R51*R52,0) -> 0 | S64: =IF(Input!$F$232>60,(Input!$F$233)*S51*S52,0) -> 0 | T64: =IF(Input!$F$232>60,(Input!$F$233)*T51*T52,0) -> 0 | U64: =IF(Input!$F$232>60,(Input!$F$233)*U51*U52,0) -> 0 | V64: =IF(Input!$F$232>60,(Input!$F$233)*V51*V52,0) -> 0 | W64: =IF(Input!$F$232>60,(Input!$F$233)*W51*W52,0) -> 45 | X64: =IF(Input!$F$232>60,(Input!$F$233)*X51*X52,0) -> 46.5 | Y64: =IF(Input!$F$232>60,(Input!$F$233)*Y51*Y52,0) -> 46.5 | Z64: =IF(Input!$F$232>60,(Input!$F$233)*Z51*Z52,0) -> 45 | AA64: =IF(Input!$F$232>60,(Input!$F$233)*AA51*AA52,0) -> 46.5 | AB64: =IF(Input!$F$232>60,(Input!$F$233)*AB51*AB52,0) -> 0 | AC64: =IF(Input!$F$232>60,(Input!$F$233)*AC51*AC52,0) -> 0 | AD64: 229.5 | AE64: 229.5
E65: TOTAL BREEDING FEED | F65: =SUM(F58:F64) -> 6235.694814 | G65: =SUM(G58:G64) -> 5632.240477 | H65: 6235.694814 | I65: 6034.543368 | J65: 6235.694814 | K65: 5896.348532 | L65: 6092.893483 | M65: 6092.893483 | N65: 5896.348532 | O65: 6092.893483 | P65: 6034.543368 | Q65: 6235.694814 | R65: =SUM(R58:R64) -> 6235.694814 | S65: 5632.240477 | T65: 6235.694814 | U65: 6034.543368 | V65: 6235.694814 | W65: 5896.348532 | X65: 6092.893483 | Y65: 6092.893483 | Z65: 5896.348532 | AA65: 6092.893483 | AB65: 6034.543368 | AC65: 6235.694814 | AD65: 72715.48398 | AE65: 72715.48398
D69: Average Animals Per Month | F69: =F2 -> 2022-01-01 | G69: 2022-02-01 | H69: 2022-03-01 | I69: 2022-04-01 | J69: 2022-05-01 | K69: 2022-06-01 | L69: 2022-07-01 | M69: 2022-08-01 | N69: 2022-09-01 | O69: 2022-10-01 | P69: 2022-11-01 | Q69: 2022-12-01 | R69: 2023-01-01 | S69: 2023-02-01 | T69: 2023-03-01 | U69: 2023-04-01 | V69: 2023-05-01 | W69: 2023-06-01 | X69: 2023-07-01 | Y69: 2023-08-01 | Z69: 2023-09-01 | AA69: 2023-10-01 | AB69: 2023-11-01 | AC69: 2023-12-01
F70: 31 | G70: 28 | H70: 31 | I70: 30 | J70: 31 | K70: 30 | L70: 31 | M70: 31 | N70: 30 | O70: 31 | P70: 30 | Q70: 31 | R70: 31 | S70: 28 | T70: 31 | U70: 30 | V70: 31 | W70: 30 | X70: 31 | Y70: 31 | Z70: 30 | AA70: 31 | AB70: 30 | AC70: 31
B71: Annual Days | C71: Per Cycle | D71: FEEDING DAYS | E71: Weeks | F71: =F22 -> Month 1 | G71: Month 2 | H71: Month 3 | I71: Month 4 | J71: Month 5 | K71: Month 6 | L71: Month 7 | M71: Month 8 | N71: Month 9 | O71: Month 10 | P71: Month 11 | Q71: Month 12 | R71: Month 13 | S71: Month 14 | T71: Month 15 | U71: Month 16 | V71: Month 17 | W71: Month 18 | X71: Month 19 | Y71: Month 20 | Z71: Month 21 | AA71: Month 22 | AB71: Month 23 | AC71: Month 24
B72: Year #1 | C72: Year #2 | D72: =SUM(B73:B75) -> 180 | E72: =SUM(B73:B75)/7 -> 25.71428571
B73: =Input!$E$238 -> 50 | C73: =Input!$F$238 -> 50 | D73: Lambs - Creep | F73: =(Input!$E$239)/12*($B$73/F70) -> 167.7419355 | G73: =(Input!$E$239)/12*($B$73/G70) -> 185.7142857 | H73: =(Input!$E$239)/12*($B$73/H70) -> 167.7419355 | I73: =(Input!$E$239)/12*($B$73/I70) -> 173.3333333 | J73: =(Input!$E$239)/12*($B$73/J70) -> 167.7419355 | K73: =(Input!$E$239)/12*($B$73/K70) -> 173.3333333 | L73: =(Input!$E$239)/12*($B$73/L70) -> 167.7419355 | M73: =(Input!$E$239)/12*($B$73/M70) -> 167.7419355 | N73: =(Input!$E$239)/12*($B$73/N70) -> 173.3333333 | O73: =(Input!$E$239)/12*($B$73/O70) -> 167.7419355 | P73: =(Input!$E$239)/12*($B$73/P70) -> 173.3333333 | Q73: =(Input!$E$239)/12*($B$73/Q70) -> 167.7419355 | R73: =(Input!$F$239)/12*($B$73/R70) -> 167.7419355 | S73: =(Input!$F$239)/12*($B$73/S70) -> 185.7142857 | T73: =(Input!$F$239)/12*($B$73/T70) -> 167.7419355 | U73: =(Input!$F$239)/12*($B$73/U70) -> 173.3333333 | V73: =(Input!$F$239)/12*($B$73/V70) -> 167.7419355 | W73: =(Input!$F$239)/12*($B$73/W70) -> 173.3333333 | X73: =(Input!$F$239)/12*($B$73/X70) -> 167.7419355 | Y73: =(Input!$F$239)/12*($B$73/Y70) -> 167.7419355 | Z73: =(Input!$F$239)/12*($B$73/Z70) -> 173.3333333 | AA73: =(Input!$F$239)/12*($B$73/AA70) -> 167.7419355 | AB73: =(Input!$F$239)/12*($B$73/AB70) -> 173.3333333 | AC73: =(Input!$F$239)/12*($B$73/AC70) -> 167.7419355
B74: =Input!$E$258 -> 30 | C74: =Input!$F$258 -> 30 | D74: Lambs - Weaning | F74: =(Input!$E$259)/12*($B$74/F70) -> 95.60483871 | G74: =(Input!$E$259)/12*($B$74/G70) -> 105.8482143 | H74: =(Input!$E$259)/12*($B$74/H70) -> 95.60483871 | I74: =(Input!$E$259)/12*($B$74/I70) -> 98.79166667 | J74: =(Input!$E$259)/12*($B$74/J70) -> 95.60483871 | K74: =(Input!$E$259)/12*($B$74/K70) -> 98.79166667 | L74: =(Input!$E$259)/12*($B$74/L70) -> 95.60483871 | M74: =(Input!$E$259)/12*($B$74/M70) -> 95.60483871 | N74: =(Input!$E$259)/12*($B$74/N70) -> 98.79166667 | O74: =(Input!$E$259)/12*($B$74/O70) -> 95.60483871 | P74: =(Input!$E$259)/12*($B$74/P70) -> 98.79166667 | Q74: =(Input!$E$259)/12*($B$74/Q70) -> 95.60483871 | R74: =(Input!$F$259)/12*($B$74/R70) -> 95.60483871 | S74: =(Input!$F$259)/12*($B$74/S70) -> 105.8482143 | T74: =(Input!$F$259)/12*($B$74/T70) -> 95.60483871 | U74: =(Input!$F$259)/12*($B$74/U70) -> 98.79166667 | V74: =(Input!$F$259)/12*($B$74/V70) -> 95.60483871 | W74: =(Input!$F$259)/12*($B$74/W70) -> 98.79166667 | X74: =(Input!$F$259)/12*($B$74/X70) -> 95.60483871 | Y74: =(Input!$F$259)/12*($B$74/Y70) -> 95.60483871 | Z74: =(Input!$F$259)/12*($B$74/Z70) -> 98.79166667 | AA74: =(Input!$F$259)/12*($B$74/AA70) -> 95.60483871 | AB74: =(Input!$F$259)/12*($B$74/AB70) -> 98.79166667 | AC74: =(Input!$F$259)/12*($B$74/AC70) -> 95.60483871
B75: =Input!$E$278 -> 100 | C75: =Input!$F$278 -> 100 | D75: Lambs - Feeder | F75: =Input!$E$279/12*($B$75/F70) -> 301.8817204 | G75: =Input!$E$279/12*($B$75/G70) -> 334.2261905 | H75: =Input!$E$279/12*($B$75/H70) -> 301.8817204 | I75: =Input!$E$279/12*($B$75/I70) -> 311.9444444 | J75: =Input!$E$279/12*($B$75/J70) -> 301.8817204 | K75: =Input!$E$279/12*($B$75/K70) -> 311.9444444 | L75: =Input!$E$279/12*($B$75/L70) -> 301.8817204 | M75: =Input!$E$279/12*($B$75/M70) -> 301.8817204 | N75: =Input!$E$279/12*($B$75/N70) -> 311.9444444 | O75: =Input!$E$279/12*($B$75/O70) -> 301.8817204 | P75: =Input!$E$279/12*($B$75/P70) -> 311.9444444 | Q75: =Input!$E$279/12*($B$75/Q70) -> 301.8817204 | R75: =Input!$F$279/12*($B$75/R70) -> 301.8817204 | S75: =Input!$F$279/12*($B$75/S70) -> 334.2261905 | T75: =Input!$F$279/12*($B$75/T70) -> 301.8817204 | U75: =Input!$F$279/12*($B$75/U70) -> 311.9444444 | V75: =Input!$F$279/12*($B$75/V70) -> 301.8817204 | W75: =Input!$F$279/12*($B$75/W70) -> 311.9444444 | X75: =Input!$F$279/12*($B$75/X70) -> 301.8817204 | Y75: =Input!$F$279/12*($B$75/Y70) -> 301.8817204 | Z75: =Input!$F$279/12*($B$75/Z70) -> 311.9444444 | AA75: =Input!$F$279/12*($B$75/AA70) -> 301.8817204 | AB75: =Input!$F$279/12*($B$75/AB70) -> 311.9444444 | AC75: =Input!$F$279/12*($B$75/AC70) -> 301.8817204
B76: =SUM(B73:B75) -> 180 | C76: =SUM(C73:C75) -> 180 | E76: Average Monthly Inventory | F76: =SUM(F73:F75) -> 565.2284946 | G76: 625.7886905 | H76: 565.2284946 | I76: 584.0694444 | J76: 565.2284946 | K76: 584.0694444 | L76: 565.2284946 | M76: 565.2284946 | N76: 584.0694444 | O76: 565.2284946 | P76: 584.0694444 | Q76: 565.2284946 | R76: 565.2284946 | S76: 625.7886905 | T76: 565.2284946 | U76: 584.0694444 | V76: 565.2284946 | W76: 584.0694444 | X76: 565.2284946 | Y76: 565.2284946 | Z76: 584.0694444 | AA76: 565.2284946 | AB76: 584.0694444 | AC76: 565.2284946
F80: =F2 -> 2022-01-01 | G80: 2022-02-01 | H80: 2022-03-01 | I80: 2022-04-01 | J80: 2022-05-01 | K80: 2022-06-01 | L80: 2022-07-01 | M80: 2022-08-01 | N80: 2022-09-01 | O80: 2022-10-01 | P80: 2022-11-01 | Q80: 2022-12-01 | R80: 2023-01-01 | S80: 2023-02-01 | T80: 2023-03-01 | U80: 2023-04-01 | V80: 2023-05-01 | W80: 2023-06-01 | X80: 2023-07-01 | Y80: 2023-08-01 | Z80: 2023-09-01 | AA80: 2023-10-01 | AB80: 2023-11-01 | AC80: 2023-12-01
D81: FEED COSTS PER MONTH | F81: 31 | G81: 28 | H81: 31 | I81: 30 | J81: 31 | K81: 30 | L81: 31 | M81: 31 | N81: 30 | O81: 31 | P81: 30 | Q81: 31 | R81: 31 | S81: 28 | T81: 31 | U81: 30 | V81: 31 | W81: 30 | X81: 31 | Y81: 31 | Z81: 30 | AA81: 31 | AB81: 30 | AC81: 31
D82: Feed Ration | E82: Days/Head | F82: =F22 -> Month 1 | G82: Month 2 | H82: Month 3 | I82: Month 4 | J82: Month 5 | K82: Month 6 | L82: Month 7 | M82: Month 8 | N82: Month 9 | O82: Month 10 | P82: Month 11 | Q82: Month 12 | R82: Month 13 | S82: Month 14 | T82: Month 15 | U82: Month 16 | V82: Month 17 | W82: Month 18 | X82: Month 19 | Y82: Month 20 | Z82: Month 21 | AA82: Month 22 | AB82: Month 23 | AC82: Month 24 | AD82: Year #1 | AE82: Year #2
D83: =D73 -> Lambs - Creep | E83: =Input!$F$238 -> 50 | F83: =IF(F73>0,F73*(F81*Input!$E$254),0) -> 555.8932303 | G83: =IF(G73>0,G73*(G81*Input!$E$254),0) -> 555.8932303 | H83: =IF(H73>0,H73*(H81*Input!$E$254),0) -> 555.8932303 | I83: =IF(I73>0,I73*(I81*Input!$E$254),0) -> 555.8932303 | J83: =IF(J73>0,J73*(J81*Input!$E$254),0) -> 555.8932303 | K83: =IF(K73>0,K73*(K81*Input!$E$254),0) -> 555.8932303 | L83: =IF(L73>0,L73*(L81*Input!$E$254),0) -> 555.8932303 | M83: =IF(M73>0,M73*(M81*Input!$E$254),0) -> 555.8932303 | N83: =IF(N73>0,N73*(N81*Input!$E$254),0) -> 555.8932303 | O83: =IF(O73>0,O73*(O81*Input!$E$254),0) -> 555.8932303 | P83: =IF(P73>0,P73*(P81*Input!$E$254),0) -> 555.8932303 | Q83: =IF(Q73>0,Q73*(Q81*Input!$E$254),0) -> 555.8932303 | R83: =IF(R73>0,R73*(R81*Input!$F$254),0) -> 555.8932303 | S83: =IF(S73>0,S73*(S70*Input!$F$254),0) -> 555.8932303 | T83: =IF(T73>0,T73*(T70*Input!$F$254),0) -> 555.8932303 | U83: =IF(U73>0,U73*(U70*Input!$F$254),0) -> 555.8932303 | V83: =IF(V73>0,V73*(V70*Input!$F$254),0) -> 555.8932303 | W83: =IF(W73>0,W73*(W70*Input!$F$254),0) -> 555.8932303 | X83: =IF(X73>0,X73*(X70*Input!$F$254),0) -> 555.8932303 | Y83: =IF(Y73>0,Y73*(Y70*Input!$F$254),0) -> 555.8932303 | Z83: =IF(Z73>0,Z73*(Z70*Input!$F$254),0) -> 555.8932303 | AA83: =IF(AA73>0,AA73*(AA70*Input!$F$254),0) -> 555.8932303 | AB83: =IF(AB73>0,AB73*(AB70*Input!$F$254),0) -> 555.8932303 | AC83: =IF(AC73>0,AC73*(AC70*Input!$F$254),0) -> 555.8932303 | AD83: =SUM(F83:Q83) -> 6670.718763 | AE83: =SUM(R83:AC83) -> 6670.718763
D84: =D74 -> Lambs - Weaning | E84: =Input!$F$258 -> 30 | F84: =IF(F74>0,F74*(F81*Input!$E$274),0) -> 609.9924533 | G84: =IF(G74>0,G74*(G81*Input!$E$274),0) -> 609.9924533 | H84: =IF(H74>0,H74*(H81*Input!$E$274),0) -> 609.9924533 | I84: =IF(I74>0,I74*(I81*Input!$E$274),0) -> 609.9924533 | J84: =IF(J74>0,J74*(J81*Input!$E$274),0) -> 609.9924533 | K84: =IF(K74>0,K74*(K81*Input!$E$274),0) -> 609.9924533 | L84: =IF(L74>0,L74*(L81*Input!$E$274),0) -> 609.9924533 | M84: =IF(M74>0,M74*(M81*Input!$E$274),0) -> 609.9924533 | N84: =IF(N74>0,N74*(N81*Input!$E$274),0) -> 609.9924533 | O84: =IF(O74>0,O74*(O81*Input!$E$274),0) -> 609.9924533 | P84: =IF(P74>0,P74*(P81*Input!$E$274),0) -> 609.9924533 | Q84: =IF(Q74>0,Q74*(Q81*Input!$E$274),0) -> 609.9924533 | R84: =IF(R74>0,R74*(R81*Input!$F$274),0) -> 609.9924533 | S84: =IF(S74>0,S74*(S70*Input!$F$274),0) -> 609.9924533 | T84: =IF(T74>0,T74*(T70*Input!$F$274),0) -> 609.9924533 | U84: =IF(U74>0,U74*(U70*Input!$F$274),0) -> 609.9924533 | V84: =IF(V74>0,V74*(V70*Input!$F$274),0) -> 609.9924533 | W84: =IF(W74>0,W74*(W70*Input!$F$274),0) -> 609.9924533 | X84: =IF(X74>0,X74*(X70*Input!$F$274),0) -> 609.9924533 | Y84: =IF(Y74>0,Y74*(Y70*Input!$F$274),0) -> 609.9924533 | Z84: =IF(Z74>0,Z74*(Z70*Input!$F$274),0) -> 609.9924533 | AA84: =IF(AA74>0,AA74*(AA70*Input!$F$274),0) -> 609.9924533 | AB84: =IF(AB74>0,AB74*(AB70*Input!$F$274),0) -> 609.9924533 | AC84: =IF(AC74>0,AC74*(AC70*Input!$F$274),0) -> 609.9924533 | AD84: =SUM(F84:Q84) -> 7319.90944 | AE84: =SUM(R84:AC84) -> 7319.90944
D85: =D75 -> Lambs - Feeder | E85: =Input!$F$278 -> 100 | F85: =IF(F75>0,F75*(F81*Input!$E$294),0) -> 3422.429376 | G85: =IF(G75>0,G75*(G81*Input!$E$294),0) -> 3422.429376 | H85: =IF(H75>0,H75*(H81*Input!$E$294),0) -> 3422.429376 | I85: =IF(I75>0,I75*(I81*Input!$E$294),0) -> 3422.429376 | J85: =IF(J75>0,J75*(J81*Input!$E$294),0) -> 3422.429376 | K85: =IF(K75>0,K75*(K81*Input!$E$294),0) -> 3422.429376 | L85: =IF(L75>0,L75*(L81*Input!$E$294),0) -> 3422.429376 | M85: =IF(M75>0,M75*(M81*Input!$E$294),0) -> 3422.429376 | N85: =IF(N75>0,N75*(N81*Input!$E$294),0) -> 3422.429376 | O85: =IF(O75>0,O75*(O81*Input!$E$294),0) -> 3422.429376 | P85: =IF(P75>0,P75*(P81*Input!$E$294),0) -> 3422.429376 | Q85: =IF(Q75>0,Q75*(Q81*Input!$E$294),0) -> 3422.429376 | R85: =IF(R75>0,R75*(R81*Input!$F$294),0) -> 3422.429376 | S85: =IF(S75>0,S75*(S70*Input!$F$294),0) -> 3422.429376 | T85: =IF(T75>0,T75*(T70*Input!$F$294),0) -> 3422.429376 | U85: =IF(U75>0,U75*(U70*Input!$F$294),0) -> 3422.429376 | V85: =IF(V75>0,V75*(V70*Input!$F$294),0) -> 3422.429376 | W85: =IF(W75>0,W75*(W70*Input!$F$294),0) -> 3422.429376 | X85: =IF(X75>0,X75*(X70*Input!$F$294),0) -> 3422.429376 | Y85: =IF(Y75>0,Y75*(Y70*Input!$F$294),0) -> 3422.429376 | Z85: =IF(Z75>0,Z75*(Z70*Input!$F$294),0) -> 3422.429376 | AA85: =IF(AA75>0,AA75*(AA70*Input!$F$294),0) -> 3422.429376 | AB85: =IF(AB75>0,AB75*(AB70*Input!$F$294),0) -> 3422.429376 | AC85: =IF(AC75>0,AC75*(AC70*Input!$F$294),0) -> 3422.429376 | AD85: =SUM(F85:Q85) -> 41069.15251 | AE85: =SUM(R85:AC85) -> 41069.15251
E86: TOTAL LAMB FEED | F86: =SUM(F83:F85) -> 4588.315059 | G86: 4588.315059 | H86: 4588.315059 | I86: 4588.315059 | J86: 4588.315059 | K86: 4588.315059 | L86: 4588.315059 | M86: 4588.315059 | N86: 4588.315059 | O86: 4588.315059 | P86: 4588.315059 | Q86: 4588.315059 | R86: 4588.315059 | S86: 4588.315059 | T86: 4588.315059 | U86: 4588.315059 | V86: 4588.315059 | W86: 4588.315059 | X86: 4588.315059 | Y86: 4588.315059 | Z86: 4588.315059 | AA86: 4588.315059 | AB86: 4588.315059 | AC86: 4588.315059 | AD86: 55059.78071 | AE86: 55059.78071
D87: Breeding Lambs Feed | F87: =(Input!$E$24/Input!$E$239)*F83+(Input!$E$24/Input!$E$259)*F84+(Input!$E$24/Input!$E$279)*F85 -> 288.5435341 | G87: =(Input!$E$24/Input!$E$239)*G83+(Input!$E$24/Input!$E$259)*G84+(Input!$E$24/Input!$E$279)*G85 -> 288.5435341 | H87: =(Input!$E$24/Input!$E$239)*H83+(Input!$E$24/Input!$E$259)*H84+(Input!$E$24/Input!$E$279)*H85 -> 288.5435341 | I87: =(Input!$E$24/Input!$E$239)*I83+(Input!$E$24/Input!$E$259)*I84+(Input!$E$24/Input!$E$279)*I85 -> 288.5435341 | J87: =(Input!$E$24/Input!$E$239)*J83+(Input!$E$24/Input!$E$259)*J84+(Input!$E$24/Input!$E$279)*J85 -> 288.5435341 | K87: =(Input!$E$24/Input!$E$239)*K83+(Input!$E$24/Input!$E$259)*K84+(Input!$E$24/Input!$E$279)*K85 -> 288.5435341 | L87: =(Input!$E$24/Input!$E$239)*L83+(Input!$E$24/Input!$E$259)*L84+(Input!$E$24/Input!$E$279)*L85 -> 288.5435341 | M87: =(Input!$E$24/Input!$E$239)*M83+(Input!$E$24/Input!$E$259)*M84+(Input!$E$24/Input!$E$279)*M85 -> 288.5435341 | N87: =(Input!$E$24/Input!$E$239)*N83+(Input!$E$24/Input!$E$259)*N84+(Input!$E$24/Input!$E$279)*N85 -> 288.5435341 | O87: =(Input!$E$24/Input!$E$239)*O83+(Input!$E$24/Input!$E$259)*O84+(Input!$E$24/Input!$E$279)*O85 -> 288.5435341 | P87: =(Input!$E$24/Input!$E$239)*P83+(Input!$E$24/Input!$E$259)*P84+(Input!$E$24/Input!$E$279)*P85 -> 288.5435341 | Q87: =(Input!$E$24/Input!$E$239)*Q83+(Input!$E$24/Input!$E$259)*Q84+(Input!$E$24/Input!$E$279)*Q85 -> 288.5435341 | R87: =(Input!$F$24/Input!$F$239)*R83+(Input!$F$24/Input!$F$259)*R84+(Input!$F$24/Input!$F$279)*R85 -> 288.5435341 | S87: =(Input!$F$24/Input!$F$239)*S83+(Input!$F$24/Input!$F$259)*S84+(Input!$F$24/Input!$F$279)*S85 -> 288.5435341 | T87: =(Input!$F$24/Input!$F$239)*T83+(Input!$F$24/Input!$F$259)*T84+(Input!$F$24/Input!$F$279)*T85 -> 288.5435341 | U87: =(Input!$F$24/Input!$F$239)*U83+(Input!$F$24/Input!$F$259)*U84+(Input!$F$24/Input!$F$279)*U85 -> 288.5435341 | V87: =(Input!$F$24/Input!$F$239)*V83+(Input!$F$24/Input!$F$259)*V84+(Input!$F$24/Input!$F$279)*V85 -> 288.5435341 | W87: =(Input!$F$24/Input!$F$239)*W83+(Input!$F$24/Input!$F$259)*W84+(Input!$F$24/Input!$F$279)*W85 -> 288.5435341 | X87: =(Input!$F$24/Input!$F$239)*X83+(Input!$F$24/Input!$F$259)*X84+(Input!$F$24/Input!$F$279)*X85 -> 288.5435341 | Y87: =(Input!$F$24/Input!$F$239)*Y83+(Input!$F$24/Input!$F$259)*Y84+(Input!$F$24/Input!$F$279)*Y85 -> 288.5435341 | Z87: =(Input!$F$24/Input!$F$239)*Z83+(Input!$F$24/Input!$F$259)*Z84+(Input!$F$24/Input!$F$279)*Z85 -> 288.5435341 | AA87: =(Input!$F$24/Input!$F$239)*AA83+(Input!$F$24/Input!$F$259)*AA84+(Input!$F$24/Input!$F$279)*AA85 -> 288.5435341 | AB87: =(Input!$F$24/Input!$F$239)*AB83+(Input!$F$24/Input!$F$259)*AB84+(Input!$F$24/Input!$F$279)*AB85 -> 288.5435341 | AC87: =(Input!$F$24/Input!$F$239)*AC83+(Input!$F$24/Input!$F$259)*AC84+(Input!$F$24/Input!$F$279)*AC85 -> 288.5435341 | AD87: =Sensitivity!$AB$43 -> 1067 | AE87: base
Q88: =SUM(F87:Q87) -> 3462.522409 | AD88: =AD86/AD87 -> 51.60241866 | AE88: cost
D89: MARKETING WEIGHTS AND PRICES
F91: =F21 -> 2022-01-01 | G91: 2022-02-01 | H91: 2022-03-01 | I91: 2022-04-01 | J91: 2022-05-01 | K91: 2022-06-01 | L91: 2022-07-01 | M91: 2022-08-01 | N91: 2022-09-01 | O91: 2022-10-01 | P91: 2022-11-01 | Q91: 2022-12-01 | R91: 2023-01-01 | S91: 2023-02-01 | T91: 2023-03-01 | U91: 2023-04-01 | V91: 2023-05-01 | W91: 2023-06-01 | X91: 2023-07-01 | Y91: 2023-08-01 | Z91: 2023-09-01 | AA91: 2023-10-01 | AB91: 2023-11-01 | AC91: 2023-12-01 | AD91: Average Prices & Weights
D92: Market Prices | F92: Month 1 | G92: Month 2 | H92: Month 3 | I92: Month 4 | J92: Month 5 | K92: Month 6 | L92: Month 7 | M92: Month 8 | N92: Month 9 | O92: Month 10 | P92: Month 11 | Q92: Month 12 | R92: Month 13 | S92: Month 14 | T92: Month 15 | U92: Month 16 | V92: Month 17 | W92: Month 18 | X92: Month 19 | Y92: Month 20 | Z92: Month 21 | AA92: Month 22 | AB92: Month 23 | AC92: Month 24 | AD92: Year #1 | AE92: Year #2
D93: Feeder Lamb Prices ($/Lb.) | F93: =IF(Input!$E$53>0,Input!$E$53,0) -> 2.6 | G93: =IF(Input!$E$53>0,Input!$E$53,0) -> 2.6 | H93: =IF(Input!$E$53>0,Input!$E$53,0) -> 2.6 | I93: =IF(Input!$E$53>0,Input!$E$53,0) -> 2.6 | J93: =IF(Input!$E$53>0,Input!$E$53,0) -> 2.6 | K93: =IF(Input!$E$53>0,Input!$E$53,0) -> 2.6 | L93: =IF(Input!$E$53>0,Input!$E$53,0) -> 2.6 | M93: =IF(Input!$E$53>0,Input!$E$53,0) -> 2.6 | N93: =IF(Input!$E$53>0,Input!$E$53,0) -> 2.6 | O93: =IF(Input!$E$53>0,Input!$E$53,0) -> 2.6 | P93: =IF(Input!$E$53>0,Input!$E$53,0) -> 2.6 | Q93: =IF(Input!$E$53>0,Input!$E$53,0) -> 2.6 | R93: =IF(Input!$F$53>0,Input!$F$53,0) -> 2.6 | S93: =IF(Input!$F$53>0,Input!$F$53,0) -> 2.6 | T93: =IF(Input!$F$53>0,Input!$F$53,0) -> 2.6 | U93: =IF(Input!$F$53>0,Input!$F$53,0) -> 2.6 | V93: =IF(Input!$F$53>0,Input!$F$53,0) -> 2.6 | W93: =IF(Input!$F$53>0,Input!$F$53,0) -> 2.6 | X93: =IF(Input!$F$53>0,Input!$F$53,0) -> 2.6 | Y93: =IF(Input!$F$53>0,Input!$F$53,0) -> 2.6 | Z93: =IF(Input!$F$53>0,Input!$F$53,0) -> 2.6 | AA93: =IF(Input!$F$53>0,Input!$F$53,0) -> 2.6 | AB93: =IF(Input!$F$53>0,Input!$F$53,0) -> 2.6 | AC93: =IF(Input!$F$53>0,Input!$F$53,0) -> 2.6 | AD93: =AVERAGE(F93:Q93) -> 2.6 | AE93: =AVERAGE(R93:AC93) -> 2.6 | AF93: Feeder Lamb Prices ($/Lb.)
D94: Feeder Lamb Weights (Lbs.) | F94: =IF(Input!$E$52>0,Input!$E$52,0) -> 0 | G94: =IF(Input!$E$52>0,Input!$E$52,0) -> 0 | H94: =IF(Input!$E$52>0,Input!$E$52,0) -> 0 | I94: =IF(Input!$E$52>0,Input!$E$52,0) -> 0 | J94: =IF(Input!$E$52>0,Input!$E$52,0) -> 0 | K94: =IF(Input!$E$52>0,Input!$E$52,0) -> 0 | L94: =IF(Input!$E$52>0,Input!$E$52,0) -> 0 | M94: =IF(Input!$E$52>0,Input!$E$52,0) -> 0 | N94: =IF(Input!$E$52>0,Input!$E$52,0) -> 0 | O94: =IF(Input!$E$52>0,Input!$E$52,0) -> 0 | P94: =IF(Input!$E$52>0,Input!$E$52,0) -> 0 | Q94: =IF(Input!$E$52>0,Input!$E$52,0) -> 0 | R94: =IF(Input!$F$52>0,Input!$F$52,0) -> 0 | S94: =IF(Input!$F$52>0,Input!$F$52,0) -> 0 | T94: =IF(Input!$F$52>0,Input!$F$52,0) -> 0 | U94: =IF(Input!$F$52>0,Input!$F$52,0) -> 0 | V94: =IF(Input!$F$52>0,Input!$F$52,0) -> 0 | W94: =IF(Input!$F$52>0,Input!$F$52,0) -> 0 | X94: =IF(Input!$F$52>0,Input!$F$52,0) -> 0 | Y94: =IF(Input!$F$52>0,Input!$F$52,0) -> 0 | Z94: =IF(Input!$F$52>0,Input!$F$52,0) -> 0 | AA94: =IF(Input!$F$52>0,Input!$F$52,0) -> 0 | AB94: =IF(Input!$F$52>0,Input!$F$52,0) -> 0 | AC94: =IF(Input!$F$52>0,Input!$F$52,0) -> 0 | AD94: 0 | AE94: 0 | AF94: Feeder Lamb Weights (Lbs.)
D95: Feeder Lamb Price ($/head) | F95: =F93*F94 -> 0 | G95: =G93*G94 -> 0 | H95: 0 | I95: 0 | J95: 0 | K95: 0 | L95: 0 | M95: 0 | N95: 0 | O95: 0 | P95: 0 | Q95: 0 | R95: 0 | S95: 0 | T95: 0 | U95: 0 | V95: 0 | W95: 0 | X95: 0 | Y95: 0 | Z95: 0 | AA95: 0 | AB95: 0 | AC95: 0 | AD95: 0 | AE95: 0 | AF95: Feeder Lamb Price ($/head)
D96: Finished Lamb Prices ($/Lb.) | F96: =IF(Input!$E$58>0,Input!$E$58,0) -> 2.3 | G96: =IF(Input!$E$58>0,Input!$E$58,0) -> 2.3 | H96: =IF(Input!$E$58>0,Input!$E$58,0) -> 2.3 | I96: =IF(Input!$E$58>0,Input!$E$58,0) -> 2.3 | J96: =IF(Input!$E$58>0,Input!$E$58,0) -> 2.3 | K96: =IF(Input!$E$58>0,Input!$E$58,0) -> 2.3 | L96: =IF(Input!$E$58>0,Input!$E$58,0) -> 2.3 | M96: =IF(Input!$E$58>0,Input!$E$58,0) -> 2.3 | N96: =IF(Input!$E$58>0,Input!$E$58,0) -> 2.3 | O96: =IF(Input!$E$58>0,Input!$E$58,0) -> 2.3 | P96: =IF(Input!$E$58>0,Input!$E$58,0) -> 2.3 | Q96: =IF(Input!$E$58>0,Input!$E$58,0) -> 2.3 | R96: =IF(Input!$F$58>0,Input!$F$58,0) -> 2.3 | S96: =IF(Input!$F$58>0,Input!$F$58,0) -> 2.3 | T96: =IF(Input!$F$58>0,Input!$F$58,0) -> 2.3 | U96: =IF(Input!$F$58>0,Input!$F$58,0) -> 2.3 | V96: =IF(Input!$F$58>0,Input!$F$58,0) -> 2.3 | W96: =IF(Input!$F$58>0,Input!$F$58,0) -> 2.3 | X96: =IF(Input!$F$58>0,Input!$F$58,0) -> 2.3 | Y96: =IF(Input!$F$58>0,Input!$F$58,0) -> 2.3 | Z96: =IF(Input!$F$58>0,Input!$F$58,0) -> 2.3 | AA96: =IF(Input!$F$58>0,Input!$F$58,0) -> 2.3 | AB96: =IF(Input!$F$58>0,Input!$F$58,0) -> 2.3 | AC96: =IF(Input!$F$58>0,Input!$F$58,0) -> 2.3 | AD96: 2.3 | AE96: 2.3 | AF96: Finished Lamb Prices ($/Lb.)
D97: Finished Lamb Weights (Lbs.) | F97: =IF(Input!$E$57>0,Input!$E$57,0) -> 110 | G97: =IF(Input!$E$57>0,Input!$E$57,0) -> 110 | H97: =IF(Input!$E$57>0,Input!$E$57,0) -> 110 | I97: =IF(Input!$E$57>0,Input!$E$57,0) -> 110 | J97: =IF(Input!$E$57>0,Input!$E$57,0) -> 110 | K97: =IF(Input!$E$57>0,Input!$E$57,0) -> 110 | L97: =IF(Input!$E$57>0,Input!$E$57,0) -> 110 | M97: =IF(Input!$E$57>0,Input!$E$57,0) -> 110 | N97: =IF(Input!$E$57>0,Input!$E$57,0) -> 110 | O97: =IF(Input!$E$57>0,Input!$E$57,0) -> 110 | P97: =IF(Input!$E$57>0,Input!$E$57,0) -> 110 | Q97: =IF(Input!$E$57>0,Input!$E$57,0) -> 110 | R97: =IF(Input!$F$57>0,Input!$F$57,0) -> 110 | S97: =IF(Input!$F$57>0,Input!$F$57,0) -> 110 | T97: =IF(Input!$F$57>0,Input!$F$57,0) -> 110 | U97: =IF(Input!$F$57>0,Input!$F$57,0) -> 110 | V97: =IF(Input!$F$57>0,Input!$F$57,0) -> 110 | W97: =IF(Input!$F$57>0,Input!$F$57,0) -> 110 | X97: =IF(Input!$F$57>0,Input!$F$57,0) -> 110 | Y97: =IF(Input!$F$57>0,Input!$F$57,0) -> 110 | Z97: =IF(Input!$F$57>0,Input!$F$57,0) -> 110 | AA97: =IF(Input!$F$57>0,Input!$F$57,0) -> 110 | AB97: =IF(Input!$F$57>0,Input!$F$57,0) -> 110 | AC97: =IF(Input!$F$57>0,Input!$F$57,0) -> 110 | AD97: 110 | AE97: 110 | AF97: Finished Lamb Weights (Lbs.)
D98: Finished Lamb Prices ($/head) | F98: =F96*F97 -> 253 | G98: =G96*G97 -> 253 | H98: 253 | I98: 253 | J98: 253 | K98: 253 | L98: 253 | M98: 253 | N98: 253 | O98: 253 | P98: =P96*P97 -> 253 | Q98: 253 | R98: 253 | S98: 253 | T98: 253 | U98: 253 | V98: 253 | W98: 253 | X98: 253 | Y98: 253 | Z98: 253 | AA98: 253 | AB98: 253 | AC98: 253 | AD98: 253 | AE98: 253 | AF98: Finished Lamb Prices ($/head)
C108: =Input!$C$10 -> Name: Draft Copy 400 Head Ewe Accelerated Operation (45 per month)
C109: REVENUE | F109: =F2 -> 2022-01-01 | G109: 2022-02-01 | H109: 2022-03-01 | I109: 2022-04-01 | J109: 2022-05-01 | K109: 2022-06-01 | L109: 2022-07-01 | M109: 2022-08-01 | N109: 2022-09-01 | O109: 2022-10-01 | P109: 2022-11-01 | Q109: 2022-12-01 | R109: 2023-01-01 | S109: 2023-02-01 | T109: 2023-03-01 | U109: 2023-04-01 | V109: 2023-05-01 | W109: 2023-06-01 | X109: 2023-07-01 | Y109: 2023-08-01 | Z109: 2023-09-01 | AA109: 2023-10-01 | AB109: 2023-11-01 | AC109: 2023-12-01 | AD109: Year #1 | AE109: Year #2
C110: Feeder Lamb Sales (under 90lbs) | F110: =IF(F28>0,F28*F95,0) -> 0 | G110: 0 | H110: 0 | I110: 0 | J110: 0 | K110: 0 | L110: 0 | M110: 0 | N110: 0 | O110: 0 | P110: 0 | Q110: 0 | R110: 0 | S110: 0 | T110: 0 | U110: 0 | V110: 0 | W110: 0 | X110: 0 | Y110: 0 | Z110: 0 | AA110: 0 | AB110: 0 | AC110: 0 | AD110: =SUM(F110:Q110) -> 0 | AE110: =SUM(R110:AC110) -> 0
C111: Market Lamb Sales (90lbs+) | F111: =IF(F29>0,F29*F98,0) -> 20977.91667 | G111: 20977.91667 | H111: 20977.91667 | I111: 20977.91667 | J111: 20977.91667 | K111: 20977.91667 | L111: 20977.91667 | M111: 20977.91667 | N111: 20977.91667 | O111: 20977.91667 | P111: 20977.91667 | Q111: 20977.91667 | R111: 20977.91667 | S111: 20977.91667 | T111: 20977.91667 | U111: 20977.91667 | V111: 20977.91667 | W111: 20977.91667 | X111: 20977.91667 | Y111: 20977.91667 | Z111: 20977.91667 | AA111: 20977.91667 | AB111: 20977.91667 | AC111: 20977.91667 | AD111: 251735 | AE111: 251735
C112: Cull Ewe and Ram Sales | F112: =(F17*Input!$E$73)+(F19*Input!$E$77) -> 1000 | G112: =(G17*Input!$E$73)+(G19*Input!$E$77) -> 1000 | H112: =(H17*Input!$E$73)+(H19*Input!$E$77) -> 1000 | I112: =(I17*Input!$E$73)+(I19*Input!$E$77) -> 1000 | J112: =(J17*Input!$E$73)+(J19*Input!$E$77) -> 1000 | K112: =(K17*Input!$E$73)+(K19*Input!$E$77) -> 1312.5 | L112: =(L17*Input!$E$73)+(L19*Input!$E$77) -> 1000 | M112: =(M17*Input!$E$73)+(M19*Input!$E$77) -> 1000 | N112: =(N17*Input!$E$73)+(N19*Input!$E$77) -> 1000 | O112: =(O17*Input!$E$73)+(O19*Input!$E$77) -> 1000 | P112: =(P17*Input!$E$73)+(P19*Input!$E$77) -> 1000 | Q112: =(Q17*Input!$E$73)+(Q19*Input!$E$77) -> 1312.5 | R112: =(R17*Input!$F$73)+(R19*Input!$F$77) -> 1000 | S112: =(S17*Input!$F$73)+(S19*Input!$F$77) -> 1000 | T112: =(T17*Input!$F$73)+(T19*Input!$F$77) -> 1000 | U112: =(U17*Input!$F$73)+(U19*Input!$F$77) -> 1000 | V112: =(V17*Input!$F$73)+(V19*Input!$F$77) -> 1000 | W112: =(W17*Input!$F$73)+(W19*Input!$F$77) -> 1312.5 | X112: =(X17*Input!$F$73)+(X19*Input!$F$77) -> 1000 | Y112: =(Y17*Input!$F$73)+(Y19*Input!$F$77) -> 1000 | Z112: =(Z17*Input!$F$73)+(Z19*Input!$F$77) -> 1000 | AA112: =(AA17*Input!$F$73)+(AA19*Input!$F$77) -> 1000 | AB112: =(AB17*Input!$F$73)+(AB19*Input!$F$77) -> 1000 | AC112: =(AC17*Input!$F$73)+(AC19*Input!$F$77) -> 1312.5 | AD112: 12625 | AE112: 12625
C113: Breeding Stock Sales | F113: =((Input!$E$62*Input!$E$63)+(Input!$E$64*Input!$E$65)+(Input!$E$66*Input!$E$67))/12 -> 0 | G113: =((Input!$E$62*Input!$E$63)+(Input!$E$64*Input!$E$65)+(Input!$E$66*Input!$E$67))/12 -> 0 | H113: =((Input!$E$62*Input!$E$63)+(Input!$E$64*Input!$E$65)+(Input!$E$66*Input!$E$67))/12 -> 0 | I113: =((Input!$E$62*Input!$E$63)+(Input!$E$64*Input!$E$65)+(Input!$E$66*Input!$E$67))/12 -> 0 | J113: =((Input!$E$62*Input!$E$63)+(Input!$E$64*Input!$E$65)+(Input!$E$66*Input!$E$67))/12 -> 0 | K113: =((Input!$E$62*Input!$E$63)+(Input!$E$64*Input!$E$65)+(Input!$E$66*Input!$E$67))/12 -> 0 | L113: =((Input!$E$62*Input!$E$63)+(Input!$E$64*Input!$E$65)+(Input!$E$66*Input!$E$67))/12 -> 0 | M113: =((Input!$E$62*Input!$E$63)+(Input!$E$64*Input!$E$65)+(Input!$E$66*Input!$E$67))/12 -> 0 | N113: =((Input!$E$62*Input!$E$63)+(Input!$E$64*Input!$E$65)+(Input!$E$66*Input!$E$67))/12 -> 0 | O113: =((Input!$E$62*Input!$E$63)+(Input!$E$64*Input!$E$65)+(Input!$E$66*Input!$E$67))/12 -> 0 | P113: =((Input!$E$62*Input!$E$63)+(Input!$E$64*Input!$E$65)+(Input!$E$66*Input!$E$67))/12 -> 0 | Q113: =((Input!$E$62*Input!$E$63)+(Input!$E$64*Input!$E$65)+(Input!$E$66*Input!$E$67))/12 -> 0 | R113: =((Input!$F$62*Input!$F$63)+(Input!$F$64*Input!$F$65)+(Input!$F$66*Input!$F$67))/12 -> 0 | S113: =((Input!$F$62*Input!$F$63)+(Input!$F$64*Input!$F$65)+(Input!$F$66*Input!$F$67))/12 -> 0 | T113: =((Input!$F$62*Input!$F$63)+(Input!$F$64*Input!$F$65)+(Input!$F$66*Input!$F$67))/12 -> 0 | U113: =((Input!$F$62*Input!$F$63)+(Input!$F$64*Input!$F$65)+(Input!$F$66*Input!$F$67))/12 -> 0 | V113: =((Input!$F$62*Input!$F$63)+(Input!$F$64*Input!$F$65)+(Input!$F$66*Input!$F$67))/12 -> 0 | W113: =((Input!$F$62*Input!$F$63)+(Input!$F$64*Input!$F$65)+(Input!$F$66*Input!$F$67))/12 -> 0 | X113: =((Input!$F$62*Input!$F$63)+(Input!$F$64*Input!$F$65)+(Input!$F$66*Input!$F$67))/12 -> 0 | Y113: =((Input!$F$62*Input!$F$63)+(Input!$F$64*Input!$F$65)+(Input!$F$66*Input!$F$67))/12 -> 0 | Z113: =((Input!$F$62*Input!$F$63)+(Input!$F$64*Input!$F$65)+(Input!$F$66*Input!$F$67))/12 -> 0 | AA113: =((Input!$F$62*Input!$F$63)+(Input!$F$64*Input!$F$65)+(Input!$F$66*Input!$F$67))/12 -> 0 | AB113: =((Input!$F$62*Input!$F$63)+(Input!$F$64*Input!$F$65)+(Input!$F$66*Input!$F$67))/12 -> 0 | AC113: =((Input!$F$62*Input!$F$63)+(Input!$F$64*Input!$F$65)+(Input!$F$66*Input!$F$67))/12 -> 0 | AD113: 0 | AE113: 0
C114: Wool Sales | I114: =Input!$E$84/8 -> 205 | J114: =Input!$E$84/8 -> 205 | K114: =Input!$E$84/8 -> 205 | L114: =Input!$E$84/8 -> 205 | M114: =Input!$E$84/8 -> 205 | N114: =Input!$E$84/8 -> 205 | O114: =Input!$E$84/8 -> 205 | P114: =Input!$E$84/8 -> 205 | U114: =Input!$F$84/8 -> 205 | V114: =Input!$F$84/8 -> 205 | W114: =Input!$F$84/8 -> 205 | X114: =Input!$F$84/8 -> 205 | Y114: =Input!$F$84/8 -> 205 | Z114: =Input!$F$84/8 -> 205 | AA114: =Input!$F$84/8 -> 205 | AB114: =Input!$F$84/8 -> 205 | AD114: 1640 | AE114: 1640
C115: Other Sales - Meat, Mutton, etc | F115: =(Input!$E$90*Input!$E$91*(Input!$E$93))/12 -> 0 | G115: =(Input!$E$90*Input!$E$91*(Input!$E$93))/12 -> 0 | H115: =(Input!$E$90*Input!$E$91*(Input!$E$93))/12 -> 0 | I115: =(Input!$E$90*Input!$E$91*(Input!$E$93))/12 -> 0 | J115: =(Input!$E$90*Input!$E$91*(Input!$E$93))/12 -> 0 | K115: =(Input!$E$90*Input!$E$91*(Input!$E$93))/12 -> 0 | L115: =(Input!$E$90*Input!$E$91*(Input!$E$93))/12 -> 0 | M115: =(Input!$E$90*Input!$E$91*(Input!$E$93))/12 -> 0 | N115: =(Input!$E$90*Input!$E$91*(Input!$E$93))/12 -> 0 | O115: =(Input!$E$90*Input!$E$91*(Input!$E$93))/12 -> 0 | P115: =(Input!$E$90*Input!$E$91*(Input!$E$93))/12 -> 0 | Q115: =(Input!$E$90*Input!$E$91*(Input!$E$93))/12 -> 0 | R115: =(Input!$F$90*Input!$F$91*(Input!$F$93))/12 -> 0 | S115: =(Input!$F$90*Input!$F$91*(Input!$F$93))/12 -> 0 | T115: =(Input!$F$90*Input!$F$91*(Input!$F$93))/12 -> 0 | U115: =(Input!$F$90*Input!$F$91*(Input!$F$93))/12 -> 0 | V115: =(Input!$F$90*Input!$F$91*(Input!$F$93))/12 -> 0 | W115: =(Input!$F$90*Input!$F$91*(Input!$F$93))/12 -> 0 | X115: =(Input!$F$90*Input!$F$91*(Input!$F$93))/12 -> 0 | Y115: =(Input!$F$90*Input!$F$91*(Input!$F$93))/12 -> 0 | Z115: =(Input!$F$90*Input!$F$91*(Input!$F$93))/12 -> 0 | AA115: =(Input!$F$90*Input!$F$91*(Input!$F$93))/12 -> 0 | AB115: =(Input!$F$90*Input!$F$91*(Input!$F$93))/12 -> 0 | AC115: =(Input!$F$90*Input!$F$91*(Input!$F$93))/12 -> 0 | AD115: 0 | AE115: 0
D116: TOTAL REVENUE | F116: =SUM(F110:F115) -> 21977.91667 | G116: 21977.91667 | H116: 21977.91667 | I116: 22182.91667 | J116: 22182.91667 | K116: 22495.41667 | L116: 22182.91667 | M116: 22182.91667 | N116: 22182.91667 | O116: 22182.91667 | P116: 22182.91667 | Q116: 22290.41667 | R116: 21977.91667 | S116: 21977.91667 | T116: 21977.91667 | U116: 22182.91667 | V116: 22182.91667 | W116: 22495.41667 | X116: 22182.91667 | Y116: 22182.91667 | Z116: 22182.91667 | AA116: 22182.91667 | AB116: 22182.91667 | AC116: 22290.41667 | AD116: 266000 | AE116: 266000
C117: EXPENSES - VARIABLE COSTS | AD117: Year #1 | AE117: Year #2
C118: Feed & Hay Costs | F118: =F65+(F86-F87) -> 10535.46634 | G118: =G65+(G86-G87) -> 9932.012002 | H118: =H65+(H86-H87) -> 10535.46634 | I118: =I65+(I86-I87) -> 10334.31489 | J118: 10535.46634 | K118: 10196.12006 | L118: 10392.66501 | M118: 10392.66501 | N118: 10196.12006 | O118: 10392.66501 | P118: 10334.31489 | Q118: 10535.46634 | R118: 10535.46634 | S118: 9932.012002 | T118: 10535.46634 | U118: 10334.31489 | V118: 10535.46634 | W118: 10196.12006 | X118: 10392.66501 | Y118: 10392.66501 | Z118: 10196.12006 | AA118: 10392.66501 | AB118: 10334.31489 | AC118: 10535.46634 | AD118: =SUM(F118:Q118) -> 124312.7423 | AE118: =SUM(R118:AC118) -> 124312.7423
C119: Milk Replacer & Machine | F119: =(F31*Input!$E$320)+(Input!$E$316/12) -> 385.6076482 | G119: =(G31*Input!$E$320)+(Input!$E$316/12) -> 385.6076482 | H119: =(H31*Input!$E$320)+(Input!$E$316/12) -> 385.6076482 | I119: =(I31*Input!$E$320)+(Input!$E$316/12) -> 385.6076482 | J119: =(J31*Input!$E$320)+(Input!$E$316/12) -> 385.6076482 | K119: =(K31*Input!$E$320)+(Input!$E$316/12) -> 385.6076482 | L119: =(L31*Input!$E$320)+(Input!$E$316/12) -> 385.6076482 | M119: =(M31*Input!$E$320)+(Input!$E$316/12) -> 385.6076482 | N119: =(N31*Input!$E$320)+(Input!$E$316/12) -> 385.6076482 | O119: =(O31*Input!$E$320)+(Input!$E$316/12) -> 385.6076482 | P119: =(P31*Input!$E$320)+(Input!$E$316/12) -> 385.6076482 | Q119: =(Q31*Input!$E$320)+(Input!$E$316/12) -> 385.6076482 | R119: =(R31*Input!$F$320)+(Input!$F$316/12) -> 387.2743148 | S119: =(S31*Input!$F$320)+(Input!$F$316/12) -> 387.2743148 | T119: =(T31*Input!$F$320)+(Input!$F$316/12) -> 387.2743148 | U119: =(U31*Input!$F$320)+(Input!$F$316/12) -> 387.2743148 | V119: =(V31*Input!$F$320)+(Input!$F$316/12) -> 387.2743148 | W119: =(W31*Input!$F$320)+(Input!$F$316/12) -> 387.2743148 | X119: =(X31*Input!$F$320)+(Input!$F$316/12) -> 387.2743148 | Y119: =(Y31*Input!$F$320)+(Input!$F$316/12) -> 387.2743148 | Z119: =(Z31*Input!$F$320)+(Input!$F$316/12) -> 387.2743148 | AA119: =(AA31*Input!$F$320)+(Input!$F$316/12) -> 387.2743148 | AB119: =(AB31*Input!$F$320)+(Input!$F$316/12) -> 387.2743148 | AC119: =(AC31*Input!$F$320)+(Input!$F$316/12) -> 387.2743148 | AD119: 4627.291778 | AE119: 4647.291778
C120: Veterinary Services and Medication | F120: =(Input!$E$305)/12 -> 341.6666667 | G120: =(Input!$E$305)/12 -> 341.6666667 | H120: =(Input!$E$305)/12 -> 341.6666667 | I120: =(Input!$E$305)/12 -> 341.6666667 | J120: =(Input!$E$305)/12 -> 341.6666667 | K120: =(Input!$E$305)/12 -> 341.6666667 | L120: =(Input!$E$305)/12 -> 341.6666667 | M120: =(Input!$E$305)/12 -> 341.6666667 | N120: =(Input!$E$305)/12 -> 341.6666667 | O120: =(Input!$E$305)/12 -> 341.6666667 | P120: =(Input!$E$305)/12 -> 341.6666667 | Q120: =(Input!$E$305)/12 -> 341.6666667 | R120: =(Input!$F$305)/12 -> 348.5 | S120: =(Input!$F$305)/12 -> 348.5 | T120: =(Input!$F$305)/12 -> 348.5 | U120: =(Input!$F$305)/12 -> 348.5 | V120: =(Input!$F$305)/12 -> 348.5 | W120: =(Input!$F$305)/12 -> 348.5 | X120: =(Input!$F$305)/12 -> 348.5 | Y120: =(Input!$F$305)/12 -> 348.5 | Z120: =(Input!$F$305)/12 -> 348.5 | AA120: =(Input!$F$305)/12 -> 348.5 | AB120: =(Input!$F$305)/12 -> 348.5 | AC120: =(Input!$F$305)/12 -> 348.5 | AD120: 4100 | AE120: 4182
C121: Breeding Supplies | F121: =F23*(Input!$E$311) -> 1035 | G121: =G23*(Input!$E$311) -> 1035 | H121: =H23*(Input!$E$311) -> 1035 | I121: =I23*(Input!$E$311) -> 1035 | J121: =J23*(Input!$E$311) -> 1035 | K121: =K23*(Input!$E$311) -> 1035 | L121: =L23*(Input!$E$311) -> 1035 | M121: =M23*(Input!$E$311) -> 1035 | N121: =N23*(Input!$E$311) -> 1035 | O121: =O23*(Input!$E$311) -> 1035 | P121: =P23*(Input!$E$311) -> 1035 | Q121: =Q23*(Input!$E$311) -> 1035 | R121: =R23*(Input!$F$311) -> 1055.7 | S121: =(Input!$F$313)/12 -> 1055.7 | T121: =(Input!$F$313)/12 -> 1055.7 | U121: =(Input!$F$313)/12 -> 1055.7 | V121: =(Input!$F$313)/12 -> 1055.7 | W121: =(Input!$F$313)/12 -> 1055.7 | X121: =(Input!$F$313)/12 -> 1055.7 | Y121: =(Input!$F$313)/12 -> 1055.7 | Z121: =(Input!$F$313)/12 -> 1055.7 | AA121: =(Input!$F$313)/12 -> 1055.7 | AB121: =(Input!$F$313)/12 -> 1055.7 | AC121: =(Input!$F$313)/12 -> 1055.7 | AD121: 12420 | AE121: 12668.4
C122: Breeding Stock Purchases & Supllies(feed) | F122: =(F4*Input!$E$26)+(F13*Input!$E$33)+F87 -> 288.5435341 | G122: =(G4*Input!$E$26)+(G13*Input!$E$33)+G87 -> 288.5435341 | H122: =(H4*Input!$E$26)+(H13*Input!$E$33)+H87 -> 288.5435341 | I122: =(I4*Input!$E$26)+(I13*Input!$E$33)+I87 -> 288.5435341 | J122: =(J4*Input!$E$26)+(J13*Input!$E$33)+J87 -> 288.5435341 | K122: =(K4*Input!$E$26)+(K13*Input!$E$33)+K87 -> 1088.543534 | L122: =(L4*Input!$E$26)+(L13*Input!$E$33)+L87 -> 288.5435341 | M122: =(M4*Input!$E$26)+(M13*Input!$E$33)+M87 -> 288.5435341 | N122: =(N4*Input!$E$26)+(N13*Input!$E$33)+N87 -> 288.5435341 | O122: =(O4*Input!$E$26)+(O13*Input!$E$33)+O87 -> 288.5435341 | P122: =(P4*Input!$E$26)+(P13*Input!$E$33)+P87 -> 288.5435341 | Q122: =(Q4*Input!$E$26)+(Q13*Input!$E$33)+Q87 -> 1088.543534 | R122: =(R4*Input!$E$26)+(R13*Input!$E$33)+R87 -> 288.5435341 | S122: =(S4*Input!$E$26)+(S13*Input!$E$33)+S87 -> 288.5435341 | T122: =(T4*Input!$E$26)+(T13*Input!$E$33)+T87 -> 288.5435341 | U122: =(U4*Input!$E$26)+(U13*Input!$E$33)+U87 -> 288.5435341 | V122: =(V4*Input!$E$26)+(V13*Input!$E$33)+V87 -> 288.5435341 | W122: =(W4*Input!$E$26)+(W13*Input!$E$33)+W87 -> 1088.543534 | X122: =(X4*Input!$E$26)+(X13*Input!$E$33)+X87 -> 288.5435341 | Y122: =(Y4*Input!$E$26)+(Y13*Input!$E$33)+Y87 -> 288.5435341 | Z122: =(Z4*Input!$E$26)+(Z13*Input!$E$33)+Z87 -> 288.5435341 | AA122: =(AA4*Input!$E$26)+(AA13*Input!$E$33)+AA87 -> 288.5435341 | AB122: =(AB4*Input!$E$26)+(AB13*Input!$E$33)+AB87 -> 288.5435341 | AC122: =(AC4*Input!$E$26)+(AC13*Input!$E$33)+AC87 -> 1088.543534 | AD122: 5062.522409 | AE122: 5062.522409
C123: Guardian and Herd Dog Costs | F123: =(Input!$E$325+Input!$E$326+Input!$E$329+Input!$E$330)/12 -> 225 | G123: =(Input!$E$325+Input!$E$326+Input!$E$329+Input!$E$330)/12 -> 225 | H123: =(Input!$E$325+Input!$E$326+Input!$E$329+Input!$E$330)/12 -> 225 | I123: =(Input!$E$325+Input!$E$326+Input!$E$329+Input!$E$330)/12 -> 225 | J123: =(Input!$E$325+Input!$E$326+Input!$E$329+Input!$E$330)/12 -> 225 | K123: =(Input!$E$325+Input!$E$326+Input!$E$329+Input!$E$330)/12 -> 225 | L123: =(Input!$E$325+Input!$E$326+Input!$E$329+Input!$E$330)/12 -> 225 | M123: =(Input!$E$325+Input!$E$326+Input!$E$329+Input!$E$330)/12 -> 225 | N123: =(Input!$F$325+Input!$F$326+Input!$F$329+Input!$F$330)/12 -> 226.6666667 | O123: =(Input!$F$325+Input!$F$326+Input!$F$329+Input!$F$330)/12 -> 226.6666667 | P123: =(Input!$F$325+Input!$F$326+Input!$F$329+Input!$F$330)/12 -> 226.6666667 | Q123: =(Input!$F$325+Input!$F$326+Input!$F$329+Input!$F$330)/12 -> 226.6666667 | R123: =(Input!$F$325+Input!$F$326+Input!$F$329+Input!$F$330)/12 -> 226.6666667 | S123: =(Input!$F$325+Input!$F$326+Input!$F$329+Input!$F$330)/12 -> 226.6666667 | T123: =(Input!$F$325+Input!$F$326+Input!$F$329+Input!$F$330)/12 -> 226.6666667 | U123: =(Input!$F$325+Input!$F$326+Input!$F$329+Input!$F$330)/12 -> 226.6666667 | V123: =(Input!$G$325+Input!$G$326+Input!$G$329+Input!$G$330)/12 -> 228.3666667 | W123: =(Input!$G$325+Input!$G$326+Input!$G$329+Input!$G$330)/12 -> 228.3666667 | X123: =(Input!$G$325+Input!$G$326+Input!$G$329+Input!$G$330)/12 -> 228.3666667 | Y123: =(Input!$G$325+Input!$G$326+Input!$G$329+Input!$G$330)/12 -> 228.3666667 | Z123: =(Input!$G$325+Input!$G$326+Input!$G$329+Input!$G$330)/12 -> 228.3666667 | AA123: =(Input!$G$325+Input!$G$326+Input!$G$329+Input!$G$330)/12 -> 228.3666667 | AB123: =(Input!$G$325+Input!$G$326+Input!$G$329+Input!$G$330)/12 -> 228.3666667 | AC123: =(Input!$G$325+Input!$G$326+Input!$G$329+Input!$G$330)/12 -> 228.3666667 | AD123: 2706.666667 | AE123: 2733.6
C124: Labour Costs | F124: =Input!$E$337/12 -> 2526.666667 | G124: =Input!$E$337/12 -> 2526.666667 | H124: =Input!$E$337/12 -> 2526.666667 | I124: =Input!$E$337/12 -> 2526.666667 | J124: =Input!$E$337/12 -> 2526.666667 | K124: =Input!$E$337/12 -> 2526.666667 | L124: =Input!$E$337/12 -> 2526.666667 | M124: =Input!$E$337/12 -> 2526.666667 | N124: =Input!$E$337/12 -> 2526.666667 | O124: =Input!$E$337/12 -> 2526.666667 | P124: =Input!$E$337/12 -> 2526.666667 | Q124: =Input!$E$337/12 -> 2526.666667 | R124: =Input!$F$337/12 -> 2577.2 | S124: =Input!$F$337/12 -> 2577.2 | T124: =Input!$F$337/12 -> 2577.2 | U124: =Input!$F$337/12 -> 2577.2 | V124: =Input!$F$337/12 -> 2577.2 | W124: =Input!$F$337/12 -> 2577.2 | X124: =Input!$F$337/12 -> 2577.2 | Y124: =Input!$F$337/12 -> 2577.2 | Z124: =Input!$F$337/12 -> 2577.2 | AA124: =Input!$F$337/12 -> 2577.2 | AB124: =Input!$F$337/12 -> 2577.2 | AC124: =Input!$F$337/12 -> 2577.2 | AD124: 30320 | AE124: 30926.4
C125: Custom Work/Manure Removal Costs | F125: =Input!$E$344/12 -> 300 | G125: =Input!$E$344/12 -> 300 | H125: =Input!$E$344/12 -> 300 | I125: =Input!$E$344/12 -> 300 | J125: =Input!$E$344/12 -> 300 | K125: =Input!$E$344/12 -> 300 | L125: =Input!$E$344/12 -> 300 | M125: =Input!$E$344/12 -> 300 | N125: =Input!$E$344/12 -> 300 | O125: =Input!$E$344/12 -> 300 | P125: =Input!$E$344/12 -> 300 | Q125: =Input!$E$344/12 -> 300 | R125: =Input!$F$344/12 -> 306 | S125: =Input!$F$344/12 -> 306 | T125: =Input!$F$344/12 -> 306 | U125: =Input!$F$344/12 -> 306 | V125: =Input!$F$344/12 -> 306 | W125: =Input!$F$344/12 -> 306 | X125: =Input!$F$344/12 -> 306 | Y125: =Input!$F$344/12 -> 306 | Z125: =Input!$F$344/12 -> 306 | AA125: =Input!$F$344/12 -> 306 | AB125: =Input!$F$344/12 -> 306 | AC125: =Input!$F$344/12 -> 306 | AD125: 3600 | AE125: 3672
C126: Fuel and Utility Costs | F126: =(Input!$E$347+Input!$E$349)/12 -> 433.3333333 | G126: =(Input!$E$347+Input!$E$349)/12 -> 433.3333333 | H126: =(Input!$E$347+Input!$E$349)/12 -> 433.3333333 | I126: =(Input!$E$347+Input!$E$349)/12 -> 433.3333333 | J126: =(Input!$E$347+Input!$E$349)/12 -> 433.3333333 | K126: =(Input!$E$347+Input!$E$349)/12 -> 433.3333333 | L126: =(Input!$E$347+Input!$E$349)/12 -> 433.3333333 | M126: =(Input!$E$347+Input!$E$349)/12 -> 433.3333333 | N126: =(Input!$E$347+Input!$E$349)/12 -> 433.3333333 | O126: =(Input!$E$347+Input!$E$349)/12 -> 433.3333333 | P126: =(Input!$E$347+Input!$E$349)/12 -> 433.3333333 | Q126: =(Input!$E$347+Input!$E$349)/12 -> 433.3333333 | R126: =(Input!$F$347+Input!$F$349)/12 -> 442 | S126: =(Input!$F$347+Input!$F$349)/12 -> 442 | T126: =(Input!$F$347+Input!$F$349)/12 -> 442 | U126: =(Input!$F$347+Input!$F$349)/12 -> 442 | V126: =(Input!$F$347+Input!$F$349)/12 -> 442 | W126: =(Input!$F$347+Input!$F$349)/12 -> 442 | X126: =(Input!$F$347+Input!$F$349)/12 -> 442 | Y126: =(Input!$F$347+Input!$F$349)/12 -> 442 | Z126: =(Input!$F$347+Input!$F$349)/12 -> 442 | AA126: =(Input!$F$347+Input!$F$349)/12 -> 442 | AB126: =(Input!$F$347+Input!$F$349)/12 -> 442 | AC126: =(Input!$F$347+Input!$F$349)/12 -> 442 | AD126: 5200 | AE126: 5304
C127: Building and Equipment Repairs | F127: =(Input!$E$353+Input!$E$355)/12 -> 375 | G127: =(Input!$E$353+Input!$E$355)/12 -> 375 | H127: =(Input!$E$353+Input!$E$355)/12 -> 375 | I127: =(Input!$E$353+Input!$E$355)/12 -> 375 | J127: =(Input!$E$353+Input!$E$355)/12 -> 375 | K127: =(Input!$E$353+Input!$E$355)/12 -> 375 | L127: =(Input!$E$353+Input!$E$355)/12 -> 375 | M127: =(Input!$E$353+Input!$E$355)/12 -> 375 | N127: =(Input!$E$353+Input!$E$355)/12 -> 375 | O127: =(Input!$E$353+Input!$E$355)/12 -> 375 | P127: =(Input!$E$353+Input!$E$355)/12 -> 375 | Q127: =(Input!$E$353+Input!$E$355)/12 -> 375 | R127: =(Input!$F$353+Input!$F$355)/12 -> 382.5 | S127: =(Input!$F$353+Input!$F$355)/12 -> 382.5 | T127: =(Input!$F$353+Input!$F$355)/12 -> 382.5 | U127: =(Input!$F$353+Input!$F$355)/12 -> 382.5 | V127: =(Input!$F$353+Input!$F$355)/12 -> 382.5 | W127: =(Input!$F$353+Input!$F$355)/12 -> 382.5 | X127: =(Input!$F$353+Input!$F$355)/12 -> 382.5 | Y127: =(Input!$F$353+Input!$F$355)/12 -> 382.5 | Z127: =(Input!$F$353+Input!$F$355)/12 -> 382.5 | AA127: =(Input!$F$353+Input!$F$355)/12 -> 382.5 | AB127: =(Input!$F$353+Input!$F$355)/12 -> 382.5 | AC127: =(Input!$F$353+Input!$F$355)/12 -> 382.5 | AD127: 4500 | AE127: 4590
C128: Marketing, Check-Off, & Transport Costs | F128: =((F28+F29)*(Input!$E$360+Input!$E$365+Input!$E$370))+(F17+F19)*(Input!$E$361+Input!$E$366+Input!$E$371) -> 1793.5 | G128: =((G28+G29)*(Input!$E$360+Input!$E$365+Input!$E$370))+(G17+G19)*(Input!$E$361+Input!$E$366+Input!$E$371) -> 1793.5 | H128: =((H28+H29)*(Input!$E$360+Input!$E$365+Input!$E$370))+(H17+H19)*(Input!$E$361+Input!$E$366+Input!$E$371) -> 1793.5 | I128: =((I28+I29)*(Input!$E$360+Input!$E$365+Input!$E$370))+(I17+I19)*(Input!$E$361+Input!$E$366+Input!$E$371) -> 1793.5 | J128: =((J28+J29)*(Input!$E$360+Input!$E$365+Input!$E$370))+(J17+J19)*(Input!$E$361+Input!$E$366+Input!$E$371) -> 1793.5 | K128: =((K28+K29)*(Input!$E$360+Input!$E$365+Input!$E$370))+(K17+K19)*(Input!$E$361+Input!$E$366+Input!$E$371) -> 1813.9 | L128: =((L28+L29)*(Input!$E$360+Input!$E$365+Input!$E$370))+(L17+L19)*(Input!$E$361+Input!$E$366+Input!$E$371) -> 1793.5 | M128: =((M28+M29)*(Input!$E$360+Input!$E$365+Input!$E$370))+(M17+M19)*(Input!$E$361+Input!$E$366+Input!$E$371) -> 1793.5 | N128: =((N28+N29)*(Input!$E$360+Input!$E$365+Input!$E$370))+(N17+N19)*(Input!$E$361+Input!$E$366+Input!$E$371) -> 1793.5 | O128: =((O28+O29)*(Input!$E$360+Input!$E$365+Input!$E$370))+(O17+O19)*(Input!$E$361+Input!$E$366+Input!$E$371) -> 1793.5 | P128: =((P28+P29)*(Input!$E$360+Input!$E$365+Input!$E$370))+(P17+P19)*(Input!$E$361+Input!$E$366+Input!$E$371) -> 1793.5 | Q128: =((Q28+Q29)*(Input!$E$360+Input!$E$365+Input!$E$370))+(Q17+Q19)*(Input!$E$361+Input!$E$366+Input!$E$371) -> 1813.9 | R128: =((R28+R29)*(Input!$F$360+Input!$F$365+Input!$F$370))+(R17+R19)*(Input!$F$361+Input!$F$366+Input!$F$371) -> 1814.6 | S128: =((S28+S29)*(Input!$F$360+Input!$F$365+Input!$F$370))+(S17+S19)*(Input!$F$361+Input!$F$366+Input!$F$371) -> 1814.6 | T128: =((T28+T29)*(Input!$F$360+Input!$F$365+Input!$F$370))+(T17+T19)*(Input!$F$361+Input!$F$366+Input!$F$371) -> 1814.6 | U128: =((U28+U29)*(Input!$F$360+Input!$F$365+Input!$F$370))+(U17+U19)*(Input!$F$361+Input!$F$366+Input!$F$371) -> 1814.6 | V128: =((V28+V29)*(Input!$F$360+Input!$F$365+Input!$F$370))+(V17+V19)*(Input!$F$361+Input!$F$366+Input!$F$371) -> 1814.6 | W128: =((W28+W29)*(Input!$F$360+Input!$F$365+Input!$F$370))+(W17+W19)*(Input!$F$361+Input!$F$366+Input!$F$371) -> 1835.24 | X128: =((X28+X29)*(Input!$F$360+Input!$F$365+Input!$F$370))+(X17+X19)*(Input!$F$361+Input!$F$366+Input!$F$371) -> 1814.6 | Y128: =((Y28+Y29)*(Input!$F$360+Input!$F$365+Input!$F$370))+(Y17+Y19)*(Input!$F$361+Input!$F$366+Input!$F$371) -> 1814.6 | Z128: =((Z28+Z29)*(Input!$F$360+Input!$F$365+Input!$F$370))+(Z17+Z19)*(Input!$F$361+Input!$F$366+Input!$F$371) -> 1814.6 | AA128: =((AA28+AA29)*(Input!$F$360+Input!$F$365+Input!$F$370))+(AA17+AA19)*(Input!$F$361+Input!$F$366+Input!$F$371) -> 1814.6 | AB128: =((AB28+AB29)*(Input!$F$360+Input!$F$365+Input!$F$370))+(AB17+AB19)*(Input!$F$361+Input!$F$366+Input!$F$371) -> 1814.6 | AC128: =((AC28+AC29)*(Input!$F$360+Input!$F$365+Input!$F$370))+(AC17+AC19)*(Input!$F$361+Input!$F$366+Input!$F$371) -> 1835.24 | AD128: 21562.8 | AE128: 21816.48
C129: Shearing and Wool Production Costs | F129: 0 | G129: 0 | H129: 0 | I129: =I23*Input!$E$85 -> 270 | J129: =J23*Input!$E$85 -> 270 | K129: =K23*Input!$E$85 -> 270 | L129: =L23*Input!$E$85 -> 270 | M129: =M23*Input!$E$85 -> 270 | N129: =N23*Input!$E$85 -> 270 | O129: =O23*Input!$E$85 -> 270 | P129: =P23*Input!$E$85 -> 270 | Q129: 0 | R129: 0 | S129: 0 | T129: 0 | U129: =U23*Input!$F$85 -> 270 | V129: =V23*Input!$F$85 -> 270 | W129: =W23*Input!$F$85 -> 270 | X129: =X23*Input!$F$85 -> 270 | Y129: =Y23*Input!$F$85 -> 270 | Z129: =Z23*Input!$F$85 -> 270 | AA129: =AA23*Input!$F$85 -> 270 | AB129: =AB23*Input!$F$85 -> 270 | AD129: 2160 | AE129: 2160
C130: Slaughtering and Meat Production Costs | F130: =Input!$E$96/12 -> 0 | G130: =Input!$E$96/12 -> 0 | H130: =Input!$E$96/12 -> 0 | I130: =Input!$E$96/12 -> 0 | J130: =Input!$E$96/12 -> 0 | K130: =Input!$E$96/12 -> 0 | L130: =Input!$E$96/12 -> 0 | M130: =Input!$E$96/12 -> 0 | N130: =Input!$E$96/12 -> 0 | O130: =Input!$E$96/12 -> 0 | P130: =Input!$E$96/12 -> 0 | Q130: =Input!$E$96/12 -> 0 | R130: =Input!$F$96/12 -> 0 | S130: =Input!$F$96/12 -> 0 | T130: =Input!$F$96/12 -> 0 | U130: =Input!$F$96/12 -> 0 | V130: =Input!$F$96/12 -> 0 | W130: =Input!$F$96/12 -> 0 | X130: =Input!$F$96/12 -> 0 | Y130: =Input!$F$96/12 -> 0 | Z130: =Input!$F$96/12 -> 0 | AA130: =Input!$F$96/12 -> 0 | AB130: =Input!$F$96/12 -> 0 | AC130: =Input!$F$96/12 -> 0 | AD130: 0 | AE130: 0
C131: Accounting, Property Taxes, Licenses | F131: 0 | G131: =Input!$E$377 -> 1500 | H131: 0 | I131: =Input!$E$375 -> 2000 | J131: 0 | K131: 0 | L131: 0 | M131: 0 | N131: =Input!$E$376 -> 2200 | O131: 0 | P131: 0 | Q131: 0 | R131: 0 | S131: =Input!$F$377 -> 1530 | T131: 0 | U131: =Input!$F$375 -> 2040 | V131: 0 | W131: 0 | X131: 0 | Y131: 0 | Z131: =Input!$F$376 -> 2244 | AA131: 0 | AB131: 0 | AC131: 0 | AD131: 5700 | AE131: 5814
C132: Insurance Costs | F132: =(Input!$E$380+Input!$E$383)/12 -> 133.0416667 | G132: =(Input!$E$380+Input!$E$383)/12 -> 133.0416667 | H132: =(Input!$E$380+Input!$E$383)/12 -> 133.0416667 | I132: =(Input!$E$380+Input!$E$383)/12 -> 133.0416667 | J132: =(Input!$E$380+Input!$E$383)/12 -> 133.0416667 | K132: =(Input!$E$380+Input!$E$383)/12 -> 133.0416667 | L132: =(Input!$E$380+Input!$E$383)/12 -> 133.0416667 | M132: =(Input!$E$380+Input!$E$383)/12 -> 133.0416667 | N132: =(Input!$E$380+Input!$E$383)/12 -> 133.0416667 | O132: =(Input!$E$380+Input!$E$383)/12 -> 133.0416667 | P132: =(Input!$E$380+Input!$E$383)/12 -> 133.0416667 | Q132: =(Input!$E$380+Input!$E$383)/12 -> 133.0416667 | R132: =(Input!$F$380+Input!$F$383)/12 -> 133.9791667 | S132: =(Input!$F$380+Input!$F$383)/12 -> 133.9791667 | T132: =(Input!$F$380+Input!$F$383)/12 -> 133.9791667 | U132: =(Input!$F$380+Input!$F$383)/12 -> 133.9791667 | V132: =(Input!$F$380+Input!$F$383)/12 -> 133.9791667 | W132: =(Input!$F$380+Input!$F$383)/12 -> 133.9791667 | X132: =(Input!$F$380+Input!$F$383)/12 -> 133.9791667 | Y132: =(Input!$F$380+Input!$F$383)/12 -> 133.9791667 | Z132: =(Input!$F$380+Input!$F$383)/12 -> 133.9791667 | AA132: =(Input!$F$380+Input!$F$383)/12 -> 133.9791667 | AB132: =(Input!$F$380+Input!$F$383)/12 -> 133.9791667 | AC132: =(Input!$F$380+Input!$F$383)/12 -> 133.9791667 | AD132: 1596.5 | AE132: 1607.75
C133: Operating Interest Costs | F133: =IF(F152<0,((F152*Input!$E$410)*-1)/12,0) -> 30.62137642 | G133: =IF(G152<0,((G152*Input!$E$410)*-1)/12,0) -> 26.15817014 | H133: =IF(H152<0,((H152*Input!$E$410)*-1)/12,0) -> 20.1932824 | I133: =IF(I152<0,((I152*Input!$E$410)*-1)/12,0) -> 17.66653411 | J133: =IF(J152<0,((J152*Input!$E$410)*-1)/12,0) -> 11.79582698 | K133: =IF(K152<0,((K152*Input!$E$410)*-1)/12,0) -> 6.717091531 | L133: =IF(L152<0,((L152*Input!$E$410)*-1)/12,0) -> 0.06929977804 | M133: =IF(M152<0,((M152*Input!$E$410)*-1)/12,0) -> 0 | N133: =IF(N152<0,((N152*Input!$E$410)*-1)/12,0) -> 0 | O133: =IF(O152<0,((O152*Input!$E$410)*-1)/12,0) -> 0 | P133: =IF(P152<0,((P152*Input!$E$410)*-1)/12,0) -> 0 | Q133: =IF(Q152<0,((Q152*Input!$E$410)*-1)/12,0) -> 0 | R133: =IF(R152<0,((R152*Input!$E$410)*-1)/12,0) -> 0 | S133: =IF(S152<0,((S152*Input!$E$410)*-1)/12,0) -> 0 | T133: =IF(T152<0,((T152*Input!$E$410)*-1)/12,0) -> 0 | U133: =IF(U152<0,((U152*Input!$E$410)*-1)/12,0) -> 0 | V133: =IF(V152<0,((V152*Input!$E$410)*-1)/12,0) -> 0 | W133: =IF(W152<0,((W152*Input!$E$410)*-1)/12,0) -> 0 | X133: =IF(X152<0,((X152*Input!$E$410)*-1)/12,0) -> 0 | Y133: =IF(Y152<0,((Y152*Input!$E$410)*-1)/12,0) -> 0 | Z133: =IF(Z152<0,((Z152*Input!$E$410)*-1)/12,0) -> 0 | AA133: =IF(AA152<0,((AA152*Input!$E$410)*-1)/12,0) -> 0 | AB133: =IF(AB152<0,((AB152*Input!$E$410)*-1)/12,0) -> 0 | AC133: =IF(AC152<0,((AC152*Input!$E$410)*-1)/12,0) -> 0 | AD133: 113.2215814 | AE133: 0
C134: TOTAL VARIABLE COSTS | F134: =SUM(F118:F133) -> 18403.44723 | G134: 19295.52969 | H134: 18393.01914 | I134: 20459.34094 | J134: 18654.62168 | K134: 19130.59666 | L134: 18500.09382 | M134: 18500.02452 | N134: 20505.14624 | O134: 18501.69119 | P134: 18443.34108 | Q134: 19194.89252 | R134: 18498.43002 | S134: 19424.97568 | T134: 18498.43002 | U134: 20607.27858 | V134: 18770.13002 | W134: 19251.42374 | X134: 18627.32869 | Y134: 18627.32869 | Z134: 20674.78374 | AA134: 18627.32869 | AB134: 18568.97858 | AC134: 19320.77002 | AD134: 227981.7447 | AE134: 229497.1865
C135: Depreciation | F135: =Depreciation!$E$9/12 -> 485.625 | G135: =Depreciation!$E$9/12 -> 485.625 | H135: =Depreciation!$E$9/12 -> 485.625 | I135: =Depreciation!$E$9/12 -> 485.625 | J135: =Depreciation!$E$9/12 -> 485.625 | K135: =Depreciation!$E$9/12 -> 485.625 | L135: =Depreciation!$E$9/12 -> 485.625 | M135: =Depreciation!$E$9/12 -> 485.625 | N135: =Depreciation!$G$9/12 -> 460.2129375 | O135: =Depreciation!$G$9/12 -> 460.2129375 | P135: =Depreciation!$G$9/12 -> 460.2129375 | Q135: =Depreciation!$G$9/12 -> 460.2129375 | R135: =Depreciation!$G$9/12 -> 460.2129375 | S135: =Depreciation!$G$9/12 -> 460.2129375 | T135: =Depreciation!$G$9/12 -> 460.2129375 | U135: =Depreciation!$G$9/12 -> 460.2129375 | V135: =Depreciation!$I$9/12 -> 436.2625306 | W135: =Depreciation!$I$9/12 -> 436.2625306 | X135: =Depreciation!$I$9/12 -> 436.2625306 | Y135: =Depreciation!$I$9/12 -> 436.2625306 | Z135: =Depreciation!$I$9/12 -> 436.2625306 | AA135: =Depreciation!$I$9/12 -> 436.2625306 | AB135: =Depreciation!$I$9/12 -> 436.2625306 | AC135: =Depreciation!$I$9/12 -> 436.2625306 | AD135: 5725.85175 | AE135: 5330.951995
C136: Long Term Interest | Q136: =Financing!$D$40 -> 4250 | AC136: =Financing!$D$41 -> 3933.053741 | AD136: 4250 | AE136: 3933.053741
C137: TOTAL FIXED COSTS | F137: =F135+F136 -> 485.625 | G137: =G135+G136 -> 485.625 | H137: =H135+H136 -> 485.625 | I137: 485.625 | J137: 485.625 | K137: 485.625 | L137: 485.625 | M137: 485.625 | N137: 460.2129375 | O137: 460.2129375 | P137: 460.2129375 | Q137: =Q135+Q136 -> 4710.212938 | R137: 460.2129375 | S137: 460.2129375 | T137: 460.2129375 | U137: 460.2129375 | V137: 436.2625306 | W137: 436.2625306 | X137: 436.2625306 | Y137: 436.2625306 | Z137: 436.2625306 | AA137: 436.2625306 | AB137: 436.2625306 | AC137: 4369.316271 | AD137: 9975.85175 | AE137: =SUM(R137:AC137) -> 9264.005736
D138: TOTAL COSTS | F138: =F134+F137 -> 18889.07223 | G138: 19781.15469 | H138: 18878.64414 | I138: 20944.96594 | J138: 19140.24668 | K138: 19616.22166 | L138: 18985.71882 | M138: 18985.64952 | N138: 20965.35918 | O138: 18961.90413 | P138: 18903.55401 | Q138: 23905.10546 | R138: =R134+R137 -> 18958.64296 | S138: =S134+S137 -> 19885.18862 | T138: =T134+T137 -> 18958.64296 | U138: =U134+U137 -> 21067.49151 | V138: =V134+V137 -> 19206.39255 | W138: =W134+W137 -> 19687.68627 | X138: 19063.59122 | Y138: 19063.59122 | Z138: 21111.04627 | AA138: 19063.59122 | AB138: 19005.24111 | AC138: 23690.08629 | AD138: 237957.5965 | AE138: 238761.1922
D139: NET INCOME, Before Taxes | F139: =F116-F138 -> 3088.844436 | G139: 2196.761979 | H139: 3099.27253 | I139: 1237.950724 | J139: 3042.669985 | K139: 2879.195003 | L139: 3197.197843 | M139: 3197.267143 | N139: 1217.55749 | O139: 3221.012539 | P139: 3279.362654 | Q139: -1614.688792 | R139: 3019.273708 | S139: 2092.728045 | T139: 3019.273708 | U139: 1115.425154 | V139: 2976.524115 | W139: 2807.730397 | X139: 3119.325446 | Y139: 3119.325446 | Z139: 1071.870397 | AA139: 3119.325446 | AB139: 3177.675561 | AC139: -1399.669626 | AD139: 28042.40353 | AE139: 27238.8078
D140: NET CASH FLOW | F140: =F109 -> 2022-01-01 | G140: 2022-02-01 | H140: 2022-03-01 | I140: 2022-04-01 | J140: 2022-05-01 | K140: 2022-06-01 | L140: 2022-07-01 | M140: 2022-08-01 | N140: 2022-09-01 | O140: 2022-10-01 | P140: 2022-11-01 | Q140: 2022-12-01 | R140: 2023-01-01 | S140: 2023-02-01 | T140: 2023-03-01 | U140: 2023-04-01 | V140: 2023-05-01 | W140: 2023-06-01 | X140: 2023-07-01 | Y140: 2023-08-01 | Z140: 2023-09-01 | AA140: 2023-10-01 | AB140: 2023-11-01 | AC140: 2023-12-01 | AD140: Year #1 | AE140: Year #2
C141: NET INCOME, Before Taxes | F141: =F139 -> 3088.844436 | G141: 2196.761979 | H141: 3099.27253 | I141: 1237.950724 | J141: 3042.669985 | K141: 2879.195003 | L141: 3197.197843 | M141: 3197.267143 | N141: 1217.55749 | O141: 3221.012539 | P141: 3279.362654 | Q141: -1614.688792 | R141: =R139 -> 3019.273708 | S141: =S139 -> 2092.728045 | T141: =T139 -> 3019.273708 | U141: =U139 -> 1115.425154 | V141: =V139 -> 2976.524115 | W141: =W139 -> 2807.730397 | X141: 3119.325446 | Y141: 3119.325446 | Z141: 1071.870397 | AA141: 3119.325446 | AB141: 3177.675561 | AC141: -1399.669626 | AD141: =SUM(F141:Q141) -> 28042.40353 | AE141: 27238.8078
C142: Plus Depreciation/Amortization | F142: =F135 -> 485.625 | G142: =G135 -> 485.625 | H142: 485.625 | I142: 485.625 | J142: 485.625 | K142: 485.625 | L142: 485.625 | M142: 485.625 | N142: 460.2129375 | O142: 460.2129375 | P142: 460.2129375 | Q142: 460.2129375 | R142: 460.2129375 | S142: 460.2129375 | T142: 460.2129375 | U142: 460.2129375 | V142: 436.2625306 | W142: 436.2625306 | X142: 436.2625306 | Y142: 436.2625306 | Z142: 436.2625306 | AA142: 436.2625306 | AB142: 436.2625306 | AC142: 436.2625306 | AD142: =SUM(F142:Q142) -> 5725.85175 | AE142: 5330.951995
C143: Sheep Loan Advance | F143: =Input!$E$427 -> 0 | G143: 0 | H143: 0 | I143: 0 | J143: 0 | K143: 0 | L143: 0 | M143: 0 | N143: 0 | O143: 0 | P143: 0 | Q143: 0 | R143: 1 | S143: 2 | T143: 3 | U143: 4 | V143: 5 | W143: 6 | X143: 7 | Y143: 8 | Z143: 9 | AA143: 10 | AB143: 11 | AC143: 12 | AD143: =SUM(F143:Q143) -> 0 | AE143: =SUM(R143:AC143) -> 78
C144: Less Principal Payments | F144: 0 | G144: 0 | H144: 0 | I144: 0 | J144: 0 | K144: 0 | L144: 0 | M144: 0 | N144: 0 | O144: 0 | P144: 0 | Q144: =Financing!$E$40 -> 6338.925185 | R144: =Financing!F40 -> 0 | S144: =Financing!G40 -> 0 | T144: =Financing!H40 -> 0 | U144: =Financing!I40 -> 0 | V144: =Financing!J40 -> 0 | W144: =Financing!K40 -> 0 | X144: =Financing!L40 -> 0 | Y144: =Financing!M40 -> 0 | Z144: =Financing!N40 -> 0 | AA144: =Financing!O40 -> 0 | AB144: =Financing!P40 -> 0 | AC144: =Financing!$E$41 -> 6655.871444 | AD144: =SUM(F144:Q144) -> 6338.925185 | AE144: =SUM(R144:AC144) -> 6655.871444
C145: Net Cash Flow, Before Taxes | F145: =F141+F142+F143-F144 -> 3574.469436 | G145: 2682.386979 | H145: 3584.89753 | I145: 1723.575724 | J145: 3528.294985 | K145: 3364.820003 | L145: 3682.822843 | M145: 3682.892143 | N145: 1677.770428 | O145: 3681.225476 | P145: 3739.575591 | Q145: -7493.401039 | R145: 3480.486646 | S145: 2554.940982 | T145: 3482.486646 | U145: 1579.638091 | V145: 3417.786646 | W145: 3249.992928 | X145: 3562.587976 | Y145: 3563.587976 | Z145: 1517.132928 | AA145: 3565.587976 | AB145: 3624.938091 | AC145: -7607.278539 | AD145: =SUM(F145:Q145) -> 27429.3301 | AE145: =SUM(R145:AC145) -> 25991.88835
C146: Operating Account Balance | F146: =$E$148+F145 -> 3574.469436 | G146: =F146+G145 -> 6256.856415 | H146: 9841.753945 | I146: 11565.32967 | J146: 15093.62465 | K146: 18458.44466 | L146: 22141.2675 | M146: 25824.15964 | N146: 27501.93007 | O146: 31183.15555 | P146: 34922.73114 | Q146: 27429.3301 | R146: 30909.81675 | S146: 33464.75773 | T146: 36947.24437 | U146: 38526.88246 | V146: 41944.66911 | W146: 45194.66204 | X146: 48757.25001 | Y146: 52320.83799 | Z146: 53837.97092 | AA146: 57403.55889 | AB146: 61028.49699 | AC146: 53421.21845
C147: Operating Interest Rate | E147: =Input!$E$410 -> 0.04 | O147: Average Annual | Q147: =AVERAGE(F146:Q146) -> 19482.7544 | AA147: Average Annual | AC147: =AVERAGE(R146:AC146) -> 46146.44714
C148: Starting Account Balance | E148: =Input!$E$388-Input!$E$402 -> 0 | F148: =F109 -> 2022-01-01 | G148: 2022-02-01 | H148: 2022-03-01 | I148: 2022-04-01 | J148: 2022-05-01 | K148: 2022-06-01 | L148: 2022-07-01 | M148: 2022-08-01 | N148: 2022-09-01 | O148: 2022-10-01 | P148: 2022-11-01 | Q148: 2022-12-01 | R148: 2023-01-01 | S148: 2023-02-01 | T148: 2023-03-01 | U148: 2023-04-01 | V148: 2023-05-01 | W148: 2023-06-01 | X148: 2023-07-01 | Y148: 2023-08-01 | Z148: 2023-09-01 | AA148: 2023-10-01 | AB148: 2023-11-01 | AC148: 2023-12-01
C149: Cash revenues | F149: =F116 -> 21977.91667 | G149: 21977.91667 | H149: 21977.91667 | I149: 22182.91667 | J149: 22182.91667 | K149: 22495.41667 | L149: 22182.91667 | M149: 22182.91667 | N149: 22182.91667 | O149: 22182.91667 | P149: 22182.91667 | Q149: 22290.41667 | R149: 21977.91667 | S149: 21977.91667 | T149: 21977.91667 | U149: 22182.91667 | V149: 22182.91667 | W149: 22495.41667 | X149: 22182.91667 | Y149: 22182.91667 | Z149: 22182.91667 | AA149: 22182.91667 | AB149: 22182.91667 | AC149: 22290.41667
C150: Cash expenditures for interest calculations month2 | F150: =SUM(F118:F132)+F136-F143+F144 -> 18372.82585 | G150: =SUM(G118:G132)+G136-G143+G144 -> 19269.37152 | H150: 18372.82585 | I150: 20441.67441 | J150: 18642.82585 | K150: 19123.87957 | L150: 18500.02452 | M150: 18500.02452 | N150: 20505.14624 | O150: 18501.69119 | P150: 18443.34108 | Q150: 29783.81771 | R150: 18497.43002 | S150: 19422.97568 | T150: 18495.43002 | U150: 20603.27858 | V150: 18765.13002 | W150: 19245.42374 | X150: 18620.32869 | Y150: 18619.32869 | Z150: 20665.78374 | AA150: 18617.32869 | AB150: 18557.97858 | AC150: 29897.69521
C151: Net cash flows | F151: =F149-F150 -> 3605.090812 | G151: 2708.545149 | H151: 3605.090812 | I151: 1741.242258 | J151: 3540.090812 | K151: 3371.537094 | L151: 3682.892143 | M151: 3682.892143 | N151: 1677.770428 | O151: 3681.225476 | P151: 3739.575591 | Q151: -7493.401039 | R151: 3480.486646 | S151: 2554.940982 | T151: 3482.486646 | U151: 1579.638091 | V151: 3417.786646 | W151: 3249.992928 | X151: 3562.587976 | Y151: 3563.587976 | Z151: 1517.132928 | AA151: 3565.587976 | AB151: 3624.938091 | AC151: -7607.278539
C152: Average Balance Pay Interest | F152: =IF(E148-F150<0,(E148-F150)/2,0) -> -9186.412927 | G152: =IF(F146-G150<0,(F146-G150)/2,0) -> -7847.451041 | H152: =IF(G146-H150<0,(G146-H150)/2,0) -> -6057.98472 | I152: -5299.960232 | J152: -3538.748093 | K152: -2015.127459 | L152: -20.78993341 | M152: 0 | N152: 0 | O152: 0 | P152: 0 | Q152: 0 | R152: 0 | S152: 0 | T152: 0 | U152: 0 | V152: 0 | W152: 0 | X152: 0 | Y152: 0 | Z152: 0 | AA152: 0 | AB152: 0 | AC152: 0

Sheet Income_Expense
B5: =Input!$C$10 -> Name: Draft Copy 400 Head Ewe Accelerated Operation (45 per month) | D5: INCOME AND EXPENSE PROJECTIONS
D6: =Input!$E$15 -> Year #1 | E6: =Input!$F$15 -> Year #2 | F6: =Input!$G$15 -> Year #3 | G6: =Input!$H$15 -> Year #4 | H6: =Input!$I$15 -> Year #5
B7: REVENUE | D7: Total $ | E7: Total $ | F7: Total $ | G7: Total $ | H7: Total $
C8: Feeder Lamb Sales (under 90lbs) | D8: =SUM(Monthly!F110:'Monthly'!Q110) -> 0 | E8: =SUM(Monthly!R110:'Monthly'!AC110) -> 0 | F8: =IF(Input!G$51>0,(Input!G$51*Input!G$54),(0)) -> 0 | G8: =IF(Input!H$51>0,(Input!H$51*Input!H$54),(0)) -> 0 | H8: =IF(Input!I$51>0,(Input!I$51*Input!I$54),(0)) -> 0
C9: Slaughter Lamb Sales (90lbs+) | D9: =SUM(Monthly!F111:'Monthly'!Q111) -> 251735 | E9: =SUM(Monthly!R111:'Monthly'!AC111) -> 251735 | F9: =IF(Input!G$56>0,(Input!G$56*Input!G$59),(0)) -> 251735 | G9: =IF(Input!H$56>0,(Input!H$56*Input!H$59),(0)) -> 251735 | H9: =IF(Input!I$56>0,(Input!I$56*Input!I$59),(0)) -> 251735
C10: Cull Ewe and Ram Sales | D10: =SUM(Monthly!F112:'Monthly'!Q112) -> 12625 | E10: =SUM(Monthly!R112:'Monthly'!AC112) -> 12625 | F10: =(Input!G$70*Input!G$73)+(Input!G$74*Input!G$77) -> 12625 | G10: =(Input!H$70*Input!H$73)+(Input!H$74*Input!H$77) -> 12625 | H10: =(Input!I$70*Input!I$73)+(Input!I$74*Input!I$77) -> 12625
C11: Breeding Stock Sales | D11: =SUM(Monthly!F113:'Monthly'!Q113) -> 0 | E11: =SUM(Monthly!R113:'Monthly'!AC113) -> 0 | F11: =((Input!$G$62*Input!$G$63)+(Input!$G$64*Input!$G$65)+(Input!$G$66*Input!$G$67)) -> 0 | G11: =((Input!$H$62*Input!$H$63)+(Input!$H$64*Input!$H$65)+(Input!$H$66*Input!$H$67)) -> 0 | H11: =((Input!$I$62*Input!$I$63)+(Input!$I$64*Input!$I$65)+(Input!$I$66*Input!$I$67)) -> 0
C12: Wool Sales | D12: =SUM(Monthly!F114:'Monthly'!Q114) -> 1640 | E12: =SUM(Monthly!R114:'Monthly'!AC114) -> 1640 | F12: =Input!G84 -> 1640 | G12: =Input!H84 -> 1640 | H12: =Input!I84 -> 1640
C13: Other Sales - (Meat & Mutton) | D13: =SUM(Monthly!F115:'Monthly'!Q115) -> 0 | E13: =SUM(Monthly!R115:'Monthly'!AC115) -> 0 | F13: =Input!G$90*Input!G$91*Input!G$93 -> 0 | G13: =Input!H$90*Input!H$91*Input!H$93 -> 0 | H13: =Input!I$90*Input!I$91*Input!I$93 -> 0
C14: TOTAL REVENUE | D14: =SUM(D8:D13) -> 266000 | E14: =SUM(E8:E13) -> 266000 | F14: =SUM(F8:F13) -> 266000 | G14: =SUM(G8:G13) -> 266000 | H14: =SUM(H8:H13) -> 266000
B15: EXPENSES - VARIABLE COSTS
C16: Feed Grain/Pellets, Hay, Pasture & Minerals | D16: =SUM(Monthly!F118:'Monthly'!Q118) -> 124312.7423 | E16: =SUM(Monthly!R118:'Monthly'!AC118) -> 124312.7423 | F16: =(Input!$G194+Input!$G202)*(365/Input!$G210)+(Input!$G229+Input!$G235)+(Input!G$239*Input!G$255)+(Input!G$259*Input!G$275)+(Input!G$279*Input!G$295)+Input!G$118-(Input!G$24*(Input!G$255+Input!G$275+Input!G$295)) -> 124455.5436 | G16: =(Input!$G194+Input!$G202)*(365/Input!$G210)+(Input!$G229+Input!$G235)+(Input!H$239*Input!H$255)+(Input!H$259*Input!H$275)+(Input!H$279*Input!H$295)+Input!H$118-(Input!H$24*(Input!H$255+Input!H$275+Input!H$295)) -> 124455.5436 | H16: =(Input!$G194+Input!$G202)*(365/Input!$G210)+(Input!$G229+Input!$G235)+(Input!I$239*Input!I$255)+(Input!I$259*Input!I$275)+(Input!I$279*Input!I$295)+Input!I$118-(Input!I$24*(Input!I$255+Input!I$275+Input!I$295)) -> 124455.5436
C17: Milk Replacer & Machine | D17: =SUM(Monthly!F119:'Monthly'!Q119) -> 4627.291778 | E17: =SUM(Monthly!R119:'Monthly'!AC119) -> 4647.291778 | F17: =Input!$G$316+(Input!$G$322*12) -> 4667.691778 | G17: =Input!$G$316+(Input!$G$322*12) -> 4667.691778 | H17: =Input!$G$316+(Input!$G$322*12) -> 4667.691778
C18: =Monthly!$C$121 -> Breeding Supplies | D18: =SUM(Monthly!F121:'Monthly'!Q121) -> 12420 | E18: =SUM(Monthly!R121:'Monthly'!AC121) -> 12668.4 | F18: =Input!G$313 -> 12921.768 | G18: =Input!H$313 -> 13180.20336 | H18: =Input!I$313 -> 13443.80743
C19: Breeding Stock Purchases and Supplies(feed) | D19: =SUM(Monthly!F122:'Monthly'!Q122) -> 5062.522409 | E19: =SUM(Monthly!R122:'Monthly'!AC122) -> 5062.522409 | F19: =(Input!G$25*Input!G$26)+(Input!G$32*Input!G$33)+(Input!G$24*(Input!G$255+Input!G$275+Input!G$295)) -> 5062.522409 | G19: =(Input!H$25*Input!H$26)+(Input!H$32*Input!H$33)+(Input!H$24*(Input!H$255+Input!H$275+Input!H$295)) -> 5062.522409 | H19: =(Input!I$25*Input!I$26)+(Input!I$32*Input!I$33)+(Input!I$24*(Input!I$255+Input!I$275+Input!I$295)) -> 5062.522409
C20: Veterinary Services and Medication | D20: =SUM(Monthly!F120:'Monthly'!Q120) -> 4100 | E20: =SUM(Monthly!R120:'Monthly'!AC120) -> 4182 | F20: =Input!G$305 -> 4265.64 | G20: =Input!H$305 -> 4350.9528 | H20: =Input!I$305 -> 4437.971856
C21: Guardian and Herd Dog Costs | D21: =SUM(Monthly!F123:'Monthly'!Q123) -> 2706.666667 | E21: =SUM(Monthly!R123:'Monthly'!AC123) -> 2733.6 | F21: =Input!G$325+Input!G$326+Input!G$329+Input!G$330 -> 2740.4 | G21: =Input!H$325+Input!H$326+Input!H$329+Input!H$330 -> 2761.208 | H21: =Input!I$325+Input!I$326+Input!I$329+Input!I$330 -> 2782.43216
C22: Labour Costs | D22: =SUM(Monthly!F124:'Monthly'!Q124) -> 30320 | E22: =SUM(Monthly!R124:'Monthly'!AC124) -> 30926.4 | F22: =Input!G$337 -> 31544.928 | G22: =Input!H$337 -> 32175.82656 | H22: =Input!I$337 -> 32819.34309
C23: Custom Work/Manure Removal Costs | D23: =SUM(Monthly!F125:'Monthly'!Q125) -> 3600 | E23: =SUM(Monthly!R125:'Monthly'!AC125) -> 3672 | F23: =Input!G344 -> 3745.44 | G23: =Input!H344 -> 3820.3488 | H23: =Input!I344 -> 3896.755776
C24: Fuel and Utility Costs | D24: =SUM(Monthly!F126:'Monthly'!Q126) -> 5200 | E24: =SUM(Monthly!R126:'Monthly'!AC126) -> 5304 | F24: =Input!G$347+Input!G$349 -> 5410.08 | G24: =Input!H$347+Input!H$349 -> 5518.2816 | H24: =Input!I$347+Input!I$349 -> 5628.647232
C25: Building and Equipment Repairs | D25: =SUM(Monthly!F127:'Monthly'!Q127) -> 4500 | E25: =SUM(Monthly!R127:'Monthly'!AC127) -> 4590 | F25: =Input!G$353+Input!G$355 -> 4681.8 | G25: =Input!H$353+Input!H$355 -> 4775.436 | H25: =Input!I$353+Input!I$355 -> 4870.94472
C26: Marketing, Check-Off, & Transportation Costs | D26: =SUM(Monthly!F128:'Monthly'!Q128) -> 21562.8 | E26: =SUM(Monthly!R128:'Monthly'!AC128) -> 21816.48 | F26: =Input!G$362+Input!G$367+Input!G$372 -> 22075.2336 | G26: =Input!H$362+Input!H$367+Input!H$372 -> 22339.16227 | H26: =Input!I$362+Input!I$367+Input!I$372 -> 22608.36952
C27: Shearing and Wool Production Costs | D27: =SUM(Monthly!F129:'Monthly'!Q129) -> 2160 | E27: =SUM(Monthly!R129:'Monthly'!AC129) -> 2160 | F27: =Input!G87 -> 2460 | G27: =Input!H87 -> 2460 | H27: =Input!I87 -> 2460
C28: Accounting, Property Taxes, Licenses | D28: =SUM(Monthly!F131:'Monthly'!Q131) -> 5700 | E28: =SUM(Monthly!R131:'Monthly'!AC131) -> 5814 | F28: =Input!G$375+Input!G$376+Input!G$377 -> 5930.28 | G28: =Input!H$375+Input!H$376+Input!H$377 -> 6048.8856 | H28: =Input!I$375+Input!I$376+Input!I$377 -> 6169.863312
C29: Insurance Costs | D29: =SUM(Monthly!F132:'Monthly'!Q132) -> 1596.5 | E29: =SUM(Monthly!R132:'Monthly'!AC132) -> 1607.75 | F29: =Input!G$380+Input!G$383 -> 1619.225 | G29: =Input!H$380+Input!H$383 -> 1630.9295 | H29: =Input!I$380+Input!I$383 -> 1642.86809
C30: Operating Interest Costs | D30: =SUM(Monthly!F133:'Monthly'!Q133) -> 113.2215814 | E30: =SUM(Monthly!R133:'Monthly'!AC133) -> 0 | F30: =Input!G411 -> 0 | G30: =Input!H411 -> 0 | H30: =Input!I411 -> 0
C31: TOTAL VARIABLE COSTS | D31: =SUM(D16:D30) -> 227981.7447 | E31: =SUM(E16:E30) -> 229497.1865 | F31: =SUM(F16:F30) -> 231580.5524 | G31: =SUM(G16:G30) -> 233246.9923 | H31: =SUM(H16:H30) -> 234946.761
C32: Depreciation | D32: =SUM(Monthly!F135:'Monthly'!Q135) -> 5725.85175 | E32: =SUM(Monthly!R135:'Monthly'!AC135) -> 5330.951995 | F32: =Depreciation!I$9 -> 5235.150368 | G32: =Depreciation!K$9 -> 4964.20942 | H32: =Depreciation!M$9 -> 4708.725062
C33: Long Term Interest | D33: =SUM(Monthly!F136:'Monthly'!Q136) -> 4250 | E33: =SUM(Monthly!R136:'Monthly'!AC136) -> 3933.053741 | F33: =Financing!D42 -> 3600.260169 | G33: =Financing!D43 -> 3250.826918 | H33: =Financing!D44 -> 2883.922004
C34: TOTAL FIXED COSTS | D34: =D32+D33 -> 9975.85175 | E34: =E32+E33 -> 9264.005736 | F34: =F32+F33 -> 8835.410536 | G34: =G32+G33 -> 8215.036338 | H34: =H32+H33 -> 7592.647066
C35: TOTAL COSTS | D35: =D31+D34 -> 237957.5965 | E35: =E31+E34 -> 238761.1922 | F35: =F31+F34 -> 240415.9629 | G35: =G31+G34 -> 241462.0286 | H35: =H31+H34 -> 242539.408
C36: NET INCOME, Before Taxes | D36: =D14-D35 -> 28042.40353 | E36: =E14-E35 -> 27238.8078 | F36: =F14-F35 -> 25584.03707 | G36: =G14-G35 -> 24537.97137 | H36: =H14-H35 -> 23460.59195
C37: ACCRUED NET INCOME, Before Taxes | D37: =D36+Balance_Sheet!D54 -> 28042.40353 | E37: =E36+Balance_Sheet!E54 -> 27238.8078 | F37: =F36+Balance_Sheet!F54 -> 25584.03707 | G37: =G36+Balance_Sheet!G54 -> 24537.97137 | H37: =H36+Balance_Sheet!H54 -> 23460.59195
D38: =D6 -> Year #1 | E38: =E6 -> Year #2 | F38: =F6 -> Year #3 | G38: =G6 -> Year #4 | H38: =H6 -> Year #5
C39: CASH FLOW, Before Taxes | D39: Total $ | E39: Total $ | F39: Total $ | G39: Total $ | H39: Total $
C40: NET INCOME, Before Taxes | D40: =D36 -> 28042.40353 | E40: =E36 -> 27238.8078 | F40: =F36 -> 25584.03707 | G40: =G36 -> 24537.97137 | H40: =H36 -> 23460.59195
C41: Plus Depreciation/Amortization | D41: =D32 -> 5725.85175 | E41: =E32 -> 5330.951995 | F41: =F32 -> 5235.150368 | G41: =G32 -> 4964.20942 | H41: =H32 -> 4708.725062
C42: Sheep Loan Advance | D42: =Input!E427 -> 0 | E42: =Input!E433 -> 0 | F42: =Input!E439 -> 0 | G42: =Input!E445 -> 0 | H42: =Input!E451 -> 0
C43: Less Principal Payments | D43: =Monthly!Q144 -> 6338.925185 | E43: =Monthly!AC144 -> 6655.871444 | F43: =Financing!E42 -> 6988.665016 | G43: =Financing!E43 -> 7338.098267 | H43: =Financing!E44 -> 7705.00318
C44: Net Cash Flow, Before Taxes | D44: =D40+D41+D42-D43 -> 27429.3301 | E44: =E40+E41+E42-E43 -> 25913.88835 | F44: =F40+F41+F42-F43 -> 23830.52242 | G44: =G40+G41+G42-G43 -> 22164.08252 | H44: =H40+H41+H42-H43 -> 20464.31383
C45: Year End Operating Balance | D45: =Monthly!Q146 -> 27429.3301 | E45: =Monthly!AC146 -> 53421.21845 | F45: =E45+F44 -> 77251.74086 | G45: =F45+G44 -> 99415.82339 | H45: =G45+H44 -> 119880.1372
C46: Estimated Annual Operating Balance | E46: =D45+((E14-SUM(E16:E29)))/12 -> 30471.23123 | F46: =E45+((F14-SUM(F16:F29)))/12 -> 56289.50575 | G46: =F45+((G14-SUM(G16:G29)))/12 -> 79981.15817 | H46: =G45+((H14-SUM(H16:H29)))/12 -> 102003.5933
C47: Number of Ewes Lambing During The Year | D47: =Input!E$16-Input!$G$18 -> 400 | E47: =Input!F$16-Input!$G$18 -> 400 | F47: =Input!G$16-Input!$G$18 -> 400 | G47: =Input!H$16-Input!$H$18 -> 400 | H47: =Input!I$16-Input!$I$18 -> 400
C48: =C8 -> Feeder Lamb Sales (under 90lbs) | D48: =Input!$E$51 -> 0 | E48: =Input!$F$51 -> 0 | F48: =Input!$G$51 -> 0 | G48: =Input!$H$51 -> 0 | H48: =Input!$I$51 -> 0
C49: =C9 -> Slaughter Lamb Sales (90lbs+) | D49: =Input!$E$56 -> 995 | E49: =Input!$F$56 -> 995 | F49: =Input!$G$56 -> 995 | G49: =Input!$H$56 -> 995 | H49: =Input!$I$56 -> 995
C50: Lambs Kept for Breeding | D50: =Input!E$24 -> 72 | E50: =Input!F$24 -> 72 | F50: =Input!G$24 -> 72 | G50: =Input!H$24 -> 72 | H50: =Input!I$24 -> 72
C51: Breeding Stock Sales | D51: =Input!E$62+Input!$E64+Input!E$66 -> 0 | E51: =Input!F$62+Input!$F64+Input!F$66 -> 0 | F51: =Input!G$62+Input!$F64+Input!G$66 -> 0 | G51: =Input!H$62+Input!$F64+Input!H$66 -> 0 | H51: =Input!I$62+Input!$F64+Input!I$66 -> 0
C52: =C13 -> Other Sales - (Meat & Mutton) | D52: =Input!E$90 -> 0 | E52: =Input!F$90 -> 0 | F52: =Input!G$90 -> 0 | G52: =Input!H$90 -> 0 | H52: =Input!I$90 -> 0
C53: Cull Rams & Ewes | D53: =Input!E$22+Input!E$31 -> 62 | E53: =Input!F$22+Input!F$31 -> 62 | F53: =Input!G$22+Input!G$31 -> 62 | G53: =Input!H$22+Input!H$31 -> 62 | H53: =Input!I$22+Input!I$31 -> 62
C54: Lambs For Sale | D54: =Input!E$48 -> 995 | E54: =Input!F$48 -> 995 | F54: =Input!G$48 -> 995 | G54: =Input!H$48 -> 995 | H54: =Input!I$48 -> 995
B57: =Input!$C$10 -> Name: Draft Copy 400 Head Ewe Accelerated Operation (45 per month) | D57: INCOME AND EXPENSE PER EWE
D58: =D6 -> Year #1 | E58: =E6 -> Year #2 | F58: =F6 -> Year #3 | G58: =G6 -> Year #4 | H58: =H6 -> Year #5
B59: REVENUE | D59: $/Ewe | E59: $/Ewe | F59: $/Ewe | G59: $/Ewe | H59: $/Ewe
C60: Feeder Lamb Sales (under 90lbs) | D60: =IF(F8>0,F8/D99,0) -> 0 | E60: =IF(G8>0,G8/E99,0) -> 0 | F60: =IF(H8>0,H8/F99,0) -> 0 | G60: =IF(I8>0,I8/G99,0) -> 0 | H60: =IF(J8>0,J8/H99,0) -> 0
C61: Slaughter Lamb Sales (90lbs+) | D61: =IF(D9>0,D9/D99,0) -> 629.3375 | E61: =IF(E9>0,E9/E99,0) -> 629.3375 | F61: =IF(F9>0,F9/F99,0) -> 629.3375 | G61: =IF(G9>0,G9/G99,0) -> 629.3375 | H61: =IF(H9>0,H9/H99,0) -> 629.3375
C62: =C10 -> Cull Ewe and Ram Sales | D62: =IF(D10>0,D10/D99,0) -> 31.5625 | E62: =IF(E10>0,E10/E99,0) -> 31.5625 | F62: =IF(F10>0,F10/F99,0) -> 31.5625 | G62: =IF(G10>0,G10/G99,0) -> 31.5625 | H62: =IF(H10>0,H10/H99,0) -> 31.5625
C63: =C11 -> Breeding Stock Sales | D63: =IF(D11>0,D11/D99,0) -> 0 | E63: =IF(E11>0,E11/E99,0) -> 0 | F63: =IF(F11>0,F11/F99,0) -> 0 | G63: =IF(G11>0,G11/G99,0) -> 0 | H63: =IF(H11>0,H11/H99,0) -> 0
C64: =C12 -> Wool Sales | D64: =IF(D12>0,D12/D99,0) -> 4.1 | E64: =IF(E12>0,E12/E99,0) -> 4.1 | F64: =IF(F12>0,F12/F99,0) -> 4.1 | G64: =IF(G12>0,G12/G99,0) -> 4.1 | H64: =IF(H12>0,H12/H99,0) -> 4.1
C65: =C13 -> Other Sales - (Meat & Mutton) | D65: =IF(D13>0,D13/D99,0) -> 0 | E65: =IF(E13>0,E13/E99,0) -> 0 | F65: =IF(F13>0,F13/F99,0) -> 0 | G65: =IF(G13>0,G13/G99,0) -> 0 | H65: =IF(H13>0,H13/H99,0) -> 0
C66: TOTAL REVENUE | D66: =IF(D14>0,D14/D99,0) -> 665 | E66: =IF(E14>0,E14/E99,0) -> 665 | F66: =IF(F14>0,F14/F99,0) -> 665 | G66: =IF(G14>0,G14/G99,0) -> 665 | H66: =IF(H14>0,H14/H99,0) -> 665
B67: EXPENSES - VARIABLE COSTS
C68: Feed Grain/Pellets, Hay, Pasture & Minerals | D68: =D16/D99 -> 310.7818557 | E68: =E16/E99 -> 310.7818557 | F68: =F16/F99 -> 311.138859 | G68: =G16/G99 -> 311.138859 | H68: =H16/H99 -> 311.138859
C69: Milk Replacer & Machine | D69: =D17/D99 -> 11.56822945 | E69: =E17/E99 -> 11.61822945 | F69: =F17/F99 -> 11.66922945 | G69: =G17/G99 -> 11.66922945 | H69: =H17/H99 -> 11.66922945
C70: =Monthly!$C$121 -> Breeding Supplies | D70: =D18/D99 -> 31.05 | E70: =E18/E99 -> 31.671 | F70: =F18/F99 -> 32.30442 | G70: =G18/G99 -> 32.9505084 | H70: =H18/H99 -> 33.60951857
C71: Breeding Stock Purchases and Supplies(feed) | D71: =D19/D99 -> 12.65630602 | E71: =E19/E99 -> 12.65630602 | F71: =F19/F99 -> 12.65630602 | G71: =G19/G99 -> 12.65630602 | H71: =H19/H99 -> 12.65630602
C72: Veterinary Services and Medication | D72: =D20/D99 -> 10.25 | E72: =E20/E99 -> 10.455 | F72: =F20/F99 -> 10.6641 | G72: =G20/G99 -> 10.877382 | H72: =H20/H99 -> 11.09492964
C73: Guardian and Herd Dog Costs | D73: =D21/D99 -> 6.766666667 | E73: =E21/E99 -> 6.834 | F73: =F21/F99 -> 6.851 | G73: =G21/G99 -> 6.90302 | H73: =H21/H99 -> 6.9560804
C74: Labour Costs | D74: =D22/D99 -> 75.8 | E74: =E22/E99 -> 77.316 | F74: =F22/F99 -> 78.86232 | G74: =G22/G99 -> 80.4395664 | H74: =H22/H99 -> 82.04835773
C75: Custom Work/Manure Removal Costs | D75: =D23/D99 -> 9 | E75: =E23/E99 -> 9.18 | F75: =F23/F99 -> 9.3636 | G75: =G23/G99 -> 9.550872 | H75: =H23/H99 -> 9.74188944
C76: Fuel and Utility Costs | D76: =D24/D99 -> 13 | E76: =E24/E99 -> 13.26 | F76: =F24/F99 -> 13.5252 | G76: =G24/G99 -> 13.795704 | H76: =H24/H99 -> 14.07161808
C77: Building and Equipment Repairs | D77: =D25/D99 -> 11.25 | E77: =E25/E99 -> 11.475 | F77: =F25/F99 -> 11.7045 | G77: =G25/G99 -> 11.93859 | H77: =H25/H99 -> 12.1773618
C78: Marketing, Check-Off, & Transportation Costs | D78: =D26/D99 -> 53.907 | E78: =E26/E99 -> 54.5412 | F78: =F26/F99 -> 55.188084 | G78: =G26/G99 -> 55.84790568 | H78: =H26/H99 -> 56.52092379
C79: Shearing and Wool Production Costs | D79: =D27/D99 -> 5.4 | E79: =E27/E99 -> 5.4 | F79: =F27/F99 -> 6.15 | G79: =G27/G99 -> 6.15 | H79: =H27/H99 -> 6.15
C80: Accounting, Property Taxes, Licenses | D80: =D28/D99 -> 14.25 | E80: =E28/E99 -> 14.535 | F80: =F28/F99 -> 14.8257 | G80: =G28/G99 -> 15.122214 | H80: =H28/H99 -> 15.42465828
C81: Insurance Costs | D81: =D29/D99 -> 3.99125 | E81: =E29/E99 -> 4.019375 | F81: =F29/F99 -> 4.0480625 | G81: =G29/G99 -> 4.07732375 | H81: =H29/H99 -> 4.107170225
C82: Operating Interest Costs | D82: =D30/D99 -> 0.2830539534 | E82: =E30/E99 -> 0 | F82: =F30/F99 -> 0 | G82: =G30/G99 -> 0 | H82: =H30/H99 -> 0
C83: TOTAL VARIABLE COSTS | D83: =SUM(D68:D82) -> 569.9543618 | E83: =SUM(E68:E82) -> 573.7429662 | F83: =SUM(F68:F82) -> 578.951381 | G83: =SUM(G68:G82) -> 583.1174807 | H83: =SUM(H68:H82) -> 587.3669025
C84: Depreciation | D84: =D32/D99 -> 14.31462938 | E84: =E32/E99 -> 13.32737999 | F84: =F32/F99 -> 13.08787592 | G84: =G32/G99 -> 12.41052355 | H84: =H32/H99 -> 11.77181265
C85: Long Term Interest | D85: =D33/D99 -> 10.625 | E85: =E33/E99 -> 9.832634352 | F85: =F33/F99 -> 9.000650421 | G85: =G33/G99 -> 8.127067294 | H85: =H33/H99 -> 7.209805011
C86: TOTAL FIXED COSTS | D86: =D84+D85 -> 24.93962938 | E86: =E84+E85 -> 23.16001434 | F86: =F84+F85 -> 22.08852634 | G86: =G84+G85 -> 20.53759085 | H86: =H84+H85 -> 18.98161767
C87: TOTAL COSTS | D87: =D83+D86 -> 594.8939912 | E87: =E83+E86 -> 596.9029805 | F87: =F83+F86 -> 601.0399073 | G87: =G83+G86 -> 603.6550716 | H87: =H83+H86 -> 606.3485201
C88: NET INCOME, Before Taxes | D88: =D66-D87 -> 70.10600884 | E88: =E66-E87 -> 68.09701949 | F88: =F66-F87 -> 63.96009266 | G88: =G66-G87 -> 61.34492843 | H88: =H66-H87 -> 58.65147988
C89: ACCRUED NET INCOME, Before Taxes | D89: =D37/D99 -> 70.10600884 | E89: =E37/E99 -> 68.09701949 | F89: =F37/F99 -> 63.96009266 | G89: =G37/G99 -> 61.34492843 | H89: =H37/H99 -> 58.65147988
D90: =D58 -> Year #1 | E90: Year #2 | F90: Year #3 | G90: =G58 -> Year #4 | H90: =H58 -> Year #5
C91: CASH FLOW, Before Taxes | D91: $/Ewe | E91: $/Ewe | F91: $/Ewe | G91: =G59 -> $/Ewe | H91: =H59 -> $/Ewe
C92: NET INCOME, Before Taxes | D92: =D40/D99 -> 70.10600884 | E92: =E40/E99 -> 68.09701949 | F92: =F40/F99 -> 63.96009266 | G92: =G40/G99 -> 61.34492843 | H92: =H40/H99 -> 58.65147988
C93: Plus Depreciation/Amortization | D93: =D41/D99 -> 14.31462938 | E93: =E41/E99 -> 13.32737999 | F93: =F41/F99 -> 13.08787592 | G93: =G41/G99 -> 12.41052355 | H93: =H41/H99 -> 11.77181265
C94: Sheep Loan Advance | D94: =D42/D99 -> 0 | E94: =E42/E99 -> 0 | F94: =F42/F99 -> 0 | G94: =G42/G99 -> 0 | H94: =H42/H99 -> 0
C95: Less Principal Payments | D95: =D43/D99 -> 15.84731296 | E95: =E43/E99 -> 16.63967861 | F95: =F43/F99 -> 17.47166254 | G95: =G43/G99 -> 18.34524567 | H95: =H43/H99 -> 19.26250795
C96: Net Cash Flow, Before Taxes | D96: =D92+D93+D94-D95 -> 68.57332525 | E96: =E92+E93+E94-E95 -> 64.78472087 | F96: =F92+F93+F94-F95 -> 59.57630604 | G96: =G92+G93+G94-G95 -> 55.41020631 | H96: =H92+H93+H94-H95 -> 51.16078459
D98: =D6 -> Year #1 | E98: =E6 -> Year #2 | F98: =F6 -> Year #3 | G98: =G6 -> Year #4 | H98: =H6 -> Year #5
C99: Number of Ewes Lambing During The Year | D99: =D47 -> 400 | E99: =E47 -> 400 | F99: 400 | G99: 400 | H99: 400
C100: =C60 -> Feeder Lamb Sales (under 90lbs) | D100: 0 | E100: 0 | F100: 0 | G100: 0 | H100: 0
C101: =C61 -> Slaughter Lamb Sales (90lbs+) | D101: 995 | E101: 995 | F101: 995 | G101: 995 | H101: 995
C102: =C50 -> Lambs Kept for Breeding | D102: 72 | E102: 72 | F102: 72 | G102: 72 | H102: 72
C103: Breeding Stock Sales | D103: 0 | E103: 0 | F103: 0 | G103: 0 | H103: 0
C104: =C65 -> Other Sales - (Meat & Mutton) | D104: 0 | E104: 0 | F104: 0 | G104: 0 | H104: 0
C105: Cull Rams & Ewes | D105: 62 | E105: 62 | F105: 62 | G105: 62 | H105: 62
C106: Lambs Available For Sale | D106: 995 | E106: 995 | F106: 995 | G106: 995 | H106: 995
B110: =Input!$C$10 -> Name: Draft Copy 400 Head Ewe Accelerated Operation (45 per month) | D110: INCOME AND EXPENSE PER LAMB
D111: =D6 -> Year #1 | E111: =E6 -> Year #2 | F111: =F6 -> Year #3 | G111: =G6 -> Year #4 | H111: =H6 -> Year #5
B112: REVENUE | D112: $/Lamb | E112: $/Lamb | F112: $/Lamb | G112: $/Lamb | H112: $/Lamb
C113: Feeder Lamb Sales (under 90lbs) | D113: =IF(D8>0,D8/D152,0) -> 0 | E113: 0 | F113: 0 | G113: 0 | H113: 0
C114: Slaughter Lamb Sales (90lbs+) | D114: 253 | E114: 253 | F114: 253 | G114: 253 | H114: 253
C115: =C63 -> Breeding Stock Sales | D115: =IF(D10>0,D10/D158,0) -> 12.68844221 | E115: =IF(E10>0,E10/E158,0) -> 12.68844221 | F115: =IF(F10>0,F10/F158,0) -> 12.68844221 | G115: =IF(G10>0,G10/G158,0) -> 12.68844221 | H115: =IF(H10>0,H10/H158,0) -> 12.68844221
C116: =C64 -> Wool Sales | D116: =IF(D11>0,D11/D158,0) -> 0 | E116: =IF(E11>0,E11/E158,0) -> 0 | F116: =IF(F11>0,F11/F158,0) -> 0 | G116: =IF(G11>0,G11/G158,0) -> 0 | H116: =IF(H11>0,H11/H158,0) -> 0
C117: =C65 -> Other Sales - (Meat & Mutton) | D117: =IF(D12>0,D12/D158,0) -> 1.648241206 | E117: =IF(E12>0,E12/E158,0) -> 1.648241206 | F117: =IF(F12>0,F12/F158,0) -> 1.648241206 | G117: =IF(G12>0,G12/G158,0) -> 1.648241206 | H117: =IF(H12>0,H12/H158,0) -> 1.648241206
C118: =C66 -> TOTAL REVENUE | D118: =IF(D13>0,D13/D158,0) -> 0 | E118: =IF(E13>0,E13/E158,0) -> 0 | F118: =IF(F13>0,F13/F158,0) -> 0 | G118: =IF(G13>0,G13/G158,0) -> 0 | H118: =IF(H13>0,H13/H158,0) -> 0
C119: TOTAL REVENUE | D119: =D14/D158 -> 267.3366834 | E119: =E14/E158 -> 267.3366834 | F119: =F14/F158 -> 267.3366834 | G119: =G14/G158 -> 267.3366834 | H119: =H14/H158 -> 267.3366834
B120: EXPENSES - VARIABLE COSTS
C121: Feed Grain/Pellets, Hay, Pasture & Minerals | D121: =D16/D158 -> 124.9374294 | E121: =E16/E158 -> 124.9374294 | F121: =F16/F158 -> 125.0809484 | G121: =G16/G158 -> 125.0809484 | H121: =H16/H158 -> 125.0809484
C122: Milk Replacer & Machine | D122: =D17/D158 -> 4.650544501 | E122: =E17/E158 -> 4.670645003 | F122: =F17/F158 -> 4.691147516 | G122: =G17/G158 -> 4.691147516 | H122: =H17/H158 -> 4.691147516
C123: =Monthly!$C$121 -> Breeding Supplies | D123: =D18/D158 -> 12.48241206 | E123: =E18/E158 -> 12.7320603 | F123: =F18/F158 -> 12.98670151 | G123: =G18/G158 -> 13.24643554 | H123: =H18/H158 -> 13.51136425
C124: Breeding Stock Purchases and Supplies(feed) | D124: =D19/D158 -> 5.08796222 | E124: =E19/E158 -> 5.08796222 | F124: =F19/F158 -> 5.08796222 | G124: =G19/G158 -> 5.08796222 | H124: =H19/H158 -> 5.08796222
C125: Veterinary Services and Medication | D125: =D20/D158 -> 4.120603015 | E125: =E20/E158 -> 4.203015075 | F125: =F20/F158 -> 4.287075377 | G125: =G20/G158 -> 4.372816884 | H125: =H20/H158 -> 4.460273222
C126: Guardian and Herd Dog Costs | D126: =D21/D158 -> 2.720268007 | E126: =E21/E158 -> 2.747336683 | F126: =F21/F158 -> 2.754170854 | G126: =G21/G158 -> 2.775083417 | H126: =H21/H158 -> 2.796414231
C127: Labour Costs | D127: =D22/D158 -> 30.47236181 | E127: =E22/E158 -> 31.08180905 | F127: =F22/F158 -> 31.70344523 | G127: =G22/G158 -> 32.33751413 | H127: =H22/H158 -> 32.98426441
C128: Custom Work/Manure Removal Costs | D128: =D23/D158 -> 3.618090452 | E128: =E23/E158 -> 3.690452261 | F128: =F23/F158 -> 3.764261307 | G128: =G23/G158 -> 3.839546533 | H128: =H23/H158 -> 3.916337463
C129: Fuel and Utility Costs | D129: =D24/D158 -> 5.226130653 | E129: =E24/E158 -> 5.330653266 | F129: =F24/F158 -> 5.437266332 | G129: =G24/G158 -> 5.546011658 | H129: =H24/H158 -> 5.656931891
C130: Building and Equipment Repairs | D130: =D25/D158 -> 4.522613065 | E130: =E25/E158 -> 4.613065327 | F130: =F25/F158 -> 4.705326633 | G130: =G25/G158 -> 4.799433166 | H130: =H25/H158 -> 4.895421829
C131: Marketing, Check-Off, & Transportation Costs | D131: =D26/D158 -> 21.67115578 | E131: =E26/E158 -> 21.92611055 | F131: =F26/F158 -> 22.18616442 | G131: =G26/G158 -> 22.45141937 | H131: =H26/H158 -> 22.72197941
C132: Shearing and Wool Production Costs | D132: =D27/D158 -> 2.170854271 | E132: =E27/E158 -> 2.170854271 | F132: =F27/F158 -> 2.472361809 | G132: =G27/G158 -> 2.472361809 | H132: =H27/H158 -> 2.472361809
C133: Accounting, Property Taxes, Licenses | D133: =D28/D158 -> 5.728643216 | E133: =E28/E158 -> 5.84321608 | F133: =F28/F158 -> 5.960080402 | G133: =G28/G158 -> 6.07928201 | H133: =H28/H158 -> 6.20086765
C134: Insurance Costs | D134: =D29/D158 -> 1.604522613 | E134: =E29/E158 -> 1.615829146 | F134: =F29/F158 -> 1.627361809 | G134: =G29/G158 -> 1.639125126 | H134: =H29/H158 -> 1.651123709
C135: Operating Interest Costs | D135: =D30/D158 -> 0.113790534 | E135: =E30/E158 -> 0 | F135: =F30/F158 -> 0 | G135: =G30/G158 -> 0 | H135: =H30/H158 -> 0
C136: TOTAL VARIABLE COSTS | D136: =D31/D158 -> 229.1273816 | E136: =E31/E158 -> 230.6504387 | F136: =F31/F158 -> 232.7442738 | G136: =G31/G158 -> 234.4190877 | H136: =H31/H158 -> 236.127398
C137: Depreciation | D137: =D32/D158 -> 5.754624874 | E137: =E32/E158 -> 5.357740699 | F137: =F32/F158 -> 5.261457656 | G137: =G32/G158 -> 4.989155196 | H137: =H32/H158 -> 4.732386997
C138: Long Term Interest | D138: =D33/D158 -> 4.271356784 | E138: =E33/E158 -> 3.95281783 | F138: =F33/F158 -> 3.618351928 | G138: =G33/G158 -> 3.267162731 | H138: =H33/H158 -> 2.898414075
C139: TOTAL FIXED COSTS | D139: =D137+D138 -> 10.02598166 | E139: =E137+E138 -> 9.310558528 | F139: =F137+F138 -> 8.879809584 | G139: =G137+G138 -> 8.256317928 | H139: =H137+H138 -> 7.630801072
C140: TOTAL COSTS | D140: =D35/D158 -> 239.1533633 | E140: =E35/E158 -> 239.9609972 | F140: =F35/F158 -> 241.6240834 | G140: =G35/G158 -> 242.6754057 | H140: =H35/H158 -> 243.758199
C141: NET INCOME, Before Taxes | D141: =D36/D158 -> 28.18332013 | E141: =E36/E158 -> 27.37568623 | F141: =F36/F158 -> 25.71260007 | G141: =G36/G158 -> 24.66127776 | H141: =H36/H158 -> 23.57848438
C142: ACCRUED NET INCOME, Before Taxes | D142: =D37/D158 -> 28.18332013 | E142: =E37/E158 -> 27.37568623 | F142: =F37/F158 -> 25.71260007 | G142: =G37/G158 -> 24.66127776 | H142: =H37/H158 -> 23.57848438
D143: =D58 -> Year #1 | E143: =E58 -> Year #2 | F143: =F58 -> Year #3 | G143: =G58 -> Year #4 | H143: =H58 -> Year #5
C144: CASH FLOW, Before Taxes | D144: =D112 -> $/Lamb | E144: =E112 -> $/Lamb | F144: =F112 -> $/Lamb | G144: =G112 -> $/Lamb | H144: =H112 -> $/Lamb
C145: NET INCOME, Before Taxes | D145: =D40/D158 -> 28.18332013 | E145: =E40/E158 -> 27.37568623 | F145: =F40/F158 -> 25.71260007 | G145: =G40/G158 -> 24.66127776 | H145: =H40/H158 -> 23.57848438
C146: Plus Depreciation/Amortization | D146: =D41/D158 -> 5.754624874 | E146: =E41/E158 -> 5.357740699 | F146: =F41/F158 -> 5.261457656 | G146: =G41/G158 -> 4.989155196 | H146: =H41/H158 -> 4.732386997
C147: Sheep Loan Advance | D147: =D42/D158 -> 0 | E147: =E42/E158 -> 0 | F147: =F42/F158 -> 0 | G147: =G42/G158 -> 0 | H147: =H42/H158 -> 0
C148: Less Principal Payments | D148: =D43/D158 -> 6.37077908 | E148: =E43/E158 -> 6.689318034 | F148: =F43/F158 -> 7.023783936 | G148: =G43/G158 -> 7.374973133 | H148: =H43/H158 -> 7.743721789
C149: Net Cash Flow, Before Taxes | D149: =D44/D158 -> 27.56716593 | E149: =E44/E158 -> 26.04410889 | F149: =F44/F158 -> 23.95027379 | G149: =G44/G158 -> 22.27545982 | H149: =H44/H158 -> 20.56714958
C151: Number of Ewes Lambing During The Year | D151: =D47 -> 400 | E151: =E47 -> 400 | F151: =F47 -> 400 | G151: =G47 -> 400 | H151: =H47 -> 400
C152: =C113 -> Feeder Lamb Sales (under 90lbs) | D152: =Input!E51 -> 0 | E152: =Input!F51 -> 0 | F152: =Input!G51 -> 0 | G152: =Input!H51 -> 0 | H152: =Input!I51 -> 0
C153: =C114 -> Slaughter Lamb Sales (90lbs+) | D153: =Input!$E$56 -> 995 | E153: =Input!$F$56 -> 995 | F153: =Input!$G$56 -> 995 | G153: =Input!$H$56 -> 995 | H153: =Input!$I$56 -> 995
C154: Lambs Kept For Breeding | D154: =Input!E$24 -> 72 | E154: =Input!F$24 -> 72 | F154: =Input!G$24 -> 72 | G154: =Input!H$24 -> 72 | H154: =Input!I$24 -> 72
C155: Breeding Stock Sales | D155: =Input!$E$62+Input!$E64+Input!$E$66 -> 0 | E155: =Input!$E$62+Input!$E64+Input!$E$66 -> 0 | F155: =Input!$E$62+Input!$E64+Input!$E$66 -> 0 | G155: =Input!$E$62+Input!$E64+Input!$E$66 -> 0 | H155: =Input!$E$62+Input!$E64+Input!$E$66 -> 0
C156: =C65 -> Other Sales - (Meat & Mutton) | D156: =Input!G$90 -> 0 | E156: =Input!H$90 -> 0 | F156: =Input!I$90 -> 0 | G156: =Input!J$90 -> 0 | H156: =Input!K$90 -> 0
C157: Cull Rams & Ewes | D157: =D53 -> 62 | E157: 62 | F157: 62 | G157: 62 | H157: 62
C158: Lambs For Sale | D158: 995 | E158: 995 | F158: 995 | G158: 995 | H158: 995

Sheet Sensitivity
B5: Sensitivity To Market Price, (+90lbs) Lambs
B6: Market Price | D6: Net Income | U6: Number of Animals - Marketings | AC6: Total | AE6: Expenses | AF6: Total | AH6: Net Income
B7: $ Per LB | C7: $/Per Lamb | D7: $/Per Ewe | E7: Total | U7: FL 90- | V7: ML 90+ | W7: Ewes K.B. | Z7: Feeder | AA7: Market Lamb | AB7: Other | AC7: Revenue | AD7: Variable | AE7: Fixed | AF7: Costs | AG7: Total | AH7: Per Ewe | AI7: Per Lamb
B8: =B9+0.05 -> 2.8 | C8: =AI8 -> 83.18332013 | D8: =AH8 -> 206.9185088 | E8: =AG8 -> 82767.40353 | U8: =Input!$E$51 -> 0 | V8: =Input!$E$56 -> 995 | W8: =Input!$E$24 -> 72 | Z8: =(B8/$B$18)*$U$29*$U$30*U8 -> 0 | AA8: =(B8/$B$18)*$V$29*$V$30*V8 -> 306460 | AB8: =Income_Expense!$D$10+Income_Expense!$D$11+Income_Expense!$D$12+Income_Expense!$D$13 -> 14265 | AC8: =Z8+AA8+AB8 -> 320725 | AD8: =Income_Expense!$D$31 -> 227981.7447 | AE8: =Income_Expense!$D$34 -> 9975.85175 | AF8: =AD8+AE8 -> 237957.5965 | AG8: =AC8-AF8 -> 82767.40353 | AH8: =AG8/$AH$29 -> 206.9185088 | AI8: =AG8/$AI$29 -> 83.18332013
B9: 2.75 | C9: 77.68332013 | D9: 193.2372588 | E9: 77294.90353 | U9: =Input!$E$51 -> 0 | V9: =Input!$E$56 -> 995 | W9: =Input!$E$24 -> 72 | Z9: 0 | AA9: 300987.5 | AB9: =Income_Expense!$D$10+Income_Expense!$D$11+Income_Expense!$D$12+Income_Expense!$D$13 -> 14265 | AC9: =Z9+AA9+AB9 -> 315252.5 | AD9: =Income_Expense!$D$31 -> 227981.7447 | AE9: =Income_Expense!$D$34 -> 9975.85175 | AF9: =AD9+AE9 -> 237957.5965 | AG9: =AC9-AF9 -> 77294.90353 | AH9: 193.2372588 | AI9: 77.68332013
B10: 2.7 | C10: 72.18332013 | D10: 179.5560088 | E10: 71822.40353 | U10: =Input!$E$51 -> 0 | V10: =Input!$E$56 -> 995 | W10: =Input!$E$24 -> 72 | Z10: 0 | AA10: 295515 | AB10: =Income_Expense!$D$10+Income_Expense!$D$11+Income_Expense!$D$12+Income_Expense!$D$13 -> 14265 | AC10: 309780 | AD10: =Income_Expense!$D$31 -> 227981.7447 | AE10: =Income_Expense!$D$34 -> 9975.85175 | AF10: 237957.5965 | AG10: 71822.40353 | AH10: 179.5560088 | AI10: 72.18332013
B11: 2.65 | C11: 66.68332013 | D11: 165.8747588 | E11: 66349.90353 | U11: =Input!$E$51 -> 0 | V11: =Input!$E$56 -> 995 | W11: =Input!$E$24 -> 72 | Z11: 0 | AA11: 290042.5 | AB11: =Income_Expense!$D$10+Income_Expense!$D$11+Income_Expense!$D$12+Income_Expense!$D$13 -> 14265 | AC11: 304307.5 | AD11: =Income_Expense!$D$31 -> 227981.7447 | AE11: =Income_Expense!$D$34 -> 9975.85175 | AF11: 237957.5965 | AG11: 66349.90353 | AH11: 165.8747588 | AI11: 66.68332013
B12: 2.6 | C12: 61.18332013 | D12: 152.1935088 | E12: 60877.40353 | U12: =Input!$E$51 -> 0 | V12: =Input!$E$56 -> 995 | W12: =Input!$E$24 -> 72 | Z12: 0 | AA12: 284570 | AB12: =Income_Expense!$D$10+Income_Expense!$D$11+Income_Expense!$D$12+Income_Expense!$D$13 -> 14265 | AC12: 298835 | AD12: =Income_Expense!$D$31 -> 227981.7447 | AE12: =Income_Expense!$D$34 -> 9975.85175 | AF12: 237957.5965 | AG12: 60877.40353 | AH12: 152.1935088 | AI12: 61.18332013
B13: 2.55 | C13: 55.68332013 | D13: 138.5122588 | E13: 55404.90353 | U13: =Input!$E$51 -> 0 | V13: =Input!$E$56 -> 995 | W13: =Input!$E$24 -> 72 | Z13: 0 | AA13: 279097.5 | AB13: =Income_Expense!$D$10+Income_Expense!$D$11+Income_Expense!$D$12+Income_Expense!$D$13 -> 14265 | AC13: 293362.5 | AD13: =Income_Expense!$D$31 -> 227981.7447 | AE13: =Income_Expense!$D$34 -> 9975.85175 | AF13: 237957.5965 | AG13: 55404.90353 | AH13: 138.5122588 | AI13: 55.68332013
B14: 2.5 | C14: 50.18332013 | D14: 124.8310088 | E14: 49932.40353 | U14: =Input!$E$51 -> 0 | V14: =Input!$E$56 -> 995 | W14: =Input!$E$24 -> 72 | Z14: 0 | AA14: 273625 | AB14: =Income_Expense!$D$10+Income_Expense!$D$11+Income_Expense!$D$12+Income_Expense!$D$13 -> 14265 | AC14: 287890 | AD14: =Income_Expense!$D$31 -> 227981.7447 | AE14: =Income_Expense!$D$34 -> 9975.85175 | AF14: 237957.5965 | AG14: 49932.40353 | AH14: 124.8310088 | AI14: 50.18332013
B15: 2.45 | C15: 44.68332013 | D15: 111.1497588 | E15: 44459.90353 | U15: =Input!$E$51 -> 0 | V15: =Input!$E$56 -> 995 | W15: =Input!$E$24 -> 72 | Z15: 0 | AA15: 268152.5 | AB15: =Income_Expense!$D$10+Income_Expense!$D$11+Income_Expense!$D$12+Income_Expense!$D$13 -> 14265 | AC15: 282417.5 | AD15: =Income_Expense!$D$31 -> 227981.7447 | AE15: =Income_Expense!$D$34 -> 9975.85175 | AF15: 237957.5965 | AG15: 44459.90353 | AH15: 111.1497588 | AI15: 44.68332013
B16: 2.4 | C16: 39.18332013 | D16: 97.46850884 | E16: 38987.40353 | U16: =Input!$E$51 -> 0 | V16: =Input!$E$56 -> 995 | W16: =Input!$E$24 -> 72 | Z16: 0 | AA16: 262680 | AB16: =Income_Expense!$D$10+Income_Expense!$D$11+Income_Expense!$D$12+Income_Expense!$D$13 -> 14265 | AC16: 276945 | AD16: =Income_Expense!$D$31 -> 227981.7447 | AE16: =Income_Expense!$D$34 -> 9975.85175 | AF16: 237957.5965 | AG16: 38987.40353 | AH16: 97.46850884 | AI16: 39.18332013
B17: 2.35 | C17: 33.68332013 | D17: 83.78725884 | E17: 33514.90353 | U17: =Input!$E$51 -> 0 | V17: =Input!$E$56 -> 995 | W17: =Input!$E$24 -> 72 | Z17: 0 | AA17: 257207.5 | AB17: =Income_Expense!$D$10+Income_Expense!$D$11+Income_Expense!$D$12+Income_Expense!$D$13 -> 14265 | AC17: 271472.5 | AD17: =Income_Expense!$D$31 -> 227981.7447 | AE17: =Income_Expense!$D$34 -> 9975.85175 | AF17: 237957.5965 | AG17: 33514.90353 | AH17: 83.78725884 | AI17: 33.68332013
A18: base | B18: =Input!$E$58 -> 2.3 | C18: 28.18332013 | D18: 70.10600884 | E18: 28042.40353 | U18: =Input!$E$51 -> 0 | V18: =Input!$E$56 -> 995 | W18: =Input!$E$24 -> 72 | Z18: 0 | AA18: 251735 | AB18: =Income_Expense!$D$10+Income_Expense!$D$11+Income_Expense!$D$12+Income_Expense!$D$13 -> 14265 | AC18: 266000 | AD18: =Income_Expense!$D$31 -> 227981.7447 | AE18: =Income_Expense!$D$34 -> 9975.85175 | AF18: 237957.5965 | AG18: 28042.40353 | AH18: 70.10600884 | AI18: 28.18332013
B19: =B18-0.05 -> 2.25 | C19: 22.68332013 | D19: 56.42475884 | E19: 22569.90353 | U19: =Input!$E$51 -> 0 | V19: =Input!$E$56 -> 995 | W19: =Input!$E$24 -> 72 | Z19: 0 | AA19: 246262.5 | AB19: =Income_Expense!$D$10+Income_Expense!$D$11+Income_Expense!$D$12+Income_Expense!$D$13 -> 14265 | AC19: 260527.5 | AD19: =Income_Expense!$D$31 -> 227981.7447 | AE19: =Income_Expense!$D$34 -> 9975.85175 | AF19: 237957.5965 | AG19: 22569.90353 | AH19: 56.42475884 | AI19: 22.68332013
B20: =B19-0.05 -> 2.2 | C20: 17.18332013 | D20: 42.74350884 | E20: 17097.40353 | U20: =Input!$E$51 -> 0 | V20: =Input!$E$56 -> 995 | W20: =Input!$E$24 -> 72 | Z20: 0 | AA20: 240790 | AB20: =Income_Expense!$D$10+Income_Expense!$D$11+Income_Expense!$D$12+Income_Expense!$D$13 -> 14265 | AC20: 255055 | AD20: =Income_Expense!$D$31 -> 227981.7447 | AE20: =Income_Expense!$D$34 -> 9975.85175 | AF20: 237957.5965 | AG20: 17097.40353 | AH20: 42.74350884 | AI20: 17.18332013
B21: 2.15 | C21: 11.68332013 | D21: 29.06225884 | E21: 11624.90353 | U21: =Input!$E$51 -> 0 | V21: =Input!$E$56 -> 995 | W21: =Input!$E$24 -> 72 | Z21: 0 | AA21: 235317.5 | AB21: =Income_Expense!$D$10+Income_Expense!$D$11+Income_Expense!$D$12+Income_Expense!$D$13 -> 14265 | AC21: 249582.5 | AD21: =Income_Expense!$D$31 -> 227981.7447 | AE21: =Income_Expense!$D$34 -> 9975.85175 | AF21: 237957.5965 | AG21: 11624.90353 | AH21: 29.06225884 | AI21: 11.68332013
B22: 2.1 | C22: 6.183320135 | D22: 15.38100884 | E22: 6152.403534 | U22: =Input!$E$51 -> 0 | V22: =Input!$E$56 -> 995 | W22: =Input!$E$24 -> 72 | Z22: 0 | AA22: 229845 | AB22: =Income_Expense!$D$10+Income_Expense!$D$11+Income_Expense!$D$12+Income_Expense!$D$13 -> 14265 | AC22: 244110 | AD22: =Income_Expense!$D$31 -> 227981.7447 | AE22: =Income_Expense!$D$34 -> 9975.85175 | AF22: 237957.5965 | AG22: 6152.403534 | AH22: 15.38100884 | AI22: 6.183320135
B23: 2.05 | C23: 0.6833201349 | D23: 1.699758836 | E23: 679.9035342 | U23: =Input!$E$51 -> 0 | V23: =Input!$E$56 -> 995 | W23: =Input!$E$24 -> 72 | Z23: 0 | AA23: 224372.5 | AB23: =Income_Expense!$D$10+Income_Expense!$D$11+Income_Expense!$D$12+Income_Expense!$D$13 -> 14265 | AC23: 238637.5 | AD23: =Income_Expense!$D$31 -> 227981.7447 | AE23: =Income_Expense!$D$34 -> 9975.85175 | AF23: 237957.5965 | AG23: 679.9035342 | AH23: 1.699758836 | AI23: 0.6833201349
B24: 2 | C24: -4.816679865 | D24: -11.98149116 | E24: -4792.596466 | U24: =Input!$E$51 -> 0 | V24: =Input!$E$56 -> 995 | W24: =Input!$E$24 -> 72 | Z24: 0 | AA24: 218900 | AB24: =Income_Expense!$D$10+Income_Expense!$D$11+Income_Expense!$D$12+Income_Expense!$D$13 -> 14265 | AC24: 233165 | AD24: =Income_Expense!$D$31 -> 227981.7447 | AE24: =Income_Expense!$D$34 -> 9975.85175 | AF24: 237957.5965 | AG24: -4792.596466 | AH24: -11.98149116 | AI24: -4.816679865
B25: 1.95 | C25: -10.31667987 | D25: -25.66274116 | E25: -10265.09647 | U25: =Input!$E$51 -> 0 | V25: =Input!$E$56 -> 995 | W25: =Input!$E$24 -> 72 | Z25: 0 | AA25: 213427.5 | AB25: =Income_Expense!$D$10+Income_Expense!$D$11+Income_Expense!$D$12+Income_Expense!$D$13 -> 14265 | AC25: 227692.5 | AD25: =Income_Expense!$D$31 -> 227981.7447 | AE25: =Income_Expense!$D$34 -> 9975.85175 | AF25: 237957.5965 | AG25: -10265.09647 | AH25: -25.66274116 | AI25: -10.31667987
B26: 1.9 | C26: -15.81667987 | D26: -39.34399116 | E26: -15737.59647 | U26: =Input!$E$51 -> 0 | V26: =Input!$E$56 -> 995 | W26: =Input!$E$24 -> 72 | Z26: 0 | AA26: 207955 | AB26: =Income_Expense!$D$10+Income_Expense!$D$11+Income_Expense!$D$12+Income_Expense!$D$13 -> 14265 | AC26: 222220 | AD26: =Income_Expense!$D$31 -> 227981.7447 | AE26: =Income_Expense!$D$34 -> 9975.85175 | AF26: 237957.5965 | AG26: -15737.59647 | AH26: -39.34399116 | AI26: -15.81667987
B27: 1.85 | C27: -21.31667987 | D27: -53.02524116 | E27: -21210.09647 | U27: =Input!$E$51 -> 0 | V27: =Input!$E$56 -> 995 | W27: =Input!$E$24 -> 72 | Z27: 0 | AA27: 202482.5 | AB27: =Income_Expense!$D$10+Income_Expense!$D$11+Income_Expense!$D$12+Income_Expense!$D$13 -> 14265 | AC27: 216747.5 | AD27: =Income_Expense!$D$31 -> 227981.7447 | AE27: =Income_Expense!$D$34 -> 9975.85175 | AF27: 237957.5965 | AG27: -21210.09647 | AH27: -53.02524116 | AI27: -21.31667987
B28: 1.8 | C28: -26.81667987 | D28: -66.70649116 | E28: -26682.59647 | U28: =Input!$E$51 -> 0 | V28: =Input!$E$56 -> 995 | W28: =Input!$E$24 -> 72 | Z28: 0 | AA28: 197010 | AB28: =Income_Expense!$D$10+Income_Expense!$D$11+Income_Expense!$D$12+Income_Expense!$D$13 -> 14265 | AC28: 211275 | AD28: =Income_Expense!$D$31 -> 227981.7447 | AE28: =Income_Expense!$D$34 -> 9975.85175 | AF28: 237957.5965 | AG28: -26682.59647 | AH28: -66.70649116 | AI28: -26.81667987
T29: Base Prices | U29: =AVERAGE(Input!$E$53:'Input'!$G$53) -> 2.6 | V29: =AVERAGE(Input!$E$58:'Input'!$G$58) -> 2.3 | W29: =AVERAGE(Input!$E$58:'Input'!$G$58) -> 2.3 | AH29: =Income_Expense!$D$99 -> 400 | AI29: =Income_Expense!$D$158 -> 995
T30: Weight | U30: =AVERAGE(Input!$E$52:'Input'!$G$52) -> 0 | V30: =AVERAGE(Input!$E$57:'Input'!$G$57) -> 110 | W30: =AVERAGE(Input!$E$57:'Input'!$G$57) -> 110
B32: Sensitivity to Lambing Productivity
B33: Productivity | D33: Net Income | T33: TOTAL | U33: Number of Animals - Marketings | Y33: Loss | Z33: Lambs | AA33: Loss | AB33: Lambs | AD33: Market and Feeder Lambs | AH33: >90 | AI33: <90 | AK33: Total | AM33: Variable Expenses | AO33: Fixed | AP33: Total | AR33: Net Income | AT33: Lamb
B34: Lamb. Rate | C34: $/Per Lamb | D34: $/Per Ewe | E34: Total | T34: BASE | U34: FL 90- | V34: ML 90+ | W34: Other | X34: Born | Y34: birth-wean | Z34: weaned | AA34: wean-market | AB34: Available | AD34: ML 90+ | AE34: FL 90- | AH34: Market | AI34: Feeder | AJ34: Other Rev. | AK34: Revenue | AL34: Feed | AM34: Marketing | AN34: Other Var. | AO34: Expenses | AP34: Expenses | AQ34: Total Net | AR34: Per Ewe | AS34: Per Lamb | AT34: Sales
B35: =B36+0.1 -> 3.1 | C35: =AS35 -> 69.19597112 | D35: =AR35 -> 235.2663018 | E35: =AQ35 -> 94106.52072 | T35: =AB35 -> 1432 | U35: =IF($U$43>0,T35-$W$43,0) -> 0 | V35: =IF($V$43>0,T35-W35,0) -> 1360 | W35: =Input!$E$24+Input!$E$62+Input!$E$64+Input!$E$66+Input!$E$90 -> 72 | X35: =(Input!$E$36*B35)*12 -> 1674 | Y35: =ROUND(Input!$E$40*X35,0) -> 167 | Z35: =X35-Y35 -> 1507 | AA35: =ROUND(Input!$E$44*Z35,0) -> 75 | AB35: =Z35-AA35 -> 1432 | AD35: =V35 -> 1360 | AE35: =U35 -> 0 | AH35: =V35*$V$54*$V$55 -> 344080 | AI35: =U35*$U$54*$U$55 -> 0 | AJ35: =Income_Expense!$D$10+Income_Expense!$D$11+Income_Expense!$D$12+Income_Expense!$D$13 -> 14265 | AK35: =AH35+AI35+AJ35 -> 358345 | AL35: =Monthly!$AD$65+Monthly!$AD$88*(U35+V35+W35)-Monthly!$Q$88 -> 143147.6251 | AM35: =(AD35+AE35)*(Input!$E$360+Input!$E$365+Input!$E$370)+(Input!$E$22+Input!$E$74)*(Input!$E$361+Input!$E$366+Input!$E$371) -> 29008.8 | AN35: =Income_Expense!$D$31-Income_Expense!$D$16-Income_Expense!$D$26 -> 82106.20244 | AO35: =Income_Expense!$D$34 -> 9975.85175 | AP35: =AL35+AM35+AN35+AO35 -> 264238.4793 | AQ35: =AK35-AL35-AM35-AN35-AO35 -> 94106.52072 | AR35: =AQ35/$AR$52 -> 235.2663018 | AS35: =AQ35/AT35 -> 69.19597112 | AT35: =AD35+AE35 -> 1360
B36: 3 | C36: 65.19393328 | D36: 213.999086 | E36: 85599.6344 | T36: =AB36 -> 1385 | U36: =IF($U$43>0,T36-$W$43,0) -> 0 | V36: 1313 | W36: =Input!$E$24+Input!$E$62+Input!$E$64+Input!$E$66+Input!$E$90 -> 72 | X36: =(Input!$E$36*B36)*12 -> 1620 | Y36: =ROUND(Input!$E$40*X36,0) -> 162 | Z36: =X36-Y36 -> 1458 | AA36: =ROUND(Input!$E$44*Z36,0) -> 73 | AB36: =Z36-AA36 -> 1385 | AD36: 1313 | AE36: =U36 -> 0 | AH36: 332189 | AI36: 0 | AJ36: =Income_Expense!$D$10+Income_Expense!$D$11+Income_Expense!$D$12+Income_Expense!$D$13 -> 14265 | AK36: =AH36+AI36+AJ36 -> 346454 | AL36: =Monthly!$AD$65+Monthly!$AD$88*(U36+V36+W36)-Monthly!$Q$88 -> 140722.3114 | AM36: =(AD36+AE36)*(Input!$E$360+Input!$E$365+Input!$E$370)+(Input!$E$22+Input!$E$74)*(Input!$E$361+Input!$E$366+Input!$E$371) -> 28050 | AN36: =Income_Expense!$D$31-Income_Expense!$D$16-Income_Expense!$D$26 -> 82106.20244 | AO36: =Income_Expense!$D$34 -> 9975.85175 | AP36: =AL36+AM36+AN36+AO36 -> 260854.3656 | AQ36: 85599.6344 | AR36: 213.999086 | AS36: =AQ36/AT36 -> 65.19393328 | AT36: 1313
B37: 2.9 | C37: 60.9895388 | D37: 193.1843641 | E37: 77273.74566 | T37: 1339 | U37: 0 | V37: 1267 | W37: =Input!$E$24+Input!$E$62+Input!$E$64+Input!$E$66+Input!$E$90 -> 72 | X37: =(Input!$E$36*B37)*12 -> 1566 | Y37: =ROUND(Input!$E$40*X37,0) -> 157 | Z37: =X37-Y37 -> 1409 | AA37: =ROUND(Input!$E$44*Z37,0) -> 70 | AB37: =Z37-AA37 -> 1339 | AD37: 1267 | AE37: =U37 -> 0 | AH37: 320551 | AI37: 0 | AJ37: =Income_Expense!$D$10+Income_Expense!$D$11+Income_Expense!$D$12+Income_Expense!$D$13 -> 14265 | AK37: =AH37+AI37+AJ37 -> 334816 | AL37: =Monthly!$AD$65+Monthly!$AD$88*(U37+V37+W37)-Monthly!$Q$88 -> 138348.6002 | AM37: =(AD37+AE37)*(Input!$E$360+Input!$E$365+Input!$E$370)+(Input!$E$22+Input!$E$74)*(Input!$E$361+Input!$E$366+Input!$E$371) -> 27111.6 | AN37: =Income_Expense!$D$31-Income_Expense!$D$16-Income_Expense!$D$26 -> 82106.20244 | AO37: =Income_Expense!$D$34 -> 9975.85175 | AP37: 257542.2543 | AQ37: 77273.74566 | AR37: 193.1843641 | AS37: =AQ37/AT37 -> 60.9895388 | AT37: 1267
B38: 2.8 | C38: 56.46835128 | D38: 172.3696423 | E38: 68947.85692 | T38: 1293 | U38: 0 | V38: 1221 | W38: =Input!$E$24+Input!$E$62+Input!$E$64+Input!$E$66+Input!$E$90 -> 72 | X38: =(Input!$E$36*B38)*12 -> 1512 | Y38: =ROUND(Input!$E$40*X38,0) -> 151 | Z38: =X38-Y38 -> 1361 | AA38: =ROUND(Input!$E$44*Z38,0) -> 68 | AB38: =Z38-AA38 -> 1293 | AD38: 1221 | AE38: =U38 -> 0 | AH38: 308913 | AI38: 0 | AJ38: =Income_Expense!$D$10+Income_Expense!$D$11+Income_Expense!$D$12+Income_Expense!$D$13 -> 14265 | AK38: =AH38+AI38+AJ38 -> 323178 | AL38: =Monthly!$AD$65+Monthly!$AD$88*(U38+V38+W38)-Monthly!$Q$88 -> 135974.8889 | AM38: =(AD38+AE38)*(Input!$E$360+Input!$E$365+Input!$E$370)+(Input!$E$22+Input!$E$74)*(Input!$E$361+Input!$E$366+Input!$E$371) -> 26173.2 | AN38: =Income_Expense!$D$31-Income_Expense!$D$16-Income_Expense!$D$26 -> 82106.20244 | AO38: =Income_Expense!$D$34 -> 9975.85175 | AP38: 254230.1431 | AQ38: 68947.85692 | AR38: 172.3696423 | AS38: =AQ38/AT38 -> 56.46835128 | AT38: 1221
B39: 2.7 | C39: 51.48293918 | D39: 151.1024265 | E39: 60440.97059 | T39: 1246 | U39: 0 | V39: 1174 | W39: =Input!$E$24+Input!$E$62+Input!$E$64+Input!$E$66+Input!$E$90 -> 72 | X39: =(Input!$E$36*B39)*12 -> 1458 | Y39: =ROUND(Input!$E$40*X39,0) -> 146 | Z39: =X39-Y39 -> 1312 | AA39: =ROUND(Input!$E$44*Z39,0) -> 66 | AB39: =Z39-AA39 -> 1246 | AD39: 1174 | AE39: =U39 -> 0 | AH39: 297022 | AI39: 0 | AJ39: =Income_Expense!$D$10+Income_Expense!$D$11+Income_Expense!$D$12+Income_Expense!$D$13 -> 14265 | AK39: =AH39+AI39+AJ39 -> 311287 | AL39: =Monthly!$AD$65+Monthly!$AD$88*(U39+V39+W39)-Monthly!$Q$88 -> 133549.5752 | AM39: =(AD39+AE39)*(Input!$E$360+Input!$E$365+Input!$E$370)+(Input!$E$22+Input!$E$74)*(Input!$E$361+Input!$E$366+Input!$E$371) -> 25214.4 | AN39: =Income_Expense!$D$31-Income_Expense!$D$16-Income_Expense!$D$26 -> 82106.20244 | AO39: =Income_Expense!$D$34 -> 9975.85175 | AP39: 250846.0294 | AQ39: 60440.97059 | AR39: 151.1024265 | AS39: =AQ39/AT39 -> 51.48293918 | AT39: 1174
B40: 2.6 | C40: 46.32070809 | D40: 130.7401986 | E40: 52296.07943 | T40: 1201 | U40: 0 | V40: 1129 | W40: =Input!$E$24+Input!$E$62+Input!$E$64+Input!$E$66+Input!$E$90 -> 72 | X40: =(Input!$E$36*B40)*12 -> 1404 | Y40: =ROUND(Input!$E$40*X40,0) -> 140 | Z40: 1264 | AA40: =ROUND(Input!$E$44*Z40,0) -> 63 | AB40: 1201 | AD40: 1129 | AE40: 0 | AH40: 285637 | AI40: 0 | AJ40: =Income_Expense!$D$10+Income_Expense!$D$11+Income_Expense!$D$12+Income_Expense!$D$13 -> 14265 | AK40: 299902 | AL40: =Monthly!$AD$65+Monthly!$AD$88*(U40+V40+W40)-Monthly!$Q$88 -> 131227.4664 | AM40: =(AD40+AE40)*(Input!$E$360+Input!$E$365+Input!$E$370)+(Input!$E$22+Input!$E$74)*(Input!$E$361+Input!$E$366+Input!$E$371) -> 24296.4 | AN40: =Income_Expense!$D$31-Income_Expense!$D$16-Income_Expense!$D$26 -> 82106.20244 | AO40: =Income_Expense!$D$34 -> 9975.85175 | AP40: 247605.9206 | AQ40: 52296.07943 | AR40: 130.7401986 | AS40: 46.32070809 | AT40: 1129
B41: 2.5 | C41: 40.47060361 | D41: 109.4729828 | E41: 43789.19311 | T41: 1154 | U41: 0 | V41: 1082 | W41: =Input!$E$24+Input!$E$62+Input!$E$64+Input!$E$66+Input!$E$90 -> 72 | X41: =(Input!$E$36*B41)*12 -> 1350 | Y41: =ROUND(Input!$E$40*X41,0) -> 135 | Z41: 1215 | AA41: =ROUND(Input!$E$44*Z41,0) -> 61 | AB41: 1154 | AD41: 1082 | AE41: 0 | AH41: 273746 | AI41: 0 | AJ41: =Income_Expense!$D$10+Income_Expense!$D$11+Income_Expense!$D$12+Income_Expense!$D$13 -> 14265 | AK41: 288011 | AL41: =Monthly!$AD$65+Monthly!$AD$88*(U41+V41+W41)-Monthly!$Q$88 -> 128802.1527 | AM41: =(AD41+AE41)*(Input!$E$360+Input!$E$365+Input!$E$370)+(Input!$E$22+Input!$E$74)*(Input!$E$361+Input!$E$366+Input!$E$371) -> 23337.6 | AN41: =Income_Expense!$D$31-Income_Expense!$D$16-Income_Expense!$D$26 -> 82106.20244 | AO41: =Income_Expense!$D$34 -> 9975.85175 | AP41: 244221.8069 | AQ41: 43789.19311 | AR41: 109.4729828 | AS41: 40.47060361 | AT41: 1082
B42: 2.4 | C42: 34.23098877 | D42: 88.65826092 | E42: 35463.30437 | T42: 1108 | U42: 0 | V42: 1036 | W42: =Input!$E$24+Input!$E$62+Input!$E$64+Input!$E$66+Input!$E$90 -> 72 | X42: =(Input!$E$36*B42)*12 -> 1296 | Y42: =ROUND(Input!$E$40*X42,0) -> 130 | Z42: 1166 | AA42: =ROUND(Input!$E$44*Z42,0) -> 58 | AB42: 1108 | AD42: 1036 | AE42: 0 | AH42: 262108 | AI42: 0 | AJ42: =Income_Expense!$D$10+Income_Expense!$D$11+Income_Expense!$D$12+Income_Expense!$D$13 -> 14265 | AK42: 276373 | AL42: =Monthly!$AD$65+Monthly!$AD$88*(U42+V42+W42)-Monthly!$Q$88 -> 126428.4414 | AM42: =(AD42+AE42)*(Input!$E$360+Input!$E$365+Input!$E$370)+(Input!$E$22+Input!$E$74)*(Input!$E$361+Input!$E$366+Input!$E$371) -> 22399.2 | AN42: =Income_Expense!$D$31-Income_Expense!$D$16-Income_Expense!$D$26 -> 82106.20244 | AO42: =Income_Expense!$D$34 -> 9975.85175 | AP42: 240909.6956 | AQ42: 35463.30437 | AR42: 88.65826092 | AS42: 34.23098877 | AT42: 1036
A43: base | B43: =Input!$E$37 -> 2.3 | C43: 28.18332013 | D43: 70.10600884 | E43: 28042.40353 | T43: =AB43 -> 1067 | U43: =Input!$E$51 -> 0 | V43: =Input!$E$56 -> 995 | W43: =Input!$E$24+Input!$E$62+Input!$E$64+Input!$E$66+Input!$E$90 -> 72 | X43: =(Input!$E$39) -> 1248 | Y43: =Input!$E$41 -> 125 | Z43: 1123 | AA43: =ROUND(Input!$E$44*Z43,0) -> 56 | AB43: 1067 | AD43: 995 | AE43: 0 | AH43: 251735 | AI43: 0 | AJ43: =Income_Expense!$D$10+Income_Expense!$D$11+Income_Expense!$D$12+Income_Expense!$D$13 -> 14265 | AK43: 266000 | AL43: =Monthly!$AD$65+Monthly!$AD$88*(U43+V43+W43)-Monthly!$Q$88 -> 124312.7423 | AM43: =(AD43+AE43)*(Input!$E$360+Input!$E$365+Input!$E$370)+(Input!$E$22+Input!$E$74)*(Input!$E$361+Input!$E$366+Input!$E$371) -> 21562.8 | AN43: =Income_Expense!$D$31-Income_Expense!$D$16-Income_Expense!$D$26 -> 82106.20244 | AO43: =Income_Expense!$D$34 -> 9975.85175 | AP43: 237957.5965 | AQ43: 28042.40353 | AR43: 70.10600884 | AS43: 28.18332013 | AT43: =AD43+AE43 -> 995
B44: =B43-0.1 -> 2.2 | C44: 19.92746492 | D44: 47.02881721 | E44: 18811.52689 | T44: 1016 | U44: =IF($U$43>0,T44-$W$43,0) -> 0 | V44: =IF($V$43>0,T44-W44,0) -> 944 | W44: =Input!$E$24+Input!$E$62+Input!$E$64+Input!$E$66+Input!$E$90 -> 72 | X44: =(Input!$E$36*B44)*12 -> 1188 | Y44: =ROUND(Input!$E$40*X44,0) -> 119 | Z44: 1069 | AA44: =ROUND(Input!$E$44*Z44,0) -> 53 | AB44: 1016 | AD44: 944 | AE44: 0 | AH44: 238832 | AI44: 0 | AJ44: =Income_Expense!$D$10+Income_Expense!$D$11+Income_Expense!$D$12+Income_Expense!$D$13 -> 14265 | AK44: 253097 | AL44: =Monthly!$AD$65+Monthly!$AD$88*(U44+V44+W44)-Monthly!$Q$88 -> 121681.0189 | AM44: =(AD44+AE44)*(Input!$E$360+Input!$E$365+Input!$E$370)+(Input!$E$22+Input!$E$74)*(Input!$E$361+Input!$E$366+Input!$E$371) -> 20522.4 | AN44: =Income_Expense!$D$31-Income_Expense!$D$16-Income_Expense!$D$26 -> 82106.20244 | AO44: =Income_Expense!$D$34 -> 9975.85175 | AP44: 234285.4731 | AQ44: 18811.52689 | AR44: 47.02881721 | AS44: 19.92746492 | AT44: =AD44+AE44 -> 944
B45: =B44-0.1 -> 2.1 | C45: 8.549586075 | D45: 21.26709536 | E45: 8506.838144 | T45: 970 | U45: =IF($U$43>0,T45-$W$43,0) -> 0 | V45: =IF($V$43>0,T45-W45,0) -> 898 | W45: =Input!$E$24+Input!$E$62+Input!$E$64+Input!$E$66+Input!$E$90 -> 72 | X45: =(Input!$E$36*B45)*12 -> 1134 | Y45: =ROUND(Input!$E$40*X45,0) -> 113 | Z45: 1021 | AA45: =ROUND(Input!$E$44*Z45,0) -> 51 | AB45: 970 | AD45: =Input!$E$56 -> 995 | AE45: =Input!$E$51 -> 0 | AH45: 227194 | AI45: 0 | AJ45: =Income_Expense!$D$10+Income_Expense!$D$11+Income_Expense!$D$12+Income_Expense!$D$13 -> 14265 | AK45: 241459 | AL45: =Monthly!$AD$65+Monthly!$AD$88*(U45+V45+W45)-Monthly!$Q$88 -> 119307.3077 | AM45: =(AD45+AE45)*(Input!$E$360+Input!$E$365+Input!$E$370)+(Input!$E$22+Input!$E$74)*(Input!$E$361+Input!$E$366+Input!$E$371) -> 21562.8 | AN45: =Income_Expense!$D$31-Income_Expense!$D$16-Income_Expense!$D$26 -> 82106.20244 | AO45: =Income_Expense!$D$34 -> 9975.85175 | AP45: 232952.1619 | AQ45: 8506.838144 | AR45: 21.26709536 | AS45: 8.549586075 | AT45: 995
B46: 2 | C46: 2.325207781 | D46: 4.946879553 | E46: 1978.751821 | T46: 923 | U46: 0 | V46: =IF($V$43>0,T46-W46,0) -> 851 | W46: =Input!$E$24+Input!$E$62+Input!$E$64+Input!$E$66+Input!$E$90 -> 72 | X46: =(Input!$E$36*B46)*12 -> 1080 | Y46: =ROUND(Input!$E$40*X46,0) -> 108 | Z46: 972 | AA46: =ROUND(Input!$E$44*Z46,0) -> 49 | AB46: 923 | AD46: =V46 -> 851 | AE46: =U46 -> 0 | AH46: =V46*$V$54*$V$55 -> 215303 | AI46: 0 | AJ46: =Income_Expense!$D$10+Income_Expense!$D$11+Income_Expense!$D$12+Income_Expense!$D$13 -> 14265 | AK46: 229568 | AL46: =Monthly!$AD$65+Monthly!$AD$88*(U46+V46+W46)-Monthly!$Q$88 -> 116881.994 | AM46: =(AD46+AE46)*(Input!$E$360+Input!$E$365+Input!$E$370)+(Input!$E$22+Input!$E$74)*(Input!$E$361+Input!$E$366+Input!$E$371) -> 18625.2 | AN46: =Income_Expense!$D$31-Income_Expense!$D$16-Income_Expense!$D$26 -> 82106.20244 | AO46: =Income_Expense!$D$34 -> 9975.85175 | AP46: 227589.2482 | AQ46: 1978.751821 | AR46: 4.946879553 | AS46: 2.325207781 | AT46: 851
B47: 1.9 | C47: -7.884642137 | D47: -15.8678423 | E47: -6347.13692 | T47: 877 | U47: 0 | V47: 805 | W47: =Input!$E$24+Input!$E$62+Input!$E$64+Input!$E$66+Input!$E$90 -> 72 | X47: =(Input!$E$36*B47)*12 -> 1026 | Y47: =ROUND(Input!$E$40*X47,0) -> 103 | Z47: 923 | AA47: =ROUND(Input!$E$44*Z47,0) -> 46 | AB47: 877 | AD47: 805 | AE47: 0 | AH47: 203665 | AI47: 0 | AJ47: =Income_Expense!$D$10+Income_Expense!$D$11+Income_Expense!$D$12+Income_Expense!$D$13 -> 14265 | AK47: 217930 | AL47: =Monthly!$AD$65+Monthly!$AD$88*(U47+V47+W47)-Monthly!$Q$88 -> 114508.2827 | AM47: =(AD47+AE47)*(Input!$E$360+Input!$E$365+Input!$E$370)+(Input!$E$22+Input!$E$74)*(Input!$E$361+Input!$E$366+Input!$E$371) -> 17686.8 | AN47: =Income_Expense!$D$31-Income_Expense!$D$16-Income_Expense!$D$26 -> 82106.20244 | AO47: =Income_Expense!$D$34 -> 9975.85175 | AP47: 224277.1369 | AQ47: -6347.13692 | AR47: -15.8678423 | AS47: -7.884642137 | AT47: 805
B48: 1.8 | C48: -19.33204962 | D48: -36.68256415 | E48: -14673.02566 | T48: 831 | U48: 0 | V48: 759 | W48: =Input!$E$24+Input!$E$62+Input!$E$64+Input!$E$66+Input!$E$90 -> 72 | X48: =(Input!$E$36*B48)*12 -> 972 | Y48: =ROUND(Input!$E$40*X48,0) -> 97 | Z48: 875 | AA48: =ROUND(Input!$E$44*Z48,0) -> 44 | AB48: 831 | AD48: 759 | AE48: 0 | AH48: 192027 | AI48: 0 | AJ48: =Income_Expense!$D$10+Income_Expense!$D$11+Income_Expense!$D$12+Income_Expense!$D$13 -> 14265 | AK48: 206292 | AL48: =Monthly!$AD$65+Monthly!$AD$88*(U48+V48+W48)-Monthly!$Q$88 -> 112134.5715 | AM48: =(AD48+AE48)*(Input!$E$360+Input!$E$365+Input!$E$370)+(Input!$E$22+Input!$E$74)*(Input!$E$361+Input!$E$366+Input!$E$371) -> 16748.4 | AN48: =Income_Expense!$D$31-Income_Expense!$D$16-Income_Expense!$D$26 -> 82106.20244 | AO48: =Income_Expense!$D$34 -> 9975.85175 | AP48: 220965.0257 | AQ48: -14673.02566 | AR48: -36.68256415 | AS48: -19.33204962 | AT48: 759
B49: 1.7 | C49: -32.25654194 | D49: -57.49728601 | E49: -22998.9144 | T49: 785 | U49: 0 | V49: 713 | W49: =Input!$E$24+Input!$E$62+Input!$E$64+Input!$E$66+Input!$E$90 -> 72 | X49: =(Input!$E$36*B49)*12 -> 918 | Y49: =ROUND(Input!$E$40*X49,0) -> 92 | Z49: 826 | AA49: =ROUND(Input!$E$44*Z49,0) -> 41 | AB49: 785 | AD49: 713 | AE49: 0 | AH49: 180389 | AI49: 0 | AJ49: =Income_Expense!$D$10+Income_Expense!$D$11+Income_Expense!$D$12+Income_Expense!$D$13 -> 14265 | AK49: 194654 | AL49: =Monthly!$AD$65+Monthly!$AD$88*(U49+V49+W49)-Monthly!$Q$88 -> 109760.8602 | AM49: =(AD49+AE49)*(Input!$E$360+Input!$E$365+Input!$E$370)+(Input!$E$22+Input!$E$74)*(Input!$E$361+Input!$E$366+Input!$E$371) -> 15810 | AN49: =Income_Expense!$D$31-Income_Expense!$D$16-Income_Expense!$D$26 -> 82106.20244 | AO49: =Income_Expense!$D$34 -> 9975.85175 | AP49: 217652.9144 | AQ49: -22998.9144 | AR49: -57.49728601 | AS49: -32.25654194 | AT49: 713
B50: 1.6 | C50: -46.96372286 | D50: -78.31200786 | E50: -31324.80315 | T50: 739 | U50: 0 | V50: 667 | W50: =Input!$E$24+Input!$E$62+Input!$E$64+Input!$E$66+Input!$E$90 -> 72 | X50: =(Input!$E$36*B50)*12 -> 864 | Y50: =ROUND(Input!$E$40*X50,0) -> 86 | Z50: 778 | AA50: =ROUND(Input!$E$44*Z50,0) -> 39 | AB50: 739 | AD50: 667 | AE50: 0 | AH50: 168751 | AI50: 0 | AJ50: =Income_Expense!$D$10+Income_Expense!$D$11+Income_Expense!$D$12+Income_Expense!$D$13 -> 14265 | AK50: 183016 | AL50: =Monthly!$AD$65+Monthly!$AD$88*(U50+V50+W50)-Monthly!$Q$88 -> 107387.149 | AM50: =(AD50+AE50)*(Input!$E$360+Input!$E$365+Input!$E$370)+(Input!$E$22+Input!$E$74)*(Input!$E$361+Input!$E$366+Input!$E$371) -> 14871.6 | AN50: =Income_Expense!$D$31-Income_Expense!$D$16-Income_Expense!$D$26 -> 82106.20244 | AO50: =Income_Expense!$D$34 -> 9975.85175 | AP50: 214340.8031 | AQ50: -31324.80315 | AR50: -78.31200786 | AS50: -46.96372286 | AT50: 667
B51: 1.5 | C51: -63.84974539 | D51: -99.12672972 | E51: -39650.69189 | T51: 693 | U51: 0 | V51: 621 | W51: =Input!$E$24+Input!$E$62+Input!$E$64+Input!$E$66+Input!$E$90 -> 72 | X51: =(Input!$E$36*B51)*12 -> 810 | Y51: =ROUND(Input!$E$40*X51,0) -> 81 | Z51: 729 | AA51: =ROUND(Input!$E$44*Z51,0) -> 36 | AB51: 693 | AD51: 621 | AE51: 0 | AH51: 157113 | AI51: 0 | AJ51: =Income_Expense!$D$10+Income_Expense!$D$11+Income_Expense!$D$12+Income_Expense!$D$13 -> 14265 | AK51: 171378 | AL51: =Monthly!$AD$65+Monthly!$AD$88*(U51+V51+W51)-Monthly!$Q$88 -> 105013.4377 | AM51: =(AD51+AE51)*(Input!$E$360+Input!$E$365+Input!$E$370)+(Input!$E$22+Input!$E$74)*(Input!$E$361+Input!$E$366+Input!$E$371) -> 13933.2 | AN51: =Income_Expense!$D$31-Income_Expense!$D$16-Income_Expense!$D$26 -> 82106.20244 | AO51: =Income_Expense!$D$34 -> 9975.85175 | AP51: 211028.6919 | AQ51: -39650.69189 | AR51: -99.12672972 | AS51: -63.84974539 | AT51: 621
T52: base | U52: =Input!$E$51 -> 0 | V52: =Input!$E$56 -> 995 | W52: =Input!$E$24 -> 72 | X52: =U52+V52+W52 -> 1067 | AR52: =Input!$E$16 -> 400
T53: Percent | U53: =U45/(V45+U45) -> 0 | V53: =V45/(V45+U45) -> 1 | AD53: =Input!$E$58 -> 2.3 | AE53: =Input!$E$53 -> 2.6
T54: Base Prices | U54: =Input!$E$53 -> 2.6 | V54: =Input!$E$58 -> 2.3 | AD54: =Input!$E$57 -> 110 | AE54: =Input!$E$52 -> 0
T55: Weight | U55: =Input!$E$52 -> 0 | V55: =Input!$E$57 -> 110
T56: Price/Head | U56: =U54*U55 -> 0 | V56: =V54*V55 -> 253
B58: Sensitivity To Feed and Pasture Costs
B59: Feed Cost | D59: Net Income, Before Taxes | AK59: Total | AL59: Variable Expenses | AN59: Fixed | AO59: Total | AQ59: Net Income
B60: Change | C60: Total | D60: $/Per Ewe | E60: $/Per Lamb | AK60: Revenue | AL60: Feed | AM60: Other | AN60: Expenses | AO60: Expenses | AP60: Total Net | AQ60: Per Ewe | AR60: Per Lamb
B61: =B62+0.05 -> 0.5 | C61: =AP61 -> -34113.96761 | D61: =AQ61 -> -85.28491901 | E61: =AR61 -> -34.28539458 | AK61: =Income_Expense!$D$14 -> 266000 | AL61: =$AL$71*(1+B61) -> 186469.1134 | AM61: =Income_Expense!$D$31-Income_Expense!$D$16 -> 103669.0024 | AN61: =Income_Expense!$D$34 -> 9975.85175 | AO61: =AL61+AM61+AN61 -> 300113.9676 | AP61: =AK61-AO61 -> -34113.96761 | AQ61: =AP61/$AQ$82 -> -85.28491901 | AR61: =AP61/$AR$82 -> -34.28539458
B62: 0.45 | C62: -27898.33049 | D62: -69.74582623 | E62: -28.03852311 | AK62: =Income_Expense!$D$14 -> 266000 | AL62: 180253.4763 | AM62: =Income_Expense!$D$31-Income_Expense!$D$16 -> 103669.0024 | AN62: =Income_Expense!$D$34 -> 9975.85175 | AO62: =AL62+AM62+AN62 -> 293898.3305 | AP62: =AK62-AO62 -> -27898.33049 | AQ62: -69.74582623 | AR62: -28.03852311
B63: 0.4 | C63: -21682.69338 | D63: -54.20673344 | E63: -21.79165164 | AK63: =Income_Expense!$D$14 -> 266000 | AL63: 174037.8392 | AM63: =Income_Expense!$D$31-Income_Expense!$D$16 -> 103669.0024 | AN63: =Income_Expense!$D$34 -> 9975.85175 | AO63: 287682.6934 | AP63: -21682.69338 | AQ63: -54.20673344 | AR63: -21.79165164
B64: 0.35 | C64: -15467.05626 | D64: -38.66764066 | E64: -15.54478016 | AK64: =Income_Expense!$D$14 -> 266000 | AL64: 167822.2021 | AM64: =Income_Expense!$D$31-Income_Expense!$D$16 -> 103669.0024 | AN64: =Income_Expense!$D$34 -> 9975.85175 | AO64: 281467.0563 | AP64: -15467.05626 | AQ64: -38.66764066 | AR64: -15.54478016
B65: 0.3 | C65: -9251.41915 | D65: -23.12854787 | E65: -9.297908693 | AK65: =Income_Expense!$D$14 -> 266000 | AL65: 161606.565 | AM65: =Income_Expense!$D$31-Income_Expense!$D$16 -> 103669.0024 | AN65: =Income_Expense!$D$34 -> 9975.85175 | AO65: 275251.4191 | AP65: -9251.41915 | AQ65: -23.12854787 | AR65: -9.297908693
B66: 0.25 | C66: -3035.782036 | D66: -7.58945509 | E66: -3.051037222 | AK66: =Income_Expense!$D$14 -> 266000 | AL66: 155390.9279 | AM66: =Income_Expense!$D$31-Income_Expense!$D$16 -> 103669.0024 | AN66: =Income_Expense!$D$34 -> 9975.85175 | AO66: 269035.782 | AP66: -3035.782036 | AQ66: -7.58945509 | AR66: -3.051037222
B67: 0.2 | C67: 3179.855078 | D67: 7.949637695 | E67: 3.195834249 | AK67: =Income_Expense!$D$14 -> 266000 | AL67: 149175.2907 | AM67: =Income_Expense!$D$31-Income_Expense!$D$16 -> 103669.0024 | AN67: =Income_Expense!$D$34 -> 9975.85175 | AO67: 262820.1449 | AP67: 3179.855078 | AQ67: 7.949637695 | AR67: 3.195834249
B68: 0.15 | C68: 9395.492192 | D68: 23.48873048 | E68: 9.442705721 | AK68: =Income_Expense!$D$14 -> 266000 | AL68: 142959.6536 | AM68: =Income_Expense!$D$31-Income_Expense!$D$16 -> 103669.0024 | AN68: =Income_Expense!$D$34 -> 9975.85175 | AO68: 256604.5078 | AP68: 9395.492192 | AQ68: 23.48873048 | AR68: 9.442705721
B69: 0.1 | C69: 15611.12931 | D69: 39.02782327 | E69: 15.68957719 | AK69: =Income_Expense!$D$14 -> 266000 | AL69: 136744.0165 | AM69: =Income_Expense!$D$31-Income_Expense!$D$16 -> 103669.0024 | AN69: =Income_Expense!$D$34 -> 9975.85175 | AO69: 250388.8707 | AP69: 15611.12931 | AQ69: 39.02782327 | AR69: 15.68957719
B70: 0.05 | C70: 21826.76642 | D70: 54.56691605 | E70: 21.93644866 | AK70: =Income_Expense!$D$14 -> 266000 | AL70: 130528.3794 | AM70: =Income_Expense!$D$31-Income_Expense!$D$16 -> 103669.0024 | AN70: =Income_Expense!$D$34 -> 9975.85175 | AO70: 244173.2336 | AP70: 21826.76642 | AQ70: 54.56691605 | AR70: 21.93644866
B71: Base | C71: 28042.40353 | D71: 70.10600884 | E71: 28.18332013 | AK71: =Income_Expense!$D$14 -> 266000 | AL71: =Income_Expense!$D$16 -> 124312.7423 | AM71: =Income_Expense!$D$31-Income_Expense!$D$16 -> 103669.0024 | AN71: =Income_Expense!$D$34 -> 9975.85175 | AO71: 237957.5965 | AP71: 28042.40353 | AQ71: 70.10600884 | AR71: 28.18332013
B72: -0.05 | C72: 34258.04065 | D72: 85.64510162 | E72: 34.43019161 | AK72: =Income_Expense!$D$14 -> 266000 | AL72: =$AL$71*(1+B72) -> 118097.1052 | AM72: =Income_Expense!$D$31-Income_Expense!$D$16 -> 103669.0024 | AN72: =Income_Expense!$D$34 -> 9975.85175 | AO72: 231741.9594 | AP72: 34258.04065 | AQ72: 85.64510162 | AR72: 34.43019161
B73: =B72-0.05 -> -0.1 | C73: 40473.67776 | D73: 101.1841944 | E73: 40.67706308 | AK73: =Income_Expense!$D$14 -> 266000 | AL73: 111881.4681 | AM73: =Income_Expense!$D$31-Income_Expense!$D$16 -> 103669.0024 | AN73: =Income_Expense!$D$34 -> 9975.85175 | AO73: 225526.3222 | AP73: 40473.67776 | AQ73: 101.1841944 | AR73: 40.67706308
B74: =B73-0.05 -> -0.15 | C74: 46689.31488 | D74: 116.7232872 | E74: 46.92393455 | AK74: =Income_Expense!$D$14 -> 266000 | AL74: 105665.8309 | AM74: =Income_Expense!$D$31-Income_Expense!$D$16 -> 103669.0024 | AN74: =Income_Expense!$D$34 -> 9975.85175 | AO74: 219310.6851 | AP74: 46689.31488 | AQ74: 116.7232872 | AR74: 46.92393455
B75: -0.2 | C75: 52904.95199 | D75: 132.26238 | E75: 53.17080602 | AK75: =Income_Expense!$D$14 -> 266000 | AL75: 99450.19382 | AM75: =Income_Expense!$D$31-Income_Expense!$D$16 -> 103669.0024 | AN75: =Income_Expense!$D$34 -> 9975.85175 | AO75: 213095.048 | AP75: 52904.95199 | AQ75: 132.26238 | AR75: 53.17080602
B76: -0.25 | C76: 59120.5891 | D76: 147.8014728 | E76: 59.41767749 | AK76: =Income_Expense!$D$14 -> 266000 | AL76: 93234.55671 | AM76: =Income_Expense!$D$31-Income_Expense!$D$16 -> 103669.0024 | AN76: =Income_Expense!$D$34 -> 9975.85175 | AO76: 206879.4109 | AP76: 59120.5891 | AQ76: 147.8014728 | AR76: 59.41767749
B77: -0.3 | C77: 65336.22622 | D77: 163.3405655 | E77: 65.66454896 | AK77: =Income_Expense!$D$14 -> 266000 | AL77: 87018.9196 | AM77: =Income_Expense!$D$31-Income_Expense!$D$16 -> 103669.0024 | AN77: =Income_Expense!$D$34 -> 9975.85175 | AO77: 200663.7738 | AP77: 65336.22622 | AQ77: 163.3405655 | AR77: 65.66454896
B78: -0.35 | C78: 71551.86333 | D78: 178.8796583 | E78: 71.91142043 | AK78: =Income_Expense!$D$14 -> 266000 | AL78: 80803.28248 | AM78: =Income_Expense!$D$31-Income_Expense!$D$16 -> 103669.0024 | AN78: =Income_Expense!$D$34 -> 9975.85175 | AO78: 194448.1367 | AP78: 71551.86333 | AQ78: 178.8796583 | AR78: 71.91142043
B79: -0.4 | C79: 77767.50045 | D79: 194.4187511 | E79: 78.15829191 | AK79: =Income_Expense!$D$14 -> 266000 | AL79: 74587.64537 | AM79: =Income_Expense!$D$31-Income_Expense!$D$16 -> 103669.0024 | AN79: =Income_Expense!$D$34 -> 9975.85175 | AO79: 188232.4996 | AP79: 77767.50045 | AQ79: 194.4187511 | AR79: 78.15829191
B80: -0.45 | C80: 83983.13756 | D80: 209.9578439 | E80: 84.40516338 | AK80: =Income_Expense!$D$14 -> 266000 | AL80: 68372.00825 | AM80: =Income_Expense!$D$31-Income_Expense!$D$16 -> 103669.0024 | AN80: =Income_Expense!$D$34 -> 9975.85175 | AO80: 182016.8624 | AP80: 83983.13756 | AQ80: 209.9578439 | AR80: 84.40516338
B81: -0.5 | C81: 90198.77467 | D81: 225.4969367 | E81: 90.65203485 | AK81: =Income_Expense!$D$14 -> 266000 | AL81: 62156.37114 | AM81: =Income_Expense!$D$31-Income_Expense!$D$16 -> 103669.0024 | AN81: =Income_Expense!$D$34 -> 9975.85175 | AO81: 175801.2253 | AP81: 90198.77467 | AQ81: 225.4969367 | AR81: 90.65203485
AQ82: =Income_Expense!$D$99 -> 400 | AR82: =Income_Expense!$D$158 -> 995

Sheet Balance_Sheet
B6: =Input!$C$10 -> Name: Draft Copy 400 Head Ewe Accelerated Operation (45 per month) | D6: PROJECTED BALANCE SHEET (YEAR END)
C7: Initial | D7: End of | E7: End | F7: End | G7: End | H7: End
B8: Current Assets: | C8: (Time 0) | D8: =Input!E$15 -> Year #1 | E8: =Input!F$15 -> Year #2 | F8: =Input!G$15 -> Year #3 | G8: =Input!H$15 -> Year #4 | H8: =Input!I$15 -> Year #5
B9: =Input!C388 -> Cash | C9: =Input!E388 -> 0 | D9: =Input!F388 -> 27429.3301 | E9: =Input!G388 -> 53421.21845 | F9: =Input!H388 -> 77251.74086 | G9: =Input!I388 -> 99415.82339 | H9: =IF((G9+Income_Expense!H44)>0,(G9+Income_Expense!H44),0) -> 119880.1372
B10: =Input!C389 -> Accounts Receivable | C10: =Input!E389 -> 0 | D10: =Input!F389 -> 0 | E10: =Input!G389 -> 0 | F10: =Input!H389 -> 0 | G10: =Input!I389 -> 0 | H10: =G10 -> 0
B11: =Input!C390 -> Market Inventory - Lambs | C11: =Input!E390 -> 0 | D11: =Input!F390 -> 0 | E11: =Input!G390 -> 0 | F11: =Input!H390 -> 0 | G11: =Input!I390 -> 0 | H11: =G11 -> 0
B12: =Input!C393 -> Feed Supplies/Hay/Grain | C12: =Input!E393 -> 0 | D12: =Input!F393 -> 0 | E12: =Input!G393 -> 0 | F12: =Input!H393 -> 0 | G12: =Input!I393 -> 0 | H12: =G12 -> 0
B13: =Input!C394 -> General Farm Supplies/Medication | C13: =Input!E394 -> 0 | D13: =Input!F394 -> 0 | E13: =Input!G394 -> 0 | F13: =Input!H394 -> 0 | G13: =Input!I394 -> 0 | H13: =G13 -> 0
B14: Total Current Assets | C14: =SUM(C9:C13) -> 0 | D14: 27429.3301 | E14: 53421.21845 | F14: 77251.74086 | G14: 99415.82339 | H14: 119880.1372
B15: Long Term Assets:
B16: =Input!$C391 -> Breeding Stock - Ewes | C16: =Input!E$391 -> 180000 | D16: =Input!F$391 -> 180000 | E16: =Input!G$391 -> 180000 | F16: =Input!H$391 -> 180000 | G16: =Input!I$391 -> 180000 | H16: =G16 -> 180000
B17: =Input!$C392 -> Breeding Stock - Rams | C17: =Input!E$392 -> 8000 | D17: =Input!F$392 -> 8000 | E17: =Input!G$392 -> 8000 | F17: =Input!H$392 -> 8000 | G17: =Input!I$392 -> 8000 | H17: =G17 -> 8000
B18: Buildings and Fences | C18: =Input!E$396 -> 75000 | D18: =Input!F$396 -> 72502.5 | E18: =Input!G$396 -> 70088.16675 | F18: =Input!H$396 -> 67754.2308 | G18: =Input!I$396 -> 65498.01491 | H18: =Depreciation!N6 -> 63316.93102
B19: Machinery and Equipment | C19: =Input!E$397 -> 50000 | D19: =Input!F$397 -> 46670 | E19: =Input!G$397 -> 43561.778 | F19: =Input!H$397 -> 40660.56359 | G19: =Input!I$397 -> 37952.57005 | H19: =Depreciation!N7 -> 35424.92889
B20: Land and Other Non Depreciating Assets | C20: =Input!E$395 -> 100000 | D20: =Input!F$395 -> 100000 | E20: =Input!G$395 -> 100000 | F20: =Input!H$395 -> 100000 | G20: =Input!I$395 -> 100000 | H20: =Depreciation!N5 -> 100000
B21: Infrastructure and Site Development | C21: =Input!E$398 -> 0 | D21: =Input!F$398 -> 0 | E21: =Input!G$398 -> 0 | F21: =Input!H$398 -> 0 | G21: =Input!I$398 -> 0 | H21: =Depreciation!N8 -> 0
B22: Long Term Assets | C22: =SUM(C16:C21) -> 413000 | D22: 407172.5 | E22: 401649.9448 | F22: 396414.7944 | G22: 391450.585 | H22: 386741.8599
B23: TOTAL ASSETS | C23: =C14+C22 -> 413000 | D23: 434601.8301 | E23: 455071.1632 | F23: 473666.5352 | G23: 490866.4084 | H23: 506621.9971
B24: Current Liabilities:
B25: Operating Loans/Account | C25: =Input!E$402 -> 0 | D25: =Input!F$402 -> 0 | E25: =Input!G$402 -> 0 | F25: =Input!H$402 -> 0 | G25: =Input!I$402 -> 0 | H25: =IF(Income_Expense!V60<0,Income_Expense!V60*(-1),0) -> 0
B26: Accounts Payable | C26: =Input!E$403 -> 0 | D26: =Input!F$403 -> 0 | E26: =Input!G$403 -> 0 | F26: =Input!H$403 -> 0 | G26: =Input!I$403 -> 0 | H26: =Input!J$403 -> 0
B27: Principal in Arrears | C27: =Input!E$404 -> 0 | D27: =Input!F$404 -> 0 | E27: =Input!G$404 -> 0 | F27: =Input!H$404 -> 0 | G27: =Input!I$404 -> 0 | H27: =Input!J$404 -> 0
B28: Other Current Debt/Annual Principal Due | C28: =Input!E405 -> 6338.925185 | D28: =Input!F405 -> 6655.871444 | E28: =Input!G405 -> 6988.665016 | F28: =Input!H405 -> 7338.098267 | G28: =Input!I405 -> 7705.00318 | H28: =Financing!E45 -> 2315.883386
B29: Total Current Liabilities | C29: =SUM(C25:C28) -> 6338.925185 | D29: 6655.871444 | E29: 6988.665016 | F29: 7338.098267 | G29: 7705.00318 | H29: 2315.883386
B30: Long Term Liabilities:
B31: =Input!C414 -> Loan#1 - Land and Buildings | C31: =Input!E415 -> 60000 | D31: =Financing!$F$12 -> 58185.44477 | E31: =Financing!$F$13 -> 56280.16178 | F31: =Financing!$F$14 -> 54279.61463 | G31: =Financing!$F$15 -> 52179.04013 | H31: =Financing!$F$16 -> 49973.43691
B32: =Input!C420 -> Loan#2 - Machinery and Equipment | C32: =Input!E421 -> 25000 | D32: =Financing!$L$12 -> 20475.63005 | E32: =Financing!$L$13 -> 15725.0416 | F32: =Financing!$L$14 -> 10736.92372 | G32: =Financing!$L$15 -> 5499.399955 | H32: =Financing!$L$16 -> 0
B33: =Input!C426 -> Loan#3 - Sheep Loan Purchase #1 (Year #1) | C33: 0 | D33: =Input!E427 -> 0 | E33: =Financing!$R$13 -> 0 | F33: =Financing!$R$14 -> 0 | G33: =Financing!$R$15 -> 0 | H33: =Financing!$R$16 -> 0
B34: =Input!C432 -> Loan#4 - Sheep Loan Purchase #2 (Year #2) | C34: 0 | D34: 0 | E34: =Financing!$X$13 -> 0 | F34: =Financing!$X$14 -> 0 | G34: =Financing!$X$15 -> 0 | H34: =Financing!$X$16 -> 0
B35: =Input!C438 -> Loan#5 - Sheep Loan Purchase #3 (Year #3) | C35: 0 | D35: 0 | E35: =Financing!$AD$14 -> 0 | F35: =Financing!$AD$15 -> 0 | G35: =Financing!$AD$16 -> 0 | H35: =Financing!$AD$17 -> 0
B36: =Input!C444 -> Loan#6 - Sheep Loan Purchase #4 (Year #4) | C36: 0 | D36: 0 | E36: 0 | F36: =Financing!$AJ$15 -> 0 | G36: =Financing!$AJ$16 -> 0 | H36: =Financing!$AJ$17 -> 0
B37: =Input!C450 -> Loan#7 - Sheep Loan Purchase #5 (Year #5) | C37: 0 | D37: 0 | E37: 0 | F37: 0 | G37: =Financing!$AP$16 -> 0 | H37: =Financing!$AP$17 -> 0
B38: Total Long Term Liabilities | C38: =SUM(C31:C37) -> 85000 | D38: 78661.07482 | E38: 72005.20337 | F38: 65016.53836 | G38: 57678.44009 | H38: 49973.43691
B39: TOTAL LIABILITIES | C39: =C29+C38 -> 91338.92518 | D39: 85316.94626 | E39: 78993.86839 | F39: 72354.63662 | G39: 65383.44327 | H39: 52289.32029
B40: NET EQUITY | C40: =C23-C39 -> 321661.0748 | D40: 349284.8838 | E40: 376077.2948 | F40: 401311.8986 | G40: 425482.9651 | H40: 454332.6768
C50: =C7 -> Initial | D50: End of | E50: End | F50: End | G50: End | H50: End
B51: Inventory | C51: =C11+C12+C13+C16+C17 -> 188000 | D51: 188000 | E51: 188000 | F51: 188000 | G51: 188000 | H51: 188000
B52: Accounts Receivable | C52: =C10 -> 0 | D52: 0 | E52: 0 | F52: 0 | G52: 0 | H52: 0
B53: Accounts Payable | C53: =C26 -> 0 | D53: 0 | E53: 0 | F53: 0 | G53: 0 | H53: 0
B54: Accrual Adjustments | D54: =D51-C51+C53-D53+D52-C52 -> 0 | E54: =E51-D51+D53-E53+E52-D52 -> 0 | F54: =F51-E51+E53-F53+F52-E52 -> 0 | G54: =G51-F51+F53-G53+G52-F52 -> 0 | H54: =H51-G51+G53-H53+H52-G52 -> 0

Sheet Investment
E2: NOMINAL INVESTMENT RETURNS ON EQUITY
C3: Start of Year
C4: Year 1 | D4: Year 2 | E4: Year 3 | F4: Year 4 | G4: Year 5 | H4: Average
B5: Total Assets | C5: =Balance_Sheet!C23 -> 413000 | D5: =Balance_Sheet!D23 -> 434601.8301 | E5: =Balance_Sheet!E23 -> 455071.1632 | F5: =Balance_Sheet!F23 -> 473666.5352 | G5: =Balance_Sheet!G23 -> 490866.4084 | H5: =AVERAGE(C5:G5) -> 453441.1874
B6: Total Liabilities | C6: =Balance_Sheet!C39 -> 91338.92518 | D6: =Balance_Sheet!D39 -> 85316.94626 | E6: =Balance_Sheet!E39 -> 78993.86839 | F6: =Balance_Sheet!F39 -> 72354.63662 | G6: =Balance_Sheet!G39 -> 65383.44327 | H6: =AVERAGE(C6:G6) -> 78677.56394
B7: Total Equity | C7: =C5-C6 -> 321661.0748 | D7: =D5-D6 -> 349284.8838 | E7: =E5-E6 -> 376077.2948 | F7: =F5-F6 -> 401311.8986 | G7: =G5-G6 -> 425482.9651 | H7: =AVERAGE(C7:G7) -> 374763.6234
C8: End of Year
B9: Year-End | C9: Year 1 | D9: Year 2 | E9: Year 3 | F9: Year 4 | G9: Year 5 | H9: Average
B10: Pre-tax Earnings | C10: =Income_Expense!D37 -> 28042.40353 | D10: =Income_Expense!E37 -> 27238.8078 | E10: =Income_Expense!F37 -> 25584.03707 | F10: =Income_Expense!G37 -> 24537.97137 | G10: =Income_Expense!H37 -> 23460.59195 | H10: =AVERAGE(C10:G10) -> 25772.76234
B11: Return on Equity | C11: =C10/C7 -> 0.08717997212 | D11: =D10/D7 -> 0.07798450221 | E11: =E10/E7 -> 0.06802866703 | F11: =F10/F7 -> 0.06114439032 | G11: =G10/G7 -> 0.05513873381 | H11: =AVERAGE(C11:G11) -> 0.0698952531
B12: (Note: For a proper return on equity calculation, labour costs/or opportunity cost must be included)

Sheet Financing
B4: =Input!C414 -> Loan#1 - Land and Buildings | H4: =Input!C420 -> Loan#2 - Machinery and Equipment | N4: =Input!C426 -> Loan#3 - Sheep Loan Purchase #1 (Year #1) | T4: =Input!C432 -> Loan#4 - Sheep Loan Purchase #2 (Year #2) | Z4: =Input!C438 -> Loan#5 - Sheep Loan Purchase #3 (Year #3) | AF4: =Input!C444 -> Loan#6 - Sheep Loan Purchase #4 (Year #4) | AL4: =Input!C450 -> Loan#7 - Sheep Loan Purchase #5 (Year #5)
C6: Principal | D6: =Input!E415 -> 60000 | E6: =IF(D6>0,1,0) -> 1 | I6: Principal | J6: =Input!E421 -> 25000 | O6: Principal | P6: =Input!E427 -> 0 | U6: Principal | V6: =Input!E433 -> 0 | AA6: Principal | AB6: =Input!E439 -> 0 | AG6: Principal | AH6: =Input!E445 -> 0 | AM6: Principal | AN6: =Input!E451 -> 0
C7: Interest Rate | D7: =Input!E416 -> 0.05 | E7: =D7/12 -> 0.004166666667 | I7: Interest Rate | J7: =Input!E422 -> 0.05 | O7: Interest Rate | P7: =Input!E428 -> 0 | U7: Interest Rate | V7: =Input!E434 -> 0 | AA7: Interest Rate | AB7: =Input!E440 -> 0 | AG7: Interest Rate | AH7: =Input!E446 -> 0 | AM7: Interest Rate | AN7: =Input!E452 -> 0
C8: Term of Loan | D8: =Input!E417 -> 20 | E8: =D8*12 -> 240 | I8: Term of Loan | J8: =Input!E423 -> 5 | O8: Term of Loan | P8: =Input!E429 -> 0 | U8: Term of Loan | V8: =Input!E435 -> 0 | W8: ending year | X8: =V8+1 -> 1 | AA8: Term of Loan | AB8: =Input!E441 -> 0 | AC8: ending year | AD8: =AB8+2 -> 2 | AG8: Term of Loan | AH8: =Input!E447 -> 0 | AI8: ending year | AJ8: =AH8+3 -> 3 | AM8: Term of Loan | AN8: =Input!E453 -> 0 | AO8: ending year | AP8: =AN8+4 -> 4
C9: Loan Payment | D9: =IF(D6>0,PMT(D7,D8,D6,0,0)*(-1),0) -> 4814.555231 | E9: =IF(D6>0,-PMT(E7,E8,D6),0) -> 395.9734435 | I9: Loan Payment | J9: =IF(J6>0,PMT(J7,J8,J6,0,0)*(-1),0) -> 5774.369953 | O9: Loan Payment | P9: =IF(P6>0,PMT(P7,P8,P6,0,0)*(-1),0) -> 0 | U9: Loan Payment | V9: =IF(V6>0,PMT(V7,V8,V6,0,0)*(-1),0) -> 0 | AA9: Loan Payment | AB9: =IF(AB6>0,PMT(AB7,AB8,AB6,0,0)*(-1),0) -> 0 | AG9: Loan Payment | AH9: =IF(AH6>0,PMT(AH7,AH8,AH6,0,0)*(-1),0) -> 0 | AM9: Loan Payment | AN9: =IF(AN6>0,PMT(AN7,AN8,AN6,0,0)*(-1),0) -> 0
B11: Year | C11: Loan Pmt. | D11: Interest Pmt | E11: Principal Pmt. | F11: Principal Bal. | H11: Year | I11: Loan Pmt. | J11: Interest Pmt | K11: Principal Pmt. | L11: Principal Bal. | N11: Year | O11: Loan Pmt. | P11: Interest Pmt | Q11: Principal Pmt. | R11: Principal Bal. | T11: Year | U11: Loan Pmt. | V11: Interest Pmt | W11: Principal Pmt. | X11: Principal Bal. | Z11: Year | AA11: Loan Pmt. | AB11: Interest Pmt | AC11: Principal Pmt. | AD11: Principal Bal. | AF11: Year | AG11: Loan Pmt. | AH11: Interest Pmt | AI11: Principal Pmt. | AJ11: Principal Bal. | AL11: Year | AM11: Loan Pmt. | AN11: Interest Pmt | AO11: Principal Pmt. | AP11: Principal Bal.
B12: 1 | C12: =IF(B12<=$D$8,$D$9,0) -> 4814.555231 | D12: =IF(D6>0,D6*$D$7,0) -> 3000 | E12: =C12-D12 -> 1814.555231 | F12: =D6-E12 -> 58185.44477 | H12: 1 | I12: =IF(H12<=$J$8,$J$9,0) -> 5774.369953 | J12: =IF(J6>0,J6*$J$7,0) -> 1250 | K12: =I12-J12 -> 4524.369953 | L12: =J6-K12 -> 20475.63005 | N12: 1 | R12: =P6-Q12 -> 0 | T12: 1 | Z12: 1 | AF12: 1 | AL12: 1
B13: =B12+1 -> 2 | C13: =IF(B13<=$D$8,$D$9,0) -> 4814.555231 | D13: =IF(F12>0,F12*$D$7,0) -> 2909.272238 | E13: =C13-D13 -> 1905.282993 | F13: =F12-E13 -> 56280.16178 | H13: =H12+1 -> 2 | I13: =IF(H13<=$J$8,$J$9,0) -> 5774.369953 | J13: =IF(L12>0,L12*$J$7,0) -> 1023.781502 | K13: =I13-J13 -> 4750.588451 | L13: =L12-K13 -> 15725.0416 | N13: =N12+1 -> 2 | O13: =IF(N12<=$P$8,$P$9,0) -> 0 | P13: =IF(P6>0,P6*$P$7,0) -> 0 | Q13: =O13-P13 -> 0 | R13: =P6-Q13 -> 0 | T13: =T12+1 -> 2 | X13: =V6-W13 -> 0 | Z13: =Z12+1 -> 2 | AF13: =AF12+1 -> 2 | AL13: =AL12+1 -> 2
B14: =B13+1 -> 3 | C14: 4814.555231 | D14: =IF(F13>0,F13*$D$7,0) -> 2814.008089 | E14: 2000.547143 | F14: =F13-E14 -> 54279.61463 | H14: 3 | I14: 5774.369953 | J14: =IF(L13>0,L13*$J$7,0) -> 786.2520798 | K14: 4988.117873 | L14: 10736.92372 | N14: 3 | O14: 0 | P14: =IF(R13>0,R13*$P$7,0) -> 0 | Q14: 0 | R14: =R13-Q14 -> 0 | T14: 3 | U14: =IF(T13<=$X$8,$V$9,0) -> 0 | V14: =IF(V6>0,V6*$V$7,0) -> 0 | W14: =U14-V14 -> 0 | X14: =V6-W14 -> 0 | Z14: 3 | AD14: =AB6-AC14 -> 0 | AF14: 3 | AL14: 3
B15: 4 | C15: 4814.555231 | D15: 2713.980732 | E15: 2100.5745 | F15: 52179.04013 | H15: 4 | I15: 5774.369953 | J15: 536.8461861 | K15: 5237.523767 | L15: 5499.399955 | N15: 4 | O15: 0 | P15: 0 | Q15: 0 | R15: 0 | T15: 4 | U15: 0 | V15: =IF(X14>0,X14*$V$7,0) -> 0 | W15: 0 | X15: =X14-W15 -> 0 | Z15: 4 | AA15: =IF(Z14<=$AD$8,$AB$9,0) -> 0 | AB15: =IF(AB6>0,AB6*$AB$7,0) -> 0 | AC15: =AA15-AB15 -> 0 | AD15: =AB6-AC15 -> 0 | AF15: 4 | AJ15: =AH6-AI15 -> 0 | AL15: 4
B16: 5 | C16: 4814.555231 | D16: 2608.952007 | E16: 2205.603225 | F16: 49973.43691 | H16: 5 | I16: 5774.369953 | J16: 274.9699978 | K16: 5499.399955 | L16: 0 | N16: 5 | O16: 0 | P16: 0 | Q16: 0 | R16: 0 | T16: 5 | U16: 0 | V16: =IF(X15>0,X15*$V$7,0) -> 0 | W16: 0 | X16: 0 | Z16: 5 | AA16: 0 | AB16: =IF(AD15>0,AD15*$AB$7,0) -> 0 | AC16: 0 | AD16: =AD15-AC16 -> 0 | AF16: 5 | AG16: =IF(AF15<=$AJ$8,$AH$9,0) -> 0 | AH16: =IF(AH6>0,AH6*$AH$7,0) -> 0 | AI16: =AG16-AH16 -> 0 | AJ16: =AH6-AI16 -> 0 | AL16: 5 | AP16: =AN6-AO16 -> 0
B17: 6 | C17: 4814.555231 | D17: 2498.671845 | E17: 2315.883386 | F17: 47657.55352 | H17: 6 | I17: 0 | J17: 0 | K17: 0 | L17: 0 | N17: 6 | O17: 0 | P17: 0 | Q17: 0 | R17: 0 | T17: 6 | U17: 0 | V17: 0 | W17: 0 | X17: 0 | Z17: 6 | AA17: 0 | AB17: 0 | AC17: 0 | AD17: 0 | AF17: 6 | AG17: 0 | AH17: =IF(AJ16>0,AJ16*$AH$7,0) -> 0 | AI17: 0 | AJ17: =AJ16-AI17 -> 0 | AL17: 6 | AM17: =IF(AL16<=$AP$8,$AN$9,0) -> 0 | AN17: =IF(AN6>0,AN6*$AN$7,0) -> 0 | AO17: =AM17-AN17 -> 0 | AP17: =AN6-AO17 -> 0
B18: 7 | C18: 4814.555231 | D18: 2382.877676 | E18: 2431.677555 | F18: 45225.87597 | H18: 7 | I18: 0 | J18: 0 | K18: 0 | L18: 0 | N18: 7 | O18: 0 | P18: 0 | Q18: 0 | R18: 0 | T18: 7 | U18: 0 | V18: 0 | W18: 0 | X18: 0 | Z18: 7 | AA18: 0 | AB18: 0 | AC18: 0 | AD18: 0 | AF18: 7 | AG18: 0 | AH18: 0 | AI18: 0 | AJ18: 0 | AL18: 7 | AM18: 0 | AN18: =IF(AP17>0,AP17*$AN$7,0) -> 0 | AO18: 0 | AP18: =AP17-AO18 -> 0
B19: 8 | C19: 4814.555231 | D19: 2261.293798 | E19: 2553.261433 | F19: 42672.61453 | H19: 8 | I19: 0 | J19: 0 | K19: 0 | L19: 0 | N19: 8 | O19: 0 | P19: 0 | Q19: 0 | R19: 0 | T19: 8 | U19: 0 | V19: 0 | W19: 0 | X19: 0 | Z19: 8 | AA19: 0 | AB19: 0 | AC19: 0 | AD19: 0 | AF19: 8 | AG19: 0 | AH19: 0 | AI19: 0 | AJ19: 0 | AL19: 8 | AM19: 0 | AN19: =IF(AP18>0,AP18*$AN$7,0) -> 0 | AO19: 0 | AP19: 0
B20: 9 | C20: 4814.555231 | D20: 2133.630727 | E20: 2680.924505 | F20: 39991.69003 | H20: 9 | I20: 0 | J20: 0 | K20: 0 | L20: 0 | N20: 9 | O20: 0 | P20: 0 | Q20: 0 | R20: 0 | T20: 9 | U20: 0 | V20: 0 | W20: 0 | X20: 0 | Z20: 9 | AA20: 0 | AB20: 0 | AC20: 0 | AD20: 0 | AF20: 9 | AG20: 0 | AH20: 0 | AI20: 0 | AJ20: 0 | AL20: 9 | AM20: 0 | AN20: 0 | AO20: 0 | AP20: 0
B21: 10 | C21: 4814.555231 | D21: 1999.584501 | E21: 2814.97073 | F21: 37176.7193 | H21: 10 | I21: 0 | J21: 0 | K21: 0 | L21: 0 | N21: 10 | O21: 0 | P21: 0 | Q21: 0 | R21: 0 | T21: 10 | U21: 0 | V21: 0 | W21: 0 | X21: 0 | Z21: 10 | AA21: 0 | AB21: 0 | AC21: 0 | AD21: 0 | AF21: 10 | AG21: 0 | AH21: 0 | AI21: 0 | AJ21: 0 | AL21: 10 | AM21: 0 | AN21: 0 | AO21: 0 | AP21: 0
B22: 11 | C22: 4814.555231 | D22: 1858.835965 | E22: 2955.719266 | F22: 34221.00003 | H22: 11 | I22: 0 | J22: 0 | K22: 0 | L22: 0 | N22: 11 | O22: 0 | P22: 0 | Q22: 0 | R22: 0 | T22: 11 | U22: 0 | V22: 0 | W22: 0 | X22: 0 | Z22: 11 | AA22: 0 | AB22: 0 | AC22: 0 | AD22: 0 | AF22: 11 | AG22: 0 | AH22: 0 | AI22: 0 | AJ22: 0 | AL22: 11 | AM22: 0 | AN22: 0 | AO22: 0 | AP22: 0
B23: 12 | C23: 4814.555231 | D23: 1711.050002 | E23: 3103.50523 | F23: 31117.4948 | H23: 12 | I23: 0 | J23: 0 | K23: 0 | L23: 0 | N23: 12 | O23: 0 | P23: 0 | Q23: 0 | R23: 0 | T23: 12 | U23: 0 | V23: 0 | W23: 0 | X23: 0 | Z23: 12 | AA23: 0 | AB23: 0 | AC23: 0 | AD23: 0 | AF23: 12 | AG23: 0 | AH23: 0 | AI23: 0 | AJ23: 0 | AL23: 12 | AM23: 0 | AN23: 0 | AO23: 0 | AP23: 0
B24: 13 | C24: 4814.555231 | D24: 1555.87474 | E24: 3258.680491 | F24: 27858.81431 | H24: 13 | I24: 0 | J24: 0 | K24: 0 | L24: 0 | N24: 13 | O24: 0 | P24: 0 | Q24: 0 | R24: 0 | T24: 13 | U24: 0 | V24: 0 | W24: 0 | X24: 0 | Z24: 13 | AA24: 0 | AB24: 0 | AC24: 0 | AD24: 0 | AF24: 13 | AG24: 0 | AH24: 0 | AI24: 0 | AJ24: 0 | AL24: 13 | AM24: 0 | AN24: 0 | AO24: 0 | AP24: 0
B25: 14 | C25: 4814.555231 | D25: 1392.940716 | E25: 3421.614516 | F25: 24437.1998 | H25: 14 | I25: 0 | J25: 0 | K25: 0 | L25: 0 | N25: 14 | O25: 0 | P25: 0 | Q25: 0 | R25: 0 | T25: 14 | U25: 0 | V25: 0 | W25: 0 | X25: 0 | Z25: 14 | AA25: 0 | AB25: 0 | AC25: 0 | AD25: 0 | AF25: 14 | AG25: 0 | AH25: 0 | AI25: 0 | AJ25: 0 | AL25: 14 | AM25: 0 | AN25: 0 | AO25: 0 | AP25: 0
B26: 15 | C26: 4814.555231 | D26: 1221.85999 | E26: 3592.695242 | F26: 20844.50455 | H26: 15 | I26: 0 | J26: 0 | K26: 0 | L26: 0 | N26: 15 | O26: 0 | P26: 0 | Q26: 0 | R26: 0 | T26: 15 | U26: 0 | V26: 0 | W26: 0 | X26: 0 | Z26: 15 | AA26: 0 | AB26: 0 | AC26: 0 | AD26: 0 | AF26: 15 | AG26: 0 | AH26: 0 | AI26: 0 | AJ26: 0 | AL26: 15 | AM26: 0 | AN26: 0 | AO26: 0 | AP26: 0
B27: 16 | C27: 4814.555231 | D27: 1042.225228 | E27: 3772.330004 | F27: 17072.17455 | H27: 16 | I27: 0 | J27: 0 | K27: 0 | L27: 0 | N27: 16 | O27: 0 | P27: 0 | Q27: 0 | R27: 0 | T27: 16 | U27: 0 | V27: 0 | W27: 0 | X27: 0 | Z27: 16 | AA27: 0 | AB27: 0 | AC27: 0 | AD27: 0 | AF27: 16 | AG27: 0 | AH27: 0 | AI27: 0 | AJ27: 0 | AL27: 16 | AM27: 0 | AN27: 0 | AO27: 0 | AP27: 0
B28: 17 | C28: 4814.555231 | D28: 853.6087275 | E28: 3960.946504 | F28: 13111.22805 | H28: 17 | I28: 0 | J28: 0 | K28: 0 | L28: 0 | N28: 17 | O28: 0 | P28: 0 | Q28: 0 | R28: 0 | T28: 17 | U28: 0 | V28: 0 | W28: 0 | X28: 0 | Z28: 17 | AA28: 0 | AB28: 0 | AC28: 0 | AD28: 0 | AF28: 17 | AG28: 0 | AH28: 0 | AI28: 0 | AJ28: 0 | AL28: 17 | AM28: 0 | AN28: 0 | AO28: 0 | AP28: 0
B29: 18 | C29: 4814.555231 | D29: 655.5614023 | E29: 4158.993829 | F29: 8952.234217 | H29: 18 | I29: 0 | J29: 0 | K29: 0 | L29: 0 | N29: 18 | O29: 0 | P29: 0 | Q29: 0 | R29: 0 | T29: 18 | U29: 0 | V29: 0 | W29: 0 | X29: 0 | Z29: 18 | AA29: 0 | AB29: 0 | AC29: 0 | AD29: 0 | AF29: 18 | AG29: 0 | AH29: 0 | AI29: 0 | AJ29: 0 | AL29: 18 | AM29: 0 | AN29: 0 | AO29: 0 | AP29: 0
B30: 19 | C30: 4814.555231 | D30: 447.6117109 | E30: 4366.943521 | F30: 4585.290697 | H30: 19 | I30: 0 | J30: 0 | K30: 0 | L30: 0 | N30: 19 | O30: 0 | P30: 0 | Q30: 0 | R30: 0 | T30: 19 | U30: 0 | V30: 0 | W30: 0 | X30: 0 | Z30: 19 | AA30: 0 | AB30: 0 | AC30: 0 | AD30: 0 | AF30: 19 | AG30: 0 | AH30: 0 | AI30: 0 | AJ30: 0 | AL30: 19 | AM30: 0 | AN30: 0 | AO30: 0 | AP30: 0
B31: 20 | C31: 4814.555231 | D31: 229.2645348 | E31: 4585.290697 | F31: 0 | H31: 20 | I31: 0 | J31: 0 | K31: 0 | L31: 0 | N31: 20 | O31: 0 | P31: 0 | Q31: 0 | R31: 0 | T31: 20 | U31: 0 | V31: 0 | W31: 0 | X31: 0 | Z31: 20 | AA31: 0 | AB31: 0 | AC31: 0 | AD31: 0 | AF31: 20 | AG31: 0 | AH31: 0 | AI31: 0 | AJ31: 0 | AL31: 20 | AM31: 0 | AN31: 0 | AO31: 0 | AP31: 0
B32: 21 | C32: 0 | D32: 0 | E32: 0 | F32: 0 | H32: 21 | I32: 0 | J32: 0 | K32: 0 | L32: 0 | N32: 21 | O32: 0 | P32: 0 | Q32: 0 | R32: 0 | T32: 21 | U32: 0 | V32: 0 | W32: 0 | X32: 0 | Z32: 21 | AA32: 0 | AB32: 0 | AC32: 0 | AD32: 0 | AF32: 21 | AG32: 0 | AH32: 0 | AI32: 0 | AJ32: 0 | AL32: 21 | AM32: 0 | AN32: 0 | AO32: 0 | AP32: 0
B33: =B32+1 -> 22 | C33: 0 | D33: 0 | E33: 0 | F33: 0 | H33: 22 | I33: 0 | J33: 0 | K33: 0 | L33: 0 | N33: 22 | O33: 0 | P33: 0 | Q33: 0 | R33: 0 | T33: 22 | U33: 0 | V33: 0 | W33: 0 | X33: 0 | Z33: 22 | AA33: 0 | AB33: 0 | AC33: 0 | AD33: 0 | AF33: 22 | AG33: 0 | AH33: 0 | AI33: 0 | AJ33: 0 | AL33: 22 | AM33: 0 | AN33: 0 | AO33: 0 | AP33: 0
B34: =B33+1 -> 23 | C34: 0 | D34: 0 | E34: 0 | F34: 0 | H34: 23 | I34: 0 | J34: 0 | K34: 0 | L34: 0 | N34: 23 | O34: 0 | P34: 0 | Q34: 0 | R34: 0 | T34: 23 | U34: 0 | V34: 0 | W34: 0 | X34: 0 | Z34: 23 | AA34: 0 | AB34: 0 | AC34: 0 | AD34: 0 | AF34: 23 | AG34: 0 | AH34: 0 | AI34: 0 | AJ34: 0 | AL34: 23 | AM34: 0 | AN34: 0 | AO34: 0 | AP34: 0
B35: =B34+1 -> 24 | C35: 0 | D35: 0 | E35: 0 | F35: 0 | H35: 24 | I35: 0 | J35: 0 | K35: 0 | L35: 0 | N35: 24 | O35: 0 | P35: 0 | Q35: 0 | R35: 0 | T35: 24 | U35: 0 | V35: 0 | W35: 0 | X35: 0 | Z35: 24 | AA35: 0 | AB35: 0 | AC35: 0 | AD35: 0 | AF35: 24 | AG35: 0 | AH35: 0 | AI35: 0 | AJ35: 0 | AL35: 24 | AM35: 0 | AN35: 0 | AO35: 0 | AP35: 0
B36: =B35+1 -> 25 | C36: 0 | D36: 0 | E36: 0 | F36: 0 | H36: 25 | I36: 0 | J36: 0 | K36: 0 | L36: 0 | N36: 25 | O36: 0 | P36: 0 | Q36: 0 | R36: 0 | T36: 25 | U36: 0 | V36: 0 | W36: 0 | X36: 0 | Z36: 25 | AA36: 0 | AB36: 0 | AC36: 0 | AD36: 0 | AF36: 25 | AG36: 0 | AH36: 0 | AI36: 0 | AJ36: 0 | AL36: 25 | AM36: 0 | AN36: 0 | AO36: 0 | AP36: 0
D38: Loan | E38: Payments
C39: Year | D39: Interest | E39: Principal
C40: 1 | D40: =D12+J12+P12+V12+AB12+AH12+AN12 -> 4250 | E40: =E12+K12+Q12+W12+AC12+AI12+AO12 -> 6338.925185
C41: 2 | D41: 3933.053741 | E41: 6655.871444
C42: 3 | D42: 3600.260169 | E42: 6988.665016
C43: 4 | D43: 3250.826918 | E43: 7338.098267
C44: 5 | D44: 2883.922004 | E44: 7705.00318
C45: 6 | D45: 2498.671845 | E45: 2315.883386
C46: 7 | D46: 2382.877676 | E46: 2431.677555
C47: 8 | D47: 2261.293798 | E47: 2553.261433
C48: 9 | D48: 2133.630727 | E48: 2680.924505
C49: 10 | D49: 1999.584501 | E49: 2814.97073

Sheet Depreciation
B4: DEPRECIATION | C4: Dep. Rate | D4: Initial Cost | E4: =Input!$E$15 -> Year #1 | F4: Year End | G4: =Input!$F$15 -> Year #2 | H4: Year End | I4: =Input!$G$15 -> Year #3 | J4: Year End | K4: =Input!$H$15 -> Year #4 | L4: Year End | M4: =Input!$I$15 -> Year #5 | N4: Year End | O4: =Input!$J$15 -> 0 | P4: Year End
B5: =Input!C395 -> Land and Other Non Depreciating Assets | C5: 0 | D5: =Input!E395 -> 100000 | E5: 0 | F5: =D5-E5 -> 100000 | G5: 0 | H5: =IF(Input!$F$395>F5,Input!$F$395-G5,F5-G5) -> 100000 | I5: 0 | J5: =IF(Input!$G$395>H5,Input!$G$395-I5,H5-I5) -> 100000 | K5: 0 | L5: =IF(Input!$H$395>J5,Input!$H$395-K5,J5-K5) -> 100000 | M5: 0 | N5: =IF(Input!$I$395>L5,Input!$I$395-M5,L5-M5) -> 100000 | O5: 0 | P5: =IF(Input!$J$395>N5,Input!$J$395-O5,N5-O5) -> 100000
B6: =Input!C396 -> Buildings and Fences (CCA - 10% dep) | C6: 0.0333 | D6: =Input!E396 -> 75000 | E6: =D6*$C$6 -> 2497.5 | F6: =D6-E6 -> 72502.5 | G6: =F6*$C$6 -> 2414.33325 | H6: =IF(Input!$F$396>F6,Input!$F$396-G6,F6-G6) -> 70088.16675 | I6: =H6*$C$6 -> 2333.935953 | J6: =IF(Input!$G$396>H6,Input!$G$396-I6,H6-I6) -> 67754.2308 | K6: =J6*$C$6 -> 2256.215886 | L6: =IF(Input!$H$396>J6,Input!$H$396-K6,J6-K6) -> 65498.01491 | M6: =L6*$C$6 -> 2181.083897 | N6: =IF(Input!$I$396>L6,Input!$I$396-M6,L6-M6) -> 63316.93102 | O6: =N6*$C$6 -> 2108.453803 | P6: =IF(Input!$J$396>N6,Input!$J$396-O6,N6-O6) -> 61208.47721
B7: =Input!C397 -> Machinery and Equipment (CCA - 20% dep) | C7: 0.0666 | D7: =Input!E397 -> 50000 | E7: =D7*$C$7 -> 3330 | F7: =D7-E7 -> 46670 | G7: =F7*$C$7 -> 3108.222 | H7: =IF(Input!$F$397>F7,Input!$F$397-G7,F7-G7) -> 43561.778 | I7: =H7*$C$7 -> 2901.214415 | J7: =IF(Input!$G$397>H7,Input!$G$397-I7,H7-I7) -> 40660.56359 | K7: =J7*$C$7 -> 2707.993535 | L7: =IF(Input!$H$397>J7,Input!$H$397-K7,J7-K7) -> 37952.57005 | M7: =L7*$C$7 -> 2527.641165 | N7: =IF(Input!$I$397>L7,Input!$I$397-M7,L7-M7) -> 35424.92889 | O7: =N7*$C$7 -> 2359.300264 | P7: =IF(Input!$J$397>N7,Input!$J$397-O7,N7-O7) -> 33065.62862
B8: =Input!C398 -> Infrastructure and Site Development (CCA - 8%) | C8: 0.0533 | D8: =Input!E398 -> 0 | E8: =IF(D8>0,D8*C8,0) -> 0 | F8: =D8-E8 -> 0 | G8: =IF(Input!$F$398>F8,Input!$F$398*C8,F8*C8) -> 0 | H8: =IF(Input!$F$398>F8,Input!$F$398-G8,F8-G8) -> 0 | I8: =IF(Input!$G$398>H8,Input!$G$398*C8,H8*C8) -> 0 | J8: =IF(Input!$G$398>H8,Input!$G$398-I8,H8-I8) -> 0 | K8: =IF(Input!$H$398>J8,Input!$H$398*C8,J8*C8) -> 0 | L8: =IF(Input!$H$398>J8,Input!$H$398-K8,J8-K8) -> 0 | M8: =IF(Input!$I$398>L8,Input!$I$398*C8,L8*C8) -> 0 | N8: =IF(Input!$I$398>L8,Input!$I$398-M8,L8-M8) -> 0 | O8: =IF(Input!$I$398>N8,Input!$I$398*E8,N8*E8) -> 0 | P8: =IF(Input!$J$398>N8,Input!$J$398-O8,N8-O8) -> 0
C9: TOTAL | D9: =SUM(D5:D8) -> 225000 | E9: 5827.5 | F9: 219172.5 | G9: 5522.55525 | H9: 213649.9447 | I9: 5235.150368 | J9: 208414.7944 | K9: 4964.20942 | L9: 203450.585 | M9: 4708.725062 | N9: 198741.8599 | O9: =SUM(O5:O8) -> 4467.754067 | P9: =SUM(P5:P8) -> 194274.1058
